{"text_format":"1","workbook":"xlsx","n_sheets":16,"sheets":["入力時の注意事項","表紙","様式2（連絡先）","様式3（全般事項）","様式４(機能別)","別紙1未充足要件","別紙2専門とするがんの診療状況","別紙3自施設で対応しないもの","別紙4緩和メンバー","別紙5相談支援センター体制","別紙6連携協力体制","別紙7院内がん登録","別紙8チーム医療の提供体制","別紙9医療安全・第三者評価","別紙10歯科との連携","事務局使用（発出時は非表示にすること）"],"not_rendered":{"charts":0,"images":0,"macros":1,"external_links":1,"defined_names":18,"comments":0,"pivot_tables":0},"unopened":[],"bounds":{"document_bytes":16777216,"sheet_cells":100000,"rows_first":2000,"rows_last":500,"rows_between":2000,"halvings":0,"cell_chars":16384,"cell_head_chars":4096},"cells_cut":0,"cells_raw":0,"read":"whole","date_system":"1900"}

{"sheet":"入力時の注意事項","index":0,"n_rows":22,"n_cols":7,"rows_kept":22,"cut":false,"hidden":false,"merged":[[8,2,8,6],[9,2,9,6],[7,2,7,6],[0,0,0,7],[1,1,1,6],[2,2,2,6],[5,2,5,6],[6,2,6,6],[11,2,11,6],[12,2,12,6],[15,2,15,6],[20,2,20,6],[21,2,21,6],[16,2,16,6]]}
["香川県がん診療連携協力病院　新規（更新）指定申請書の入力について\n以下をご注意ください。"]
[null,"　要件の確認ができなくなるため、様式からの改変（行や列の挿入、シートの追加、シート名の変更、セルやシートの削除など）をしないでください。\n　また、改変を防ぐためシートとブックにはパスワードが設定されています。指定のセルにしか入力ができません。指定したセルとコメントパスワードを解除した作業用ファイルによる提出は受け付けません。"]
[null,null,"※セル保護の誤りや、判定式の誤りなど入力上の不具合があれば、ご連絡ください。修正いたします。"]
[]
["■","記入方法について"]
[null,null,"・「表紙」シートに病院名を記載してください。なお、記載する病院名はセル選択時に表示されるメッセージを確認してください。各シートに自動転記されます。"]
[null,null,"・「様式2（連絡先）」をご記入ください。"]
[null,null,"・「様式3（全般事項）」シートの「１．申請区分」で、「新規指定」を選択してください。また、「小児がん連携病院」の指定の有無を選択してください。「２．病院概要」以降を記入ください。"]
[null,null,"・「様式４（機能別）」について、各項目を記入ください。"]
[null,null,"※一定の水準以上の数字を記入された場合は、確認を促すアラートが表示されます。アラートが表示された場合は、入力された数字をご確認の上で記載してください。数字に問題なければアラートが表示された場合でもそのまま記載していただいて問題ありません。"]
[null,"□","表紙"]
[null,null,"・一覧で各シートの入力状況を確認することができます。「未入力あり」の文字がある場合は、そのシートを確認してください。"]
[null,null,"※ご提出前には表紙を見て、「未入力」の文字がないか、別添ファイルの添付漏れがないか、確認をしてください。"]
[]
[null,"□","各シート"]
[null,null,"・表紙、様式４及び別紙については、印刷範囲内に入力チェック欄が機能するシートがあります。\n　「未入力」などの文字がある場合は、その箇所を確認してください。"]
[null,null,"・様式４（機能別）では、一部、回答によって、その後に続く項目が「必須」等か「要件に該当なし」かが\n　自動的に設定される箇所があります（「Ａ（またはB、C）／-」となっている箇所です）。"]
[null,null,"・入力セルには3種類あります。入力規則の設定を守って記入してください。"]
[]
[null,null,"自由記載",null,"数値入力",null,"選択肢から入力"]
[null,null,"・印刷範囲外にメモ欄を設けています。データの抽出対象ではありませんが、提出前には個人情報などが残っていないか確認してください。"]
[null,null,"※様式3（連絡先）以外は公開する可能性があります。記載内容に個人情報などがないように注意してください。"]

{"sheet":"表紙","index":1,"n_rows":24,"n_cols":8,"rows_kept":24,"cut":false,"hidden":false,"merged":[[2,8,2,14],[1,4,1,5],[12,4,12,5],[4,4,4,5],[14,0,22,0],[2,4,2,5]]}
[null,"＜提出資料一覧＞"]
[null,null,null,"病院名（正式名称）",null,null,null,"※印刷範囲外です。メモ書きとして使えますが、提出前には個人情報などの記載がないことをご確認ください。"]
[null,null,null,"病院名（略称）"]
[]
[null,null,null,"申請区分",{"$f":"+'様式3（全般事項）'!G5","v":"新規指定"}]
[]
[]
[null,"入力済／未入力あり",null,"【香川県がん診療連携協力病院　新規（更新）指定申請書（様式２～４）】"]
[null,{"$f":"IF(OR('様式2（連絡先）'!B3=\"\",'様式2（連絡先）'!B4=\"\",'様式2（連絡先）'!B5=\"\",'様式2（連絡先）'!B6=\"\",'様式2（連絡先）'!B7=\"\",'様式2（連絡先）'!B8=\"\"),\"未入力あり\",\"入力済\")","v":"未入力あり"},null,"様式2",null,"連絡先"]
[null,{"$f":"IF('様式3（全般事項）'!V1=\"✔チェック欄に未入力なし\",\"入力済\",\"未入力あり\")","v":"未入力あり"},null,"様式3",null,"全般事項"]
[null,{"$f":"IF('様式４(機能別)'!K2=\"未入力の必須要件があります。\",\"未入力あり\",\"入力済\")","v":"未入力あり"},null,"様式4",null,"機能別"]
[]
[null,null,null,"【添付資料】","各別紙に「記載の有無」「別添資料の有無」をチェックする欄があり、このシートに反映されます。"]
[null,"入力済／未入力あり／不要","別添資料\n有無","資料番号","対象","内容"]
["本体ファイル",{"$f":"IF(別紙1未充足要件!F2=\"\",\"未入力\",別紙1未充足要件!F2)","v":"不要"},null,"別紙1","未充足要件がある施設のみ","様式4（機能別）の該当指定要件のAのうち満たしていない項目について\n※最初は「不要」と表示されます。未充足要件がある場合は必ず別紙１上部のボタンを押下し、該当要件を抽出・記載してください。"]
[null,{"$f":"IF(別紙2専門とするがんの診療状況!H2=\"\",\"未入力\",別紙2専門とするがんの診療状況!H2)","v":"未入力あり"},null,"別紙2","全ての施設","専門とするがんの診療状況"]
[null,{"$f":"IF(別紙3自施設で対応しないもの!K2=\"\",\"未入力\",別紙3自施設で対応しないもの!K2)","v":"未入力あり"},null,"別紙3","全ての施設","我が国に多いがんに対して、自施設で対応しない診療内容"]
[null,{"$f":"IF(別紙4緩和メンバー!F3=\"\",\"未入力\",別紙4緩和メンバー!F3)","v":"未入力あり"},null,"別紙4","全ての施設","緩和ケアチームのメンバー"]
[null,{"$f":"IF(別紙5相談支援センター体制!H2=\"\",\"未入力\",別紙5相談支援センター体制!H2)","v":"未入力あり"},null,"別紙5","全ての施設","がん相談支援センター等の体制"]
[null,{"$f":"IF(別紙6連携協力体制!H2=\"\",\"未入力\",別紙6連携協力体制!H2)","v":"未入力あり"},null,"別紙6","全ての施設","院内外のがん患者等からの相談に対応するための連携協力体制の状況"]
[null,{"$f":"IF(別紙7院内がん登録!G2=\"\",\"未入力\",別紙7院内がん登録!G2)","v":"未入力あり"},null,"別紙7","全ての施設","院内がん登録部門の体制"]
[null,{"$f":"IF(別紙8チーム医療の提供体制!O2=\"\",\"未入力\",別紙8チーム医療の提供体制!O2)","v":"未入力あり"},null,"別紙8","全ての施設","チーム医療の提供体制"]
[null,{"$f":"IF(別紙9医療安全・第三者評価!I2=\"\",\"未入力\",別紙9医療安全・第三者評価!I2)","v":"未入力あり"},null,"別紙9","全ての施設","医療安全管理・第三者評価の状況"]
[null,{"$f":"IF(別紙10歯科との連携!I2=\"\",\"未入力あり\",別紙10歯科との連携!I2)","v":"未入力あり"},null,"別紙10","全ての施設","歯科との連携"]

{"sheet":"様式2（連絡先）","index":2,"n_rows":11,"n_cols":4,"rows_kept":11,"cut":false,"hidden":false,"merged":[[0,0,0,1]]}
["香川県がん診療連携協力病院　新規（更新）指定申請書（様式２）\n問い合わせ先"]
[]
["病院名\n（表紙の病院名を反映）",{"$f":"+表紙!E3","v":0},null,"※印刷範囲外です。メモ書きとして使えますが、提出前には個人情報などの記載がないことをご確認ください。"]
["保険医療機関コード（10桁）","37"]
["所属部署名・役職"]
["担当者名"]
["電話"]
["e-mail"]
[]
[]
[null,null,"印刷範囲外"]

{"sheet":"様式3（全般事項）","index":3,"n_rows":145,"n_cols":29,"rows_kept":145,"cut":false,"hidden":false,"merged":[[34,3,34,19],[0,21,3,22],[14,25,24,25],[17,8,17,19],[19,7,19,19],[20,7,20,19],[1,0,1,20],[10,7,10,19],[22,7,22,19],[21,7,21,19],[18,7,18,19],[2,0,2,20],[12,7,12,19],[16,8,16,19],[23,7,23,19],[79,3,79,17],[99,3,99,9],[100,4,100,9],[91,4,91,9],[72,25,73,25]]}
[null,null,null,null,null,null,null,null,null,null,null,null,null,null,null,null,null,null,null,null,null,{"$f":"IF(COUNTIF((W5:W145),\"未入力あり\"),\"※このシートには未入力があります。「未入力あり」の行を確認してください。↓\",\"✔チェック欄に未入力なし\")","v":"※このシートには未入力があります。「未入力あり」の行を確認してください。↓"}]
["香川県がん診療連携協力病院　新規（更新）指定申請書（様式３）"]
[{"$f":"+'事務局使用（発出時は非表示にすること）'!B3&\"について記載\"","v":"令和５年９月１日時点について記載"},null,null,null,null,null,null,null,null,null,null,null,null,null,null,null,null,null,null,null,null,null,null,null,"※印刷範囲外です。メモ書きとして使えますが、提出前には個人情報などの記載がないことをご確認ください。"]
[]
["１．申請区分",null,null,null,null,null,"新規指定","（新規指定／更新指定）",null,null,null,null,null,null,null,null,null,null,null,null,null,null,{"$f":"IF(G5=\"\",\"未入力あり\",\"✔\")","v":"✔"}]
[null,null,null,null,null,"小児がん連携病院の指定を受けている",null,"（指定有り／指定なし）",null,null,null,null,null,null,null,null,null,null,null,null,null,null,{"$f":"IF(G6=\"\",\"未入力あり\",\"✔\")","v":"未入力あり"}]
[]
[]
[]
["２．病院概要"]
["(1)病院名　(表紙シートの病院名を反映）",null,null,null,null,null,null,{"$f":"表紙!E3","v":0},null,null,null,null,null,null,null,null,null,null,null,null,null,{"$f":"+ROW()","v":11}]
[null,null,null,null,null,null,null,null,null,null,null,null,null,null,null,null,null,null,null,null,null,{"$f":"+ROW()","v":12}]
[null,"よみがな",null,null,null,null,null,null,null,null,null,null,null,null,null,null,null,null,null,null,null,13]
[null,null,null,null,null,null,null,null,null,null,null,null,null,null,null,null,null,null,null,null,null,14]
["(2)所在地等",null,null,null,null,null,null,null,null,null,null,null,null,null,null,null,null,null,null,null,null,15]
[null,"郵便番号",null,null,null,null,"〒",null,null,null,null,null,null,null,null,null,null,null,null,null,null,16]
[null,"住所",null,null,null,null,null,"香川県",null,null,null,null,null,null,null,null,null,null,null,null,null,17]
[null,"よみがな",null,null,null,null,null,null,null,null,null,null,null,null,null,null,null,null,null,null,null,18]
[null,"電話番号（代表）",null,null,null,null,null,null,null,null,null,null,null,null,null,null,null,null,null,null,null,19]
[null,"FAX番号（代表）",null,null,null,null,null,null,null,null,null,null,null,null,null,null,null,null,null,null,null,20]
[null,"e-mail（代表）",null,null,null,null,null,null,null,null,null,null,null,null,null,null,null,null,null,null,null,21]
[null,"HPアドレス",null,null,null,null,null,null,null,null,null,null,null,null,null,null,null,null,null,null,null,22]
[null,"所属するがん医療圏",null,null,null,null,null,null,null,null,null,null,null,null,null,null,null,null,null,null,null,23]
[null,"所属する２次医療圏",null,null,null,null,null,null,null,null,null,null,null,null,null,null,null,null,null,null,null,24]
[null,null,null,null,null,null,null,null,null,null,null,null,null,null,null,null,null,null,null,null,null,25]
["(3)病床数等",null,null,null,null,null,null,null,null,null,null,null,null,null,null,null,null,null,null,null,null,26]
[null,"①病床数",null,null,null,null,null,null,null,null,null,null,null,null,null,null,null,null,null,null,null,27,null,null,null,"min","MAX"]
[null,null,"総数",null,null,null,null,null,null,null,null,null,null,null,null,null,null,null,"床",null,null,28,{"$f":"IF(R28=\"\",\"未入力あり\",\"✔\")","v":"未入力あり"},null,null,0,1300]
[null,null,"　うち療養病床",null,null,null,null,null,null,null,null,null,null,null,null,null,null,null,"床",null,null,29,"未入力あり",null,null,0,40]
[null,null,"　うち一般病床",null,null,null,null,null,null,null,null,null,null,null,null,null,null,null,"床",null,null,30,"未入力あり",null,null,0,1200]
[null,null,"　うち特別療養環境室としている病床",null,null,null,null,null,null,null,null,null,null,null,null,null,null,null,"床",null,null,31,"未入力あり",null,null,0,420.34195260145873]
[null,null,"　うち集中治療室（※特定集中治療室管理料を届け出ているものに限る）",null,null,null,null,null,null,null,null,null,null,null,null,null,null,null,"床",null,null,32,"未入力あり",null,null,0,100]
[null,"②外来化学療法室",null,null,null,null,null,null,null,null,null,null,null,null,null,null,null,null,"床",null,null,37,{"$f":"IF(R33=\"\",\"未入力あり\",\"✔\")","v":"未入力あり"},null,null,0,100]
["(4)職員数",null,null,null,null,null,null,null,null,null,null,null,null,null,null,null,"総職員数（事務職員含む、常勤職員の人数）",null,"人",null,null,34,"未入力あり",null,null,0,3000]
[null,null,null,"・ 常勤：原則として病院で定めた勤務時間の全てを勤務する者をいう。病院で定めた医師の１週間の勤務時間が、32時間未満の場合は、\n　　　　　32時間以上勤務している者を常勤とし、その他は非常勤とする。",null,null,null,null,null,null,null,null,null,null,null,null,null,null,null,null,null,35]
[null,null,null,null,null,null,null,null,null,null,null,null,null,null,null,null,null,null,null,null,null,36]
[null,"①職種別内訳",null,null,null,null,null,null,null,null,null,null,null,null,null,null,null,null,null,null,null,37]
[null,null,null,"※複数の資格を有する者は、主たる業務に係る職種についてのみ記載。",null,null,null,null,"非常勤",null,null,null,null,null,null,null,null,"常勤",null,null,null,38]
[null,null,null,null,null,null,null,null,"※（常勤換算）",null,null,null,null,null,null,null,null,null,null,null,null,39]
[null,null,"医師",null,null,null,null,null,null,"人",null,null,null,null,null,null,null,null,"人",null,null,40,{"$f":"IF(OR(I40=\"\",R40=\"\"),\"未入力あり\",\"✔\")","v":"未入力あり"},null,null,0,220,0,700]
[null,null,"歯科医師",null,null,null,null,null,null,"人",null,null,null,null,null,null,null,null,"人",null,null,41,{"$f":"IF(OR(I41=\"\",R41=\"\"),\"未入力あり\",\"✔\")","v":"未入力あり"},null,null,0,30,0,70]
[null,null,"薬剤師",null,null,null,null,null,null,"人",null,null,null,null,null,null,null,null,"人",null,null,42,"未入力あり",null,null,0,10,0,100]
[null,null,"保健師",null,null,null,null,null,null,"人",null,null,null,null,null,null,null,null,"人",null,null,43,"未入力あり",null,null,0,10,0,50]
[null,null,"助産師",null,null,null,null,null,null,"人",null,null,null,null,null,null,null,null,"人",null,null,44,"未入力あり",null,null,0,10,0,90]
[null,null,"看護師",null,null,null,null,null,null,"人",null,null,null,null,null,null,null,null,"人",null,null,45,"未入力あり",null,null,0,70,0,1400]
[null,null,"准看護師",null,null,null,null,null,null,"人",null,null,null,null,null,null,null,null,"人",null,null,46,"未入力あり",null,null,0,10,0,20]
[null,null,"理学療法士",null,null,null,null,null,null,"人",null,null,null,null,null,null,null,null,"人",null,null,47,"未入力あり",null,null,0,10,0,90]
[null,null,"作業療法士",null,null,null,null,null,null,"人",null,null,null,null,null,null,null,null,"人",null,null,48,"未入力あり",null,null,0,10,0,30]
[null,null,"視能訓練士",null,null,null,null,null,null,"人",null,null,null,null,null,null,null,null,"人",null,null,49,"未入力あり",null,null,0,10,0,20]
[null,null,"言語聴覚士",null,null,null,null,null,null,"人",null,null,null,null,null,null,null,null,"人",null,null,50,"未入力あり",null,null,0,10,0,20]
[null,null,"義肢装具士",null,null,null,null,null,null,"人",null,null,null,null,null,null,null,null,"人",null,null,51,"未入力あり",null,null,0,10,0,10]
[null,null,"歯科衛生士",null,null,null,null,null,null,"人",null,null,null,null,null,null,null,null,"人",null,null,52,"未入力あり",null,null,0,10,0,20]
[null,null,"歯科技工士",null,null,null,null,null,null,"人",null,null,null,null,null,null,null,null,"人",null,null,53,"未入力あり",null,null,0,10,0,10]
[null,null,"診療放射線技師",null,null,null,null,null,null,"人",null,null,null,null,null,null,null,null,"人",null,null,54,"未入力あり",null,null,0,10,0,80]
[null,null,"臨床検査技師",null,null,null,null,null,null,"人",null,null,null,null,null,null,null,null,"人",null,null,55,"未入力あり",null,null,0,20,0,120]
[null,null,"衛生検査技師",null,null,null,null,null,null,"人",null,null,null,null,null,null,null,null,"人",null,null,56,"未入力あり",null,null,0,10,0,10]
[null,null,"臨床工学技士",null,null,null,null,null,null,"人",null,null,null,null,null,null,null,null,"人",null,null,57,"未入力あり",null,null,0,10,0,50]
[null,null,"管理栄養士",null,null,null,null,null,null,"人",null,null,null,null,null,null,null,null,"人",null,null,58,"未入力あり",null,null,0,10,0,30]
[null,null,"栄養士",null,null,null,null,null,null,"人",null,null,null,null,null,null,null,null,"人",null,null,59,"未入力あり",null,null,0,10,0,10]
[null,null,"社会福祉士",null,null,null,null,null,null,"人",null,null,null,null,null,null,null,null,"人",null,null,60,"未入力あり",null,null,0,10,0,20]
[null,null,"精神保健福祉士",null,null,null,null,null,null,"人",null,null,null,null,null,null,null,null,"人",null,null,61,"未入力あり",null,null,0,10,0,10]
[null,null,"公認心理師",null,null,null,null,null,null,"人",null,null,null,null,null,null,null,null,"人",null,null,62,"未入力あり",null,null,0,10,0,10]
[null,null,"介護福祉士",null,null,null,null,null,null,"人",null,null,null,null,null,null,null,null,"人",null,null,63,"未入力あり",null,null,0,10,0,30]
[null,null,"救命救急士",null,null,null,null,null,null,"人",null,null,null,null,null,null,null,null,"人",null,null,64,{"$f":"IF(OR(I64=\"\",R64=\"\"),\"未入力あり\",\"✔\")","v":"未入力あり"},null,null,0,10,0,30]
[null,null,null,null,null,null,null,null,null,null,null,null,null,null,null,null,null,null,null,null,null,65]
["(5)その他　",null,null,null,null,null,null,null,null,null,null,null,null,null,null,null,null,null,null,null,null,{"$f":"+ROW()","v":66}]
[null,"①夜間（深夜も含む）救急対応の可否",null,null,null,null,null,null,null,null,null,null,null,null,null,null,null,null,"（可／否）",null,null,67,{"$f":"IF(R67=\"\",\"未入力あり\",\"✔\")","v":"未入力あり"}]
[null,"②各種委員会の設置状況",null,null,null,null,null,null,null,null,null,null,null,null,null,null,null,null,null,null,null,68]
[null,null,"倫理審査委員会",null,null,null,null,null,"（あり／なし）",null,null,null,"年",null,{"$f":"+\"回開催（期間：\"&'事務局使用（発出時は非表示にすること）'!B4&\"）\"","v":"回開催（期間：令和４年１月１日～12月31日）"},null,null,null,null,null,null,69,{"$f":"IF(OR(H69=\"\",N69=\"\"),\"未入力あり\",\"✔\")","v":"未入力あり"},null,null,0,40]
[null,null,"治験審査委員会",null,null,null,null,null,"（あり／なし）",null,null,null,"年",null,{"$f":"+\"回開催（期間：\"&'事務局使用（発出時は非表示にすること）'!B4&\"）\"","v":"回開催（期間：令和４年１月１日～12月31日）"},null,null,null,null,null,null,70,{"$f":"IF(OR(H70=\"\",N70=\"\"),\"未入力あり\",\"✔\")","v":"未入力あり"},null,null,0,30]
[null,null,"医療安全委員会",null,null,null,null,null,"（あり／なし）",null,null,null,"年",null,{"$f":"+\"回開催（期間：\"&'事務局使用（発出時は非表示にすること）'!B4&\"）\"","v":"回開催（期間：令和４年１月１日～12月31日）"},null,null,null,null,null,null,{"$f":"+ROW()","v":71},{"$f":"IF(OR(H71=\"\",N71=\"\"),\"未入力あり\",\"✔\")","v":"未入力あり"},null,null,0,30]
[null,null,null,null,null,null,null,null,null,null,null,null,null,null,null,null,null,null,null,null,null,72]
["(6)患者数・診療件数の状況",null,null,null,null,null,null,null,null,null,null,null,null,null,null,null,null,null,null,null,null,73]
[null,"①","患者数等",null,null,{"$f":"+\"（期間：\"&'事務局使用（発出時は非表示にすること）'!B4&\"）\"","v":"（期間：令和４年１月１日～12月31日）"},null,null,null,null,null,null,null,null,null,null,null,null,null,null,null,74]
[null,null,null,"年間入院患者延べ数※１",null,null,null,null,null,null,null,null,null,null,null,null,null,null,"人",null,null,75,{"$f":"IF(R75=\"\",\"未入力あり\",\"✔\")","v":"未入力あり"},null,null,0,170000]
[null,null,null,null,"年間入院がん患者延べ数※２",null,null,null,null,null,null,null,null,null,null,null,null,null,"人",null,null,76,{"$f":"IF(R76=\"\",\"未入力あり\",\"✔\")","v":"未入力あり"},null,null,0,55000]
[null,null,null,null,"年間入院患者延べ数に占めるがん患者の割合",null,null,null,null,null,null,null,null,null,null,null,null,null,"％",null,null,77]
[null,null,null,"年間外来がん患者延べ数※3",null,null,null,null,null,null,null,null,null,null,null,null,null,null,"人",null,null,78,{"$f":"IF(R78=\"\",\"未入力あり\",\"✔\")","v":"未入力あり"},null,null,0,270000]
[null,null,null,"年間院内死亡がん患者数",null,null,null,null,null,null,null,null,null,null,null,null,null,null,"人",null,null,79,{"$f":"IF(R79=\"\",\"未入力あり\",\"✔\")","v":"未入力あり"},null,null,0,640]
[null,null,null,"※1 例えば、同一患者が当月中に2回入院した場合は2件とする。入院した患者がその日のうちに退院あるいは死亡した場合も1日として計上する。\n※2 がん患者数等は、がんを主たる病名に確定診断されたものについて計上すること。\n※3 年間外来がん患者延べ数は、当年の新来、再来がん患者及び往診、巡回診療、健康診断、人間ドック等を行い、診療録の作成または記載の追加を行ったがん患者の延べ数を記入する。同一患者が2つ以上の診療科を受診し、それぞれの診療科で診療録の作成または記載の追加を行った場合、それぞれの外来患者として計上する。",null,null,null,null,null,null,null,null,null,null,null,null,null,null,null,null,null,80]
[null,null,null,null,null,null,null,null,null,null,null,null,null,null,null,null,null,null,null,null,null,81]
[null,"②","検査等の実施状況",null,null,null,null,null,null,null,null,null,null,null,null,null,null,null,null,null,null,82]
[null,null,"ア","病理診断の件数",null,null,{"$f":"+\"（期間：\"&'事務局使用（発出時は非表示にすること）'!B4&\"）\"","v":"（期間：令和４年１月１日～12月31日）"},null,null,null,null,null,null,null,null,null,null,null,null,null,null,83]
[null,null,null,null,"病理組織診断",null,null,null,null,null,null,null,null,null,null,null,null,null,"件",null,null,84,{"$f":"IF(R84=\"\",\"未入力あり\",\"✔\")","v":"未入力あり"},null,null,0,21000]
[null,null,null,null,"病理細胞診断",null,null,null,null,null,null,null,null,null,null,null,null,null,"件",null,null,85,{"$f":"IF(R85=\"\",\"未入力あり\",\"✔\")","v":"未入力あり"},null,null,0,16000]
[null,null,null,null,"病理組織迅速組織顕微鏡検査",null,null,null,null,null,null,null,null,null,null,null,null,null,"件",null,null,86,{"$f":"IF(R86=\"\",\"未入力あり\",\"✔\")","v":"未入力あり"},null,null,0,2300]
[null,null,null,null,null,null,null,null,null,null,null,null,null,null,null,null,null,null,null,null,null,87]
["(7)各治療の状況について",null,null,null,null,null,null,null,null,null,null,null,null,null,null,null,null,null,null,null,null,88]
[null,"手術等の状況",null,null,null,null,null,null,null,null,null,null,null,null,null,null,null,null,null,null,null,89]
[null,null,{"$f":"\"大腸がん・肺がん・胃がん・乳がん・肝がんに関する悪性腫瘍の手術件数\"&\"（期間：\"&'事務局使用（発出時は非表示にすること）'!B4&\"）\"","v":"大腸がん・肺がん・胃がん・乳がん・肝がんに関する悪性腫瘍の手術件数（期間：令和４年１月１日～12月31日）"},null,null,null,null,null,null,null,null,null,null,null,null,null,null,null,null,null,null,90]
[null,null,null,"大腸がん（C18$、C19、C20、D01.0、D01.1、D01.2）の手術件数",null,null,null,null,null,null,null,null,null,null,null,null,null,null,null,null,null,91]
[null,null,null,null,"開腹手術　K7193、K739$、K740$\n\n",null,null,null,null,null,null,null,null,null,null,null,null,null,"件",null,null,92,{"$f":"IF(R92=\"\",\"未入力あり\",\"✔\")","v":"未入力あり"},null,null,0,100]
[null,null,null,null,"腹腔鏡下手術　K719-3、K740-2$\n",null,null,null,null,null,null,null,null,null,null,null,null,null,"件",null,null,93,"未入力あり",null,null,0,300]
[null,null,null,null," ","うち、内視鏡手術用支援機器を用いるもの（ロボット支援手術）",null,null,null,null,null,null,null,null,null,null,null,null,"件",null,null,94,{"$f":"IF(R94=\"\",\"未入力あり\",\"✔\")","v":"未入力あり"},null,null,0,200]
[null,null,null,null,"内視鏡手術　K721$、K721-4、K739-2、Ｋ739-3",null,null,null,null,null,null,null,null,null,null,null,null,null,"件",null,null,95,"未入力あり",null,null,0,1100]
[null,null,null,"肺がん（C34$、D02.2）の手術件数",null,null,null,null,null,null,null,null,null,null,null,null,null,null,null,null,null,96]
[null,null,null,null,"開胸手術　K511$、K514$、K518$",null,null,null,null,null,null,null,null,null,null,null,null,null,"件",null,null,97,{"$f":"IF(R97=\"\",\"未入力あり\",\"✔\")","v":"未入力あり"},null,null,0,90]
[null,null,null,null,"胸腔鏡下手術　K514-2$",null,null,null,"　",null,null,null,null,null,null,null,null,null,"件",null,null,98,"未入力あり",null,null,0,300]
[null,null,null,null," ","うち、内視鏡手術用支援機器を用いるもの（ロボット支援手術）",null,null,null,null,null,null,null,null,null,null,null,null,"件",null,null,99,"未入力あり",null,null,0,200]
[null,null,null,"胃がん（C16$、D00.2）の手術件数",null,null,null,null,null,null,null,null,null,null,null,null,null,null,null,null,null,100]
[null,null,null,null,"開腹手術　K654-2、K6552、K655-42、K6572",null,null,null,null,null,null,null,null,null,null,null,null,null,"件",null,null,101,{"$f":"IF(R101=\"\",\"未入力あり\",\"✔\")","v":"未入力あり"},null,null,0,70]
[null,null,null,null,"腹腔鏡下手術　K654-3$、K655-22、K655-52、K655-23、K655-53、K657-22、K657-24、K657-23",null,null,null,null,null,null,null,null,null,null,null,null,null,"件",null,null,102,"未入力あり",null,null,0,130]
[null,null,null,null,"　　うち、腹腔鏡下手術（内視鏡手術用支援機器を用いるもの（ロボット支援手術））　K655-23、K655-53、K657-24",null,null,null,null,null,null,null,null,null,null,null,null,null,"件",null,null,103,{"$f":"IF(R103=\"\",\"未入力あり\",\"✔\")","v":"未入力あり"},null,null,0,100]
[null,null,null,null,"内視鏡手術　粘膜切除術（EMR）K6531",null,null,null,"　",null,null,null,null,null,null,null,null,null,"件",null,null,104,"未入力あり",null,null,0,40]
[null,null,null,null,"内視鏡手術　粘膜下層剥離術（ESD）K6532",null,null,null,null,null,null,null,null,null,null,null,null,null,"件",null,null,105,"未入力あり",null,null,0,220]
[null,null,null,"乳がん（C50$、D05$）の手術件数",null,null,null,null,"　",null,null,null,null,null,null,null,null,null,null,null,null,106]
[null,null,null,null,"手術　K476$",null,null,null,"　",null,null,null,null,null,null,null,null,null,"件",null,null,107,{"$f":"IF(R107=\"\",\"未入力あり\",\"✔\")","v":"未入力あり"},null,null,0,540]
[null,null,null,null,"乳癌冷凍凝固摘出術　K475-2",null,null,null,"　",null,null,null,null,null,null,null,null,null,"件",null,null,108,"未入力あり",null,null,0,10]
[null,null,null,null,"乳腺腫瘍摘出術（生検）　K474$",null,null,null,"　",null,null,null,null,null,null,null,null,null,"件",null,null,109,"未入力あり",null,null,0,40]
[null,null,null,null,"乳腺腫瘍画像ガイド下吸引術　K474-3$",null,null,null,"　",null,null,null,null,null,null,null,null,null,"件",null,null,110,"未入力あり",null,null,0,200]
[null,null,null,null,"乳房再建術（乳房切除後）　二次的に行うもの　K476-32",null,null,null,null,null,null,null,null,null,null,null,null,null,"件",null,null,111,"未入力あり",null,null,0,40]
[null,null,null,"肝臓がん（C22$、D01.5）の手術件数",null,null,null,null,"　",null,null,null,null,null,null,null,null,null,null,null,null,112]
[null,null,null,null,"開腹手術　K695$\n",null,null,null,null,null,null,null,null,null,null,null,null,null,"件",null,null,113,{"$f":"IF(R113=\"\",\"未入力あり\",\"✔\")","v":"未入力あり"},null,null,0,70]
[null,null,null,null,"腹腔鏡下手術　K695-2$",null,null,null,null,null,null,null,null,null,null,null,null,null,"件",null,null,114,"未入力あり",null,null,0,60]
[null,null,null,null," ","うち、内視鏡手術用支援機器を用いるもの（ロボット支援手術）",null,null,null,null,null,null,null,null,null,null,null,null,"件",null,null,115,{"$f":"IF(R115=\"\",\"未入力あり\",\"✔\")","v":"未入力あり"},null,null,0,50]
[null,null,null,null,"マイクロ波凝固法　K697-2$　　",null,null,null,null,null,null,null,null,null,null,null,null,null,"件",null,null,116,"未入力あり",null,null,0,70]
[null,null,null,null,"ラジオ波焼灼療法　K697-3$",null,null,null,null,null,null,null,null,null,null,null,null,null,"件",null,null,117,"未入力あり",null,null,0,140]
[null,"放射線治療の状況",null,null,null,null,null,null,null,null,null,null,null,null,null,null,null,null,null,null,null,118]
[null,"　※以下、放射線治療件数に関する項目は、必ず放射線治療責任医師の確認を取って記入すること。",null,null,null,null,null,null,null,null,null,null,null,null,null,null,null,null,null,null,null,119]
[null,null,{"$f":"\"全てのがんを対象としたのべ患者数　\"&\"（期間：\"&'事務局使用（発出時は非表示にすること）'!B4&\"の間に放射線治療を開始した患者数）\"","v":"全てのがんを対象としたのべ患者数　（期間：令和４年１月１日～12月31日の間に放射線治療を開始した患者数）"},null,null,null,null,null,null,null,null,null,null,null,null,null,null,null,null,null,null,120]
[null,null,null,"体外照射",null,null,null,null,null,null,null,null,null,null,null,null,null,null,"人",null,null,121,{"$f":"IF(R121=\"\",\"未入力あり\",\"✔\")","v":"未入力あり"},null,null,0,2400]
[null,null,null,null,"定位照射（脳）",null,null,null,null,null,null,null,null,null,null,null,null,null,"人",null,null,122,"未入力あり",null,null,0,200]
[null,null,null,null,"定位照射（体幹部）",null,null,null,null,null,null,null,null,null,null,null,null,null,"人",null,null,123,"未入力あり",null,null,0,150]
[null,null,null,null,"強度変調放射線治療（IMRT）",null,null,null,null,null,null,null,null,null,null,null,null,null,"人",null,null,124,"未入力あり",null,null,0,900]
[null,null,null,null,"粒子線治療（重粒子線、陽子線治療）",null,null,null,null,null,null,null,null,null,null,null,null,null,"人",null,null,125,"未入力あり",null,null,0,200]
[null,null,null,"密封小線源治療",null,null,null,null,null,null,null,null,null,null,null,null,null,null,"人",null,null,126,"未入力あり",null,null,0,120]
[null,null,null,"核医学治療",null,null,null,null,null,null,null,null,null,null,null,null,null,null,"人",null,null,127,"未入力あり",null,null,0,90]
[null,null,{"$f":"\"大腸がん・肺がん・胃がん・乳がん・肝がんを対象としたのべ患者数\"&\"（期間：\"&'事務局使用（発出時は非表示にすること）'!B4&\"の間に放射線治療を開始した患者数）\"","v":"大腸がん・肺がん・胃がん・乳がん・肝がんを対象としたのべ患者数（期間：令和４年１月１日～12月31日の間に放射線治療を開始した患者数）"},null,null,null,null,null,null,null,null,null,null,null,null,null,null,null,null,null,null,128]
[null,null,null,"※原発巣に記載してください。",null,null,null,null,null,null,null,null,null,null,null,null,null,null,null,null,null,129]
[null,null,null,"大腸がん",null,null,null,null,null,null,null,null,null,null,null,null,null,null,"人",null,null,130,{"$f":"IF(R130=\"\",\"未入力あり\",\"✔\")","v":"未入力あり"},null,null,0,80]
[null,null,null,"肺がん",null,null,null,null,null,null,null,null,null,null,null,null,null,null,"人",null,null,131,{"$f":"IF(R131=\"\",\"未入力あり\",\"✔\")","v":"未入力あり"},null,null,0,400]
[null,null,null,"胃がん",null,null,null,null,null,null,null,null,null,null,null,null,null,null,"人",null,null,132,"未入力あり",null,null,0,30]
[null,null,null,"乳がん",null,null,null,null,null,null,null,null,null,null,null,null,null,null,"人",null,null,{"$f":"+ROW()","v":133},{"$f":"IF(R133=\"\",\"未入力あり\",\"✔\")","v":"未入力あり"},null,null,0,700]
[null,null,null,"肝がん",null,null,null,null,null,null,null,null,null,null,null,null,null,null,"人",null,null,134,"未入力あり",null,null,0,50]
[null,{"$f":"\"緩和ケアチームに対する新規診療症例の状況（重複可）\"&\"（\"&'事務局使用（発出時は非表示にすること）'!B4&\"）\"","v":"緩和ケアチームに対する新規診療症例の状況（重複可）（令和４年１月１日～12月31日）"},null,null,null,null,null,null,null,null,null,null,null,null,null,null,null,null,null,null,null,135]
[null,null,"身体症状の緩和を行った症例数",null,null,null,null,null,null,null,null,null,null,null,null,null,null,null,"人",null,null,136,{"$f":"IF(R136=\"\",\"未入力あり\",\"✔\")","v":"未入力あり"},null,null,0,730]
[null,null,"精神症状の緩和を行った症例数",null,null,null,null,null,null,null,null,null,null,null,null,null,null,null,"人",null,null,137,"未入力あり",null,null,0,510]
[null,null,"社会的苦痛に対する緩和を行った症例数",null,null,null,null,null,null,null,null,null,null,null,null,null,null,null,"人",null,null,138,"未入力あり",null,null,0,400]
[null,{"$f":"\"自施設で実施したがんの治療に際する妊孕性温存治療の状況\"&\"（\"&'事務局使用（発出時は非表示にすること）'!B4&\"）\"","v":"自施設で実施したがんの治療に際する妊孕性温存治療の状況（令和４年１月１日～12月31日）"},null,null,null,null,null,null,null,null,null,null,null,null,null,null,null,null,null,null,null,139]
[null,null,"がんの治療に際する妊孕性温存目的で精子凍結を行った患者の人数",null,null,null,null,null,null,null,null,null,null,null,null,null,null,null,"人",null,null,140,{"$f":"IF(R140=\"\",\"未入力あり\",\"✔\")","v":"未入力あり"},null,null,0,100]
[null,null,"　上記のうち、精巣内精子採取術（Onco-TESE）を行った患者の人数",null,null,null,null,null,null,null,null,null,null,null,null,null,null,null,"人",null,null,141,{"$f":"IF(R141=\"\",\"未入力あり\",\"✔\")","v":"未入力あり"},null,null,0,100]
[null,null,"がんの治療に際する妊孕性温存目的で未受精卵子の凍結保存を行った患者の人数",null,null,null,null,null,null,null,null,null,null,null,null,null,null,null,"人",null,null,142,"未入力あり",null,null,0,100]
[null,null,"がんの治療に際する妊孕性温存目的で受精卵（胚）の凍結保存を行った患者の人数",null,null,null,null,null,null,null,null,null,null,null,null,null,null,null,"人",null,null,143,"未入力あり",null,null,0,100]
[null,null,"がんの治療に際する妊孕性温存目的で卵巣組織の凍結保存を行った患者の人数",null,null,null,null,null,null,null,null,null,null,null,null,null,null,null,"人",null,null,144,{"$f":"IF(R144=\"\",\"未入力あり\",\"✔\")","v":"未入力あり"},null,null,0,100]
[null,null,null,null,null,null,null,null,null,null,null,null,null,null,null,null,null,null,null,null,null,145]

{"sheet":"様式４(機能別)","index":4,"n_rows":293,"n_cols":21,"rows_kept":293,"cut":false,"hidden":false,"merged":[]}
[1,null,"香川県がん診療連携協力病院　新規（更新）指定申請書（様式４）",null,null,null,null,null,null,null,null,null,null,null,null,null,"未入力あり","○","×","未入力あり"]
[2,"医療機関名",null,null,null,null,null,{"$f":"+IF(ISBLANK(表紙!E2),\"未入力\",表紙!E3)","v":"未入力"},null,null,{"$f":"+IF(T2>0,\"未入力の必須要件があります。\",\"\")","v":"未入力の必須要件があります。"},null,null,null,{"$f":"R2/Q2","v":0},"A",{"$f":"COUNTIFS(I15:I293,\"A\")","v":52},{"$f":"+COUNTIFS($I$15:$I$293,$P2,$M$15:$M$293,\"○\")","v":0},{"$f":"+COUNTIFS($I$15:$I$293,$P2,$M$15:$M$293,$S$1)","v":0},{"$f":"+COUNTIFS($I$15:$I$293,$P2,$M$15:$M$293,$T$1)","v":52}]
[3,"小児がん連携病院の指定　",null,null,null,null,null,{"$f":"+IF(ISBLANK('様式3（全般事項）'!G6),\"未入力\",'様式3（全般事項）'!G6)","v":"未入力"},null,null,{"$f":"+IF(SUM(S2)>0,\"未充足の必須要件があります。別紙１に詳細を記載してください。\",\"\")","v":""},null,null,null,null,"B",{"$f":"COUNTIFS(I15:I293,\"B\")","v":17},{"$f":"COUNTIFS($I$15:$I$293,\"B\",$M$15:$M$293,\"○\")","v":0},{"$f":"+COUNTIFS($I$15:$I$293,\"B\",$M$15:$M$293,$S$1)","v":0},{"$f":"+COUNTIFS($I$15:$I$293,\"B\",$M$15:$M$293,$T$1)","v":17}]
[4,null,null,null,null,null,null,null,null,null,null,null,null,null,null,"C",{"$f":"COUNTIFS(I15:I293,\"C\")","v":83},{"$f":"+COUNTIFS($I$15:$I$293,$P4,$M$15:$M$293,$R$1)","v":0},{"$f":"+COUNTIFS($I$15:$I$293,$P4,$M$15:$M$293,$S$1)","v":0},{"$f":"+COUNTIFS($I$15:$I$293,$P4,$M$15:$M$293,$T$1)","v":83}]
[5,null,null,null,null,null,null,null,null,null,null,null,null,null,null,"-",{"$f":"COUNTIFS(I15:I293,\"-\")","v":87},{"$f":"+COUNTIFS($I$15:$I$293,$P5,$M$15:$M$293,$R$1)","v":0},{"$f":"+COUNTIFS($I$15:$I$293,$P5,$M$15:$M$293,$S$1)","v":0},{"$f":"+COUNTIFS($I$15:$I$293,$P5,$M$15:$M$293,$T$1)","v":52}]
[6]
[7]
[8]
[9]
[10,"項　　目",null,null,null,null,null,null,"要件区分",{"$f":"+'事務局使用（発出時は非表示にすること）'!B3&\"の状況\"","v":"令和５年９月１日時点の状況"},"備考欄",null,null,null,"※印刷範囲外です。メモ書きとして使えますが、提出前には個人情報などの"]
[11,"Ⅰ　","香川県がん診療連携協力病院の指定要件について",null,null,null,null,null,null,null,null,null,null,null,"　 記載がないことをご確認ください。"]
[12,null,"１","診療体制"]
[13,null,null,"（１）","診療機能"]
[14,null,null,null,"①","集学的治療等の提供体制及び標準的治療等の提供"]
[15,null,null,null,null,"ア",null,"大腸がん、肺がん、胃がん、乳がん、肝がんを中心にその他各医療機関が専門とするがんについて、手術、放射線治療及び薬物療法を効果的に組み合わせた集学的治療、リハビリテーション及び緩和ケア（以下「集学的治療等」という。）を提供する体制を有するとともに、各学会の診療ガイドラインに準ずる標準的治療（以下「標準的治療」という。）等がん患者の状態に応じた適切な治療を提供している。","A",null,"別紙２に詳細を記載してください。",null,{"$f":"+IF(I15=\"A\",IF(ISBLANK(J15),\"未入力あり\",IF(J15=\"はい\",\"○\",\"×\")),\"\")","v":"未入力あり"}]
[16,null,null,null,null,null,null,"我が国に多いがんの中でも症例の集約化により治療成績の向上が期待されるもの等、当該施設において集学的治療等を提供しない場合には、適切な医療に確実につなげることができる体制を構築している。","A",null,"別紙３に詳細を記載してください。",null,{"$f":"+IF(I16=\"A\",IF(ISBLANK(J16),\"未入力あり\",IF(J16=\"はい\",\"○\",\"×\")),\"\")","v":"未入力あり"}]
[17,null,null,null,null,"イ",null,"医師からの診断結果や病状の説明時及び治療方針の決定時等には、以下の体制を整備している。"]
[18,null,null,null,null,null,"ⅰ","患者とその家族の希望を踏まえ、看護師や公認心理師等が同席している。","B",null,null,null,{"$f":"IF(AND(I18=\"B\",J18=\"\"),\"未入力あり\",IF(AND(I18=\"B\",J18<>\"\"),\"〇\",IF(I18=\"-\",\"\")))","v":"未入力あり"}]
[19,null,null,null,null,null,"ⅱ","治療プロセス全体に関して、患者とともに考えながら方針を決定している。","B",null,null,null,{"$f":"IF(AND(I19=\"B\",J19=\"\"),\"未入力あり\",IF(AND(I19=\"B\",J19<>\"\"),\"〇\",IF(I19=\"-\",\"\")))","v":"未入力あり"}]
[20,null,null,null,null,null,"ⅲ","標準治療として複数の診療科が関与する選択肢がある場合に、その知見のある診療科の受診ができる体制を確保している。","B",null,null,null,"未入力あり"]
[21,null,null,null,null,"ウ",null,"がん患者の病態に応じたより適切ながん医療を提供できるよう、以下のカンファレンスをそれぞれ必要に応じてに開催している。"]
[22,null,null,null,null,null,"ⅰ","個別もしくは少数の診療科の医師を主体とした日常的なカンファレンス","A",null,"各診療科で日常的に開催している場合は”はい”を選択してください。",null,"未入力あり"]
[23,null,null,null,null,null,"ⅱ","個別もしくは少数の診療科の医師に加え、看護師、薬剤師、必要に応じて公認心理師や緩和ケアチームを代表する者等を加えた、症例への対応方針を検討するカンファレンス","A",null,"各診療科で日常的に開催している場合は”はい”を選択してください。",null,"未入力あり"]
[24,null,null,null,null,null,"ⅲ","手術、放射線診断、放射線治療、薬物療法、病理診断及び緩和ケア等に携わる専門的な知識及び技能を有する医師とその他の専門を異にする医師等による、骨転移・原発不明がん・希少がんなどに関して臓器横断的にがん患者の診断及び治療方針等を意見交換・共有・検討・確認等するためのカンファレンス","C",null,null,null,{"$f":"IF(AND(I24=\"C\",J24=\"\"),\"未入力あり\",IF(AND(I24=\"C\",J24<>\"\"),\"〇\",IF(I24=\"-\",\"\")))","v":"未入力あり"},null,null,null,null,null,null,0,30]
[25,null,null,null,null,null,"ⅳ","臨床倫理的、社会的な問題を解決するための、具体的な事例に則した、患者支援の充実や多職種間の連携強化を目的とした院内全体の多職種によるカンファレンス","C",null,null,null,"未入力あり",null,null,null,null,null,null,0,30]
[26,null,null,null,null,null,null,"検討した内容について、診療録に記録の上、関係者間で共有している。","B",null,null,null,{"$f":"IF(AND(I26=\"B\",J26=\"\"),\"未入力あり\",IF(AND(I26=\"B\",J26<>\"\"),\"〇\",IF(I26=\"-\",\"\")))","v":"未入力あり"}]
[27,null,null,null,null,"エ",null,"院内の緩和ケアチーム、口腔ケアチーム、栄養サポートチーム、感染防止対策チーム等の専門チームへ、医師だけではなく、看護師や薬剤師等他の診療従事者からも介入依頼ができる体制を整備している。","A",null,"別紙8に詳細を記載してください。",null,{"$f":"+IF(I27=\"A\",IF(ISBLANK(J27),\"未入力あり\",IF(J27=\"はい\",\"○\",\"×\")),\"\")","v":"未入力あり"}]
[28,null,null,null,null,"オ",null,"保険適用外の免疫療法等について、治験、先進医療、臨床研究法（平成29年法律第16号）で定める特定臨床研究または再生医療等の安全性の確保等に関する法律（平成25年法律第85号）に基づき提供される再生医療等の枠組み以外の形では、実施・推奨していない。","A",null,null,null,{"$f":"+IF(I28=\"A\",IF(ISBLANK(J28),\"未入力あり\",IF(J28=\"はい\",\"○\",\"×\")),\"\")","v":"未入力あり"}]
[29,null,null,null,null,null,null,"保険適用外の免疫療法等について、提供または推奨している場合は、上記のどの枠組みに該当するか明記すること。\n（なお、提供または推奨していない場合は、「なし」と記入すること。）","-",null,null,null,{"$f":"+IF(ISBLANK(J29),\"未入力あり\",\"〇\")","v":"未入力あり"}]
[30,null,null,null,"②","手術療法、放射線療法、薬物療法の提供体制の特記事項"]
[31,null,null,null,null,"ア",null,"術中迅速病理診断が可能な体制を確保している。（なお、当該体制は遠隔病理診断でも可とする。）","A",null,null,null,{"$f":"+IF(I31=\"A\",IF(ISBLANK(J31),\"未入力あり\",IF(J31=\"はい\",\"○\",\"×\")),\"\")","v":"未入力あり"}]
[32,null,null,null,null,null,null,"術中迅速病理診断を遠隔病理診断で対応依頼することがある。","-",null,null,null,{"$f":"+IF(ISBLANK(J32),\"未入力あり\",\"〇\")","v":"未入力あり"}]
[33,null,null,null,null,"イ",null,"術後管理体制の一環として、手術部位感染に関するサーベイランスを実施している。","A",null,null,null,"未入力あり"]
[34,null,null,null,null,null,null,"厚生労働省院内感染対策サーベイランス事業（ＪＡＮＩＳ）へ登録している。","C",null,null,null,{"$f":"IF(AND(I34=\"C\",J34=\"\"),\"未入力あり\",IF(AND(I34=\"C\",J34<>\"\"),\"〇\",IF(I34=\"-\",\"\")))","v":"未入力あり"}]
[35,null,null,null,null,"ウ",null,"強度変調放射線治療を提供している。","C",null,null,null,{"$f":"IF(AND(I35=\"C\",J35=\"\"),\"未入力あり\",IF(AND(I35=\"C\",J35<>\"\"),\"〇\",IF(I35=\"-\",\"\")))","v":"未入力あり"}]
[36,null,null,null,null,null,null,"外来での核医学治療（RI内用療法）を提供している。","-",null,null,null,{"$f":"+IF(ISBLANK(J36),\"未入力あり\",\"〇\")","v":"未入力あり"}]
[37,null,null,null,null,"エ",null,"密封小線源治療について、地域の医療機関と連携し、役割分担している。","A",null,null,null,"未入力あり"]
[38,null,null,null,null,null,null,"自施設で密封小線源治療に必要な放射線治療病室を整備している。","-",null,null,null,"未入力あり"]
[39,null,null,null,null,"オ",null,"専用治療病室を要する核医学治療（RI内用療法）や粒子線治療等の高度な放射線治療について、患者に情報提供を行うとともに、必要に応じて適切な医療機関へ紹介する体制を整備している。","A",null,null,null,"未入力あり"]
[40,null,null,null,null,null,null,"RI内用療法に必要な放射線治療病室を整備している。","-",null,null,null,{"$f":"+IF(ISBLANK(J40),\"未入力あり\",\"〇\")","v":"未入力あり"}]
[41,null,null,null,null,null,null,"粒子線治療に必要な放射線治療設備を整備している。","-",null,null,null,"未入力あり"]
[42,null,null,null,null,"カ",null,"関連する学会のガイドライン等も参考に、第三者機関による出力線量測定を行い、放射線治療の品質管理を行っている。","A",null,null,null,{"$f":"+IF(I42=\"A\",IF(ISBLANK(J42),\"未入力あり\",IF(J42=\"はい\",\"○\",\"×\")),\"\")","v":"未入力あり"}]
[43,null,null,null,null,null,null,"直近で実施した第三者機関による出力線量測定の時期を明記すること。（YYYY/MM、例：202209）","-",null,"現行ガイドライン上、出力線量測定頻度は３年に１回以上で可。",null,{"$f":"+IF($J$42=\"はい\",IF(ISBLANK(J43),\"未入力あり\",IF(J43<>\"\",\"○\",\"×\")),\"\")","v":""},null,null,null,null,null,null,null,202709]
[44,null,null,null,null,null,null,"測定機関名を記入すること。","-",null,null,null,{"$f":"+IF($J$42=\"はい\",IF(ISBLANK(J44),\"未入力あり\",IF(J44<>\"\",\"○\",\"×\")),\"\")","v":""}]
[45,null,null,null,null,null,null,"基準線量の±５％の水準以内である。","-",null,null,null,{"$f":"+IF($J$42=\"はい\",IF(ISBLANK(J45),\"未入力あり\",IF(J45<>\"\",\"○\",\"×\")),\"\")","v":""}]
[46,null,null,null,null,"キ",null,"画像下治療（ＩＶＲ）を提供している。","C",null,null,null,{"$f":"IF(AND(I46=\"C\",J46=\"\"),\"未入力あり\",IF(AND(I46=\"C\",J46<>\"\"),\"〇\",IF(I46=\"-\",\"\")))","v":"未入力あり"}]
[47,null,null,null,null,"ク",null,"免疫関連有害事象を含む有害事象に対して、他診療科や他病院と連携する等して対応している。","A",null,null,null,{"$f":"+IF(I47=\"A\",IF(ISBLANK(J47),\"未入力あり\",IF(J47=\"はい\",\"○\",\"×\")),\"\")","v":"未入力あり"}]
[48,null,null,null,null,"ケ",null,"薬物療法のレジメンを審査し、組織的に管理する委員会を設置している。","A",null,null,null,{"$f":"+IF(I48=\"A\",IF(ISBLANK(J48),\"未入力あり\",IF(J48=\"はい\",\"○\",\"×\")),\"\")","v":"未入力あり"}]
[49,null,null,null,"③","緩和ケアの提供体制"]
[50,null,null,null,null,"ア",null,"緩和ケアががんと診断された時から提供されるよう、がん診療に携わる全ての診療従事者により、緩和ケアが提供される体制を整備している。","A",null,null,null,"未入力あり"]
[51,null,null,null,null,"イ",null,"がん患者の身体的苦痛や精神心理的苦痛、社会的な問題等の把握及びそれらに対する適切な対応を、\n診断時から一貫して経時的に行っている。","C",null,null,null,{"$f":"IF(AND(I51=\"C\",J51=\"\"),\"未入力あり\",IF(AND(I51=\"C\",J51<>\"\"),\"〇\",IF(I51=\"-\",\"\")))","v":"未入力あり"}]
[52,null,null,null,null,null,null,"診断や治療方針の変更時には、ライフステージ、就学・就労、経済状況、家族との関係性等、がん患者とその家族にとって重要な問題について、患者の希望を踏まえて配慮や支援ができるよう努めている。","C",null,null,null,"未入力あり"]
[53,null,null,null,null,"ウ",null,"ア、イを実施するため、がん診療に携わる全ての診療従事者の対応能力を向上させることが必要であり、これを支援するために組織上明確に位置付けられた緩和ケアチームにより、以下を提供するよう体制を整備している。",null,null,"別紙4に詳細を記載してください。"]
[54,null,null,null,null,null,"ⅰ","定期的に病棟ラウンド及びカンファレンスを行い、依頼を受けていないがん患者も含めて苦痛の把握に努めるとともに、適切な症状緩和について協議し、必要に応じて主体的に助言や指導等を行っている。","C",null,null,null,{"$f":"IF(AND(I54=\"C\",J54=\"\"),\"未入力あり\",IF(AND(I54=\"C\",J54<>\"\"),\"〇\",IF(I54=\"-\",\"\")))","v":"未入力あり"}]
[55,null,null,null,null,null,"ⅱ","緩和ケアチームに配置する看護師は、苦痛の把握の支援や専門的緩和ケアの提供に関する調整等、外来・病棟の看護業務を支援・強化する役割を担っている。","C",null,null,null,"未入力あり"]
[56,null,null,null,null,null,null,"主治医及び看護師、公認心理師等と協働し、適切な支援を実施している。","C",null,null,null,"未入力あり"]
[57,null,null,null,null,"エ",null,"患者が必要な緩和ケアを受けられるよう、緩和ケア外来の設置など外来において専門的な緩和ケアを提供できる体制を整備している。","C",null,null,null,"未入力あり"]
[58,null,null,null,null,null,null,"自施設のがん患者に限らず、他施設でがん診療を受けている、または受けていた患者についても受入れを行っている。","C",null,null,null,"未入力あり"]
[59,null,null,null,null,null,null,"緩和ケア外来等への患者紹介について、地域の医療機関に対して広報等を行っている。","C",null,null,null,"未入力あり"]
[60,null,null,null,null,"オ",null,"医療用麻薬等の鎮痛薬の初回使用時や用量の増減時には、医師からの説明とともに薬剤師や看護師等により、外来・病棟を問わず医療用麻薬等を自己管理できるよう指導している。","C",null,null,null,{"$f":"IF(AND(I60=\"C\",J60=\"\"),\"未入力あり\",IF(AND(I60=\"C\",J60<>\"\"),\"〇\",IF(I60=\"-\",\"\")))","v":"未入力あり"}]
[61,null,null,null,null,null,null,"その際には、自記式の服薬記録を整備活用している。","C",null,null,null,"未入力あり"]
[62,null,null,null,null,"カ",null,"院内の診療従事者と緩和ケアチームとの連携を以下により確保している。","C",null,null,null,"未入力あり"]
[63,null,null,null,null,null,"ⅰ","緩和ケアチームへがん患者の診療を依頼する手順等、評価された苦痛に対する対応を明確化し、院内の全ての診療従事者に周知するとともに、患者とその家族に緩和ケアに関する診療方針を提示している。","C",null,null,null,"未入力あり"]
[64,null,null,null,null,null,"ⅱ","緩和ケアの提供体制について緩和ケアチームへ情報を集約するために、がん治療を行う病棟や外来部門に、緩和ケアチームと各部署をつなぐ役割を担うリンクナースなどを配置している。","C",null,"リンクナース：医療施設において、各種専門チームや委員会と病棟看護師等をつなぐ役割を持つ看護師をいう。",null,"未入力あり"]
[65,null,null,null,null,"キ",null,"患者や家族に対し、必要に応じて、アドバンス・ケア・プランニングを含めた意思決定支援を提供できる体制を整備している。","A",null,"アドバンス・ケア・プランニング：人生の最終段階の医療・ケアについて、本人が家族等や医療・ケアチームと事前に繰り返し話し合うプロセスのこと。",null,"未入力あり"]
[66,null,null,null,null,"ク",null,"アからキにより、緩和ケアの提供がなされる旨を、院内の見やすい場所での掲示や入院時の資料配布、ホームページ上の公開等により、がん患者及び家族に対しわかりやすく情報提供を行っている。","C",null,null,null,{"$f":"IF(AND(I66=\"C\",J66=\"\"),\"未入力あり\",IF(AND(I66=\"C\",J66<>\"\"),\"〇\",IF(I66=\"-\",\"\")))","v":"未入力あり"}]
[67,null,null,null,null,"ケ",null,"かかりつけ医等の協力・連携を得て、主治医及び看護師が緩和ケアチームと共に、退院後の居宅における緩和ケアに関する療養上必要な説明及び指導を行っている。","C",null,null,null,"未入力あり"]
[68,null,null,null,null,"コ",null,"疼痛緩和のための専門的な治療の提供体制等について、以下の通り確保している。"]
[69,null,null,null,null,null,"ⅰ","難治性疼痛に対する神経ブロック等について、自施設における麻酔科医等との連携等の対応方針を定めている。","C",null,null,null,{"$f":"IF(AND(I69=\"C\",J69=\"\"),\"未入力あり\",IF(AND(I69=\"C\",J69<>\"\"),\"〇\",IF(I69=\"-\",\"\")))","v":"未入力あり"}]
[70,null,null,null,null,null,null,"自施設で実施が困難なために、外部の医療機関と連携して実施する場合には、その詳細な連携体制を確認している。","C",null,{"$f":"A71&\"行目・\"&A72&\"行目のいずれかが「はい」の場合のみ、自動的に「はい」が選択されます。\"","v":"71行目・72行目のいずれかが「はい」の場合のみ、自動的に「はい」が選択されます。"},null,"未入力あり"]
[71,null,null,null,null,null,null,"自施設で実施が可能である。","-",null,null,null,{"$f":"+IF(ISBLANK(J71),\"未入力あり\",\"〇\")","v":"未入力あり"}]
[72,null,null,null,null,null,null,"連携する外部の医療機関に患者を紹介して実施している。","-",null,null,null,{"$f":"+IF(ISBLANK(J72),\"未入力あり\",\"〇\")","v":"未入力あり"}]
[73,null,null,null,null,null,null,"ホームページ等で、神経ブロック等の自施設における実施状況や連携医療機関名等、その実施体制について分かりやすく公表している。","C",null,null,null,{"$f":"IF(AND(I73=\"C\",J73=\"\"),\"未入力あり\",IF(AND(I73=\"C\",J73<>\"\"),\"〇\",IF(I73=\"-\",\"\")))","v":"未入力あり"}]
[74,null,null,null,null,null,"ⅱ","緩和的放射線治療を患者に提供できる体制を整備している。","C",null,null,null,{"$f":"IF(AND(I74=\"C\",J74=\"\"),\"未入力あり\",IF(AND(I74=\"C\",J74<>\"\"),\"〇\",IF(I74=\"-\",\"\")))","v":"未入力あり"}]
[75,null,null,null,null,null,null,"自施設の診療従事者に対し、緩和的放射線治療の院内での連携体制について周知していることに加え、連携する医療機関に対し、患者の受入れ等について周知している。","C",null,null,null,"未入力あり"]
[76,null,null,null,null,null,null,"ホームページ等で、自施設におけるこれらの実施体制等について分かりやすく公表している。","C",null,null,null,"未入力あり"]
[77,null,null,null,null,"サ",null,"全てのがん患者に対して苦痛の把握と適切な対応がなされるよう緩和ケアに係る診療や相談支援、患者からのＰＲＯ（患者報告アウトカム）、医療用麻薬の処方量など、院内の緩和ケアに係る情報を把握し、検討・改善する場を設置している。","C",null,"PRO：自覚症状やＱＯＬに関する対応の評価のために行う患者の主観的な報告をまとめた評価のこと。",null,"未入力あり"]
[78,null,null,null,null,null,null,"それを踏まえて自施設において組織的な改善策を講じる等、緩和ケアの提供体制の改善に努めている。","C",null,null,null,"未入力あり"]
[79,null,null,null,"④","地域連携の推進体制"]
[80,null,null,null,null,"ア",null,"がん患者の紹介、逆紹介に積極的に取り組むとともに、以下の体制を整備している。"]
[81,null,null,null,null,null,"ⅰ","緩和ケアの提供に関して、当該がん医療圏内の緩和ケア病棟や在宅緩和ケアが提供できる診療所等のマップやリストを作成する等、患者やその家族に対し常に地域の緩和ケア提供体制について情報提供できる体制を整備している。","A",null,null,null,{"$f":"+IF(I81=\"A\",IF(ISBLANK(J81),\"未入力あり\",IF(J81=\"はい\",\"○\",\"×\")),\"\")","v":"未入力あり"}]
[82,null,null,null,null,null,"ⅱ","希少がんに関して、専門家による適切な集学的治療が提供されるよう、他の拠点病院等及び地域の医療機関との連携及び情報提供ができる体制を整備している。","A",null,null,null,"未入力あり"]
[83,null,null,null,null,null,"ⅲ","高齢のがん患者や障害を持つがん患者について、患者や家族の意思決定支援の体制を整え、地域の医療機関との連携等を図り総合的に支援している。","A",null,null,null,"未入力あり"]
[84,null,null,null,null,null,"ⅳ","介護施設に入居する高齢者ががんと診断された場合に、介護施設等と治療・緩和ケア・看取り等において連携する体制を整備している。","A",null,null,null,"未入力あり"]
[85,null,null,null,null,"イ",null,"地域の医療機関の医師と診断及び治療に関する相互的な連携協力体制・教育体制を整備している。","C",null,null,null,{"$f":"IF(AND(I85=\"C\",J85=\"\"),\"未入力あり\",IF(AND(I85=\"C\",J85<>\"\"),\"〇\",IF(I85=\"-\",\"\")))","v":"未入力あり"}]
[86,null,null,null,null,"ウ",null,"当該がん医療圏内のがん診療に関する情報を集約し、当該がん医療圏内の医療機関やがん患者等に対し、情報提供を行っている。","C",null,null,null,"未入力あり"]
[87,null,null,null,null,"エ",null,"がん患者に対して、周術期の口腔健康管理や、治療中の副作用・合併症対策、口腔リハビリテーションなど、必要に応じて院内又は地域の歯科医師と連携して対応している。","C",null,"別紙10に詳細を記載してください。",null,"未入力あり"]
[88,null,null,null,null,"オ",null,"地域連携時には、がん疼痛等の症状が十分に緩和された状態での退院に努め、退院後も在宅診療の主治医等の相談に対応するなど、院内での緩和ケアに関する治療が在宅診療でも継続して実施できる体制を整備している。","C",null,null,null,"未入力あり"]
[89,null,null,null,null,"カ",null,"退院支援に当たっては、主治医、緩和ケアチーム等の連携により療養場所等に関する意思決定支援を行うとともに、必要に応じて地域の在宅診療に携わる医師や訪問看護師等と退院前カンファレンスを実施している。","C",null,null,null,"未入力あり"]
[90,null,null,null,null,"キ",null,"当該がん医療圏において、地域の医療機関や在宅療養支援診療所等の医療・介護従事者とがんに関する医療提供体制や社会的支援、緩和ケアについて情報を共有し、役割分担や支援等について検討する場を年１回以上設けている。","C",null,null,null,"未入力あり"]
[91,null,null,null,null,null,null,"緩和ケアチームが地域の医療機関や在宅療養支援診療所等から定期的に連絡・相談を受ける体制を確保し、\n必要に応じて助言等を行っている。","C",null,null,null,"未入力あり"]
[92,null,null,null,null,"ク",null,"都道府県や地域の患者会等と連携を図り、患者会等の求めに応じてピア・サポートの質の向上に対する支援等に取り組んでいる。","C",null,"ピア・サポート：患者・経験者やその家族がピア（仲間）として体験を共有し、共に考えることで、患者や家族等を支援すること。",null,"未入力あり"]
[93,null,null,null,"⑤","セカンドオピニオンに関する体制 "]
[94,null,null,null,null,"ア",null,"医師からの診断結果や病状の説明時及び治療方針の決定時等において、すべてのがん患者とその家族に対して、他施設でセカンドオピニオンを受けられることについて説明している。","A",null,null,null,"未入力あり"]
[95,null,null,null,null,null,null,"説明の際、心理的な障壁を取り除くことができるよう留意している。","A",null,null,null,"未入力あり"]
[96,null,null,null,null,"イ　",null,"当該施設で対応可能ながんについて、手術療法、放射線療法、薬物療法又は緩和ケアに携わる専門的な知識及び技能を有する医師によりセカンドオピニオンを提示する体制を整備し、患者にわかりやすく公表している。","C",null,null,null,{"$f":"IF(AND(I96=\"C\",J96=\"\"),\"未入力あり\",IF(AND(I96=\"C\",J96<>\"\"),\"〇\",IF(I96=\"-\",\"\")))","v":"未入力あり"}]
[97,null,null,null,null,"ウ　",null,"セカンドオピニオンを提示する場合は、必要に応じてオンラインでの相談を受け付けることができる体制を確保している。","-",null,null,null,{"$f":"+IF(ISBLANK(J97),\"未入力あり\",\"〇\")","v":"未入力あり"}]
[98,null,null,null,"⑥","それぞれの特性に応じた診療等の提供体制"]
[99,null,null,null,null,"ア",null,"希少がん・難治がんの患者の診断・治療に関しては、積極的に都道府県協議会における役割分担の整理を活用し、対応可能な施設への紹介やコンサルテーションで対応している。","A",null,null,null,"未入力あり"]
[100,null,null,null,null,"イ",null,"小児がん患者で長期フォローアップ中の患者については、小児がん拠点病院や連携する医療機関と情報を共有する体制を整備している。","C",null,null,null,{"$f":"IF(AND(I100=\"C\",J100=\"\"),\"未入力あり\",IF(AND(I100=\"C\",J100<>\"\"),\"〇\",IF(I100=\"-\",\"\")))","v":"未入力あり"}]
[101,null,null,null,null,"ウ",null,"各地域のがん・生殖医療ネットワークに加入し、｢小児・ＡＹＡ世代のがん患者等の妊孕性温存療法研究促進事業」へ参画するとともに、対象となりうる患者や家族には必ず治療開始前に情報提供している。","C",null,null,null,"未入力あり"]
[102,null,null,null,null,null,null,"患者の希望を確認するとともに、がん治療を行う診療科が中心となって、院内または地域の生殖医療に関する診療科とともに、妊孕性温存療法及びがん治療後の生殖補助医療に関する情報提供及び意思決定支援を行う体制を整備している。","A",null,null,null,"未入力あり"]
[103,null,null,null,null,null,null,"自施設において、がん・生殖医療に関する意思決定支援を行うことができる診療従事者の配置・育成に努めている。","C",null,null,null,{"$f":"IF(AND(I103=\"C\",J103=\"\"),\"未入力あり\",IF(AND(I103=\"C\",J103<>\"\"),\"〇\",IF(I103=\"-\",\"\")))","v":"未入力あり"}]
[104,null,null,null,null,"エ",null,"就学、就労、妊孕性の温存、アピアランスケア等に関する状況や本人の希望についても確認し、自施設もしくは連携施設のがん相談支援センターで対応できる体制を整備している。","A",null,"妊孕性：子どもをつくるために必要な能力のこと。精子や卵子だけではなく、性機能や生殖器、内分泌機能も重要な要素である。\nアピアランスケア：医学的・整容的・心理社会的支援を用いて、外見の変化を補完し、外見の変化に起因するがん患者の苦痛を軽減するケアのこと。",null,"未入力あり"]
[105,null,null,null,null,null,null,"それらの相談に応じる多職種からなるＡＹＡ世代支援チームを設置している。","C",null,null,null,{"$f":"IF(AND(I105=\"C\",J105=\"\"),\"未入力あり\",IF(AND(I105=\"C\",J105<>\"\"),\"〇\",IF(I105=\"-\",\"\")))","v":"未入力あり"}]
[106,null,null,null,null,"オ",null,"高齢者のがんに関して、併存症の治療との両立が図れるよう、関係する診療科と連携する体制を確保している。","A",null,null,null,"未入力あり"]
[107,null,null,null,null,null,null,"意思決定能力を含む機能評価を行い、各種ガイドラインに沿って、個別の状況を踏まえた対応をしている。","A",null,null,null,{"$f":"+IF(I107=\"A\",IF(ISBLANK(J107),\"未入力あり\",IF(J107=\"はい\",\"○\",\"×\")),\"\")","v":"未入力あり"}]
[108,null,null,null,null,null,null,"高齢のがん患者に関して、必要に応じて高齢者総合機能評価を行っている。","-",null,null,null,{"$f":"+IF(ISBLANK(J108),\"未入力あり\",\"〇\")","v":"未入力あり"}]
[109,null,null,null,null,"カ",null,"医療機関としてのＢＣＰを策定している。","B",null,null,null,{"$f":"IF(AND(I109=\"B\",J109=\"\"),\"未入力あり\",IF(AND(I109=\"B\",J109<>\"\"),\"〇\",IF(I109=\"-\",\"\")))","v":"未入力あり"}]
[110,null,null,"（２）","診療従事者"]
[111,null,null,null,"①","専門的な知識及び技能を有する医師の配置"]
[112,null,null,null,null,"ア",null,"当該施設で対応可能ながんについて専門的な知識及び技能を有する手術療法に携わる常勤の医師の人数","A",null,"常勤：原則として病院で定めた勤務時間の全てを勤務する者をいう。病院で定めた医師の１週間の勤務時間が、32時間未満の場合は、32時間以上勤務している者を常勤とし、その他は非常勤とする。\n※一人以上の配置が必要です。",null,{"$f":"+IF(I112=\"A\",IF(ISBLANK(J112),\"未入力あり\",IF(J112>=1,\"○\",\"×\")),\"\")","v":"未入力あり"},null,null,null,null,null,null,0,200]
[113,null,null,null,null,"イ",null,"放射線診断に携わる専門的な知識及び技能を有する常勤の医師の人数","A",null,"専任：専任とは当該診療の実施を専ら担当していることをいう。この場合において、「専ら担当している」とは、その他診療を兼任していても差し支えないものとする。ただし、その就業時間の少なくとも５割以上、当該診療に従事している必要があるものとする。\n※一人以上の配置が必要です。",null,"未入力あり",null,null,null,null,null,null,0,30]
[114,null,null,null,null,null,null,"上記のうち、放射線診断に携わる医師のうち専任の人数","-",null,null,null,{"$f":"+IF(ISBLANK(J114),\"未入力あり\",\"〇\")","v":"未入力あり"},null,null,null,null,null,null,0,10]
[115,null,null,null,null,"ウ",null,"放射線治療に携わる専門的な知識及び技能を有する常勤の医師の人数","B",null,"専従：専従とは当該診療の実施日において、当該診療に専ら従事していることをいう。この場合において、「専ら従事している」とは、その就業時間の少なくとも８割以上、当該診療に従事していることをいう。",null,{"$f":"+IF(I115=\"B\",IF(ISBLANK(J115),\"未入力あり\",IF(J115>=0,\"○\",\"×\")),\"\")","v":"未入力あり"},null,null,null,null,null,null,0,10]
[116,null,null,null,null,null,null,"上記のうち、放射線治療に携わる医師のうち専従の人数","-",null,null,null,{"$f":"+IF(ISBLANK(J116),\"未入力あり\",\"〇\")","v":"未入力あり"},null,null,null,null,null,null,0,10]
[117,null,null,null,null,"エ",null,"薬物療法に携わる専門的な知識及び技能を有する常勤の医師の人数","C",null,null,null,{"$f":"IF(AND(I117=\"C\",J117=\"\"),\"未入力あり\",IF(AND(I117=\"C\",J117<>\"\"),\"〇\",IF(I117=\"-\",\"\")))","v":"未入力あり"},null,null,null,null,null,null,0,30]
[118,null,null,null,null,null,null,"上記のうち、薬物療法に携わる医師のうち専従の人数","-",null,null,null,{"$f":"+IF(ISBLANK(J118),\"未入力あり\",\"〇\")","v":"未入力あり"},null,null,null,null,null,null,0,10]
[119,null,null,null,null,"オ",null,"緩和ケアチームの身体症状の緩和に携わる専門的な知識及び技能を有する医師の人数","A",null,"※一人以上の配置が必要です。",null,"未入力あり",null,null,null,null,null,null,0,10]
[120,null,null,null,null,null,null,"上記のうち、身体症状の緩和に携わる専任の医師の人数","-",null,null,null,{"$f":"+IF(ISBLANK(J120),\"未入力あり\",\"〇\")","v":"未入力あり"},null,null,null,null,null,null,0,10]
[121,null,null,null,null,null,null,"緩和ケアチームの精神症状の緩和に携わる専門的な知識及び技能を有する医師の人数","A",null,"※一人以上の配置が必要です。",null,{"$f":"+IF(I121=\"A\",IF(ISBLANK(J121),\"未入力あり\",IF(J121>=1,\"○\",\"×\")),\"\")","v":"未入力あり"},null,null,null,null,null,null,0,10]
[122,null,null,null,null,"カ",null,"病理診断に携わる専門的な知識及び技能を有する医師の人数","A",null,"※一人以上の配置が必要です。",null,"未入力あり",null,null,null,null,null,null,0,10]
[123,null,null,null,null,null,null,"上記のうち、病理診断に携わる専門的な知識及び技能を有する医師のうち専従の人数","-",null,null,null,{"$f":"+IF(ISBLANK(J123),\"未入力あり\",\"〇\")","v":"未入力あり"},null,null,null,null,null,null,0,10]
[124,null,null,null,null,"キ",null,"リハビリテーションに携わる専門的な知識および技能を有する医師の人数","C",null,null,null,{"$f":"IF(AND(I124=\"C\",J124=\"\"),\"未入力あり\",IF(AND(I124=\"C\",J124<>\"\"),\"〇\",IF(I124=\"-\",\"\")))","v":"未入力あり"},null,null,null,null,null,null,0,10]
[125,null,null,null,"②","専門的な知識及び技能を有する医師以外の診療従事者の配置"]
[126,null,null,null,null,"ア",null,"放射線治療に携わる専門的な知識及び技能を有する診療放射線技師の人数","A",null,"※二人以上の配置が必要です。",null,{"$f":"+IF(I126=\"A\",IF(ISBLANK(J126),\"未入力あり\",IF(J126>=2,\"○\",\"×\")),\"\")","v":"未入力あり"},null,null,null,null,null,null,0,20]
[127,null,null,null,null,null,null,"上記の診療放射線技師のうち、放射線治療に関する専門資格を有する者の人数","-",null,null,null,{"$f":"+IF(ISBLANK(J127),\"未入力あり\",\"〇\")","v":"未入力あり"},null,null,null,null,null,null,0,10]
[128,null,null,null,null,null,null,"放射線治療における機器の精度管理、照射計画の検証、照射計画補助作業等に携わる専門的な知識及び技能を有する技術者等の人数","A",null,"※一人以上の配置が必要です。",null,{"$f":"+IF(I128=\"A\",IF(ISBLANK(J128),\"未入力あり\",IF(J128>=1,\"○\",\"×\")),\"\")","v":"未入力あり"},null,null,null,null,null,null,0,10]
[129,null,null,null,null,null,null,"上記の技術者等のうち常勤の人数","-",null,null,null,{"$f":"+IF(ISBLANK(J129),\"未入力あり\",\"〇\")","v":"未入力あり"},null,null,null,null,null,null,0,10]
[130,null,null,null,null,null,null,"放射線治療部門に配置されている、放射線治療に携わる専門的な知識及び技能を有する看護師の人数","C",null,null,null,{"$f":"IF(AND(I130=\"C\",J130=\"\"),\"未入力あり\",IF(AND(I130=\"C\",J130<>\"\"),\"〇\",IF(I130=\"-\",\"\")))","v":"未入力あり"},null,null,null,null,null,null,0,10]
[131,null,null,null,null,null,null,"上記の看護師のうち、放射線治療に関する専門資格を有する者の人数","-",null,null,null,{"$f":"+IF(ISBLANK(J131),\"未入力あり\",\"〇\")","v":"未入力あり"},null,null,null,null,null,null,0,10]
[132,null,null,null,null,"イ",null,"薬物療法に携わる専門的な知識及び技能を有する薬剤師の人数","A",null,"※一人以上の配置が必要です。",null,{"$f":"+IF(I132=\"A\",IF(ISBLANK(J132),\"未入力あり\",IF(J132>=1,\"○\",\"×\")),\"\")","v":"未入力あり"},null,null,null,null,null,null,0,20]
[133,null,null,null,null,null,null,"上記の薬剤師のうち、がん薬物療法に関する専門資格を有する者の人数","-",null,null,null,{"$f":"+IF(ISBLANK(J133),\"未入力あり\",\"〇\")","v":"未入力あり"},null,null,null,null,null,null,0,10]
[134,null,null,null,null,null,null,"外来化学療法室に配置されている、薬物療法に携わる専門的な知識及び技能を有する看護師の人数","A",null,"※一人以上の配置が必要です。",null,{"$f":"+IF(I134=\"A\",IF(ISBLANK(J134),\"未入力あり\",IF(J134>=1,\"○\",\"×\")),\"\")","v":"未入力あり"},null,null,null,null,null,null,0,20]
[135,null,null,null,null,null,null,"上記の看護師のうち、がん看護又はがん薬物療法に関する専門資格を有する者の人数","-",null,null,null,{"$f":"+IF(ISBLANK(J135),\"未入力あり\",\"〇\")","v":"未入力あり"},null,null,null,null,null,null,0,10]
[136,null,null,null,null,"ウ",null,"緩和ケアチームの緩和ケアに携わる専門的な知識及び技能を有する看護師の人数","C",null,null,null,{"$f":"IF(AND(I136=\"C\",J136=\"\"),\"未入力あり\",IF(AND(I136=\"C\",J136<>\"\"),\"〇\",IF(I136=\"-\",\"\")))","v":"未入力あり"},null,null,null,null,null,null,0,10]
[137,null,null,null,null,null,null,"上記の看護師のうち、がん看護又は緩和ケアに関する専門資格を有する者の人数","C",null,null,null,"未入力あり",null,null,null,null,null,null,0,10]
[138,null,null,null,null,"エ",null,"緩和ケアチームに協力する薬剤師の人数　　（他部署との兼任を可とする。）","C",null,null,null,{"$f":"IF(AND(I138=\"C\",J138=\"\"),\"未入力あり\",IF(AND(I138=\"C\",J138<>\"\"),\"〇\",IF(I138=\"-\",\"\")))","v":"未入力あり"},null,null,null,null,null,null,0,10]
[139,null,null,null,null,null,null,"上記の薬剤師のうち、緩和薬物療法に関する専門資格を有する者の人数","-",null,null,null,{"$f":"+IF(ISBLANK(J139),\"未入力あり\",\"〇\")","v":"未入力あり"},null,null,null,null,null,null,0,10]
[140,null,null,null,null,null,null,"緩和ケアチームに協力する相談支援に携わる専門的な知識及び技能を有する者の人数　　（他部署との兼任を可とする。）","C",null,null,null,{"$f":"IF(AND(I140=\"C\",J140=\"\"),\"未入力あり\",IF(AND(I140=\"C\",J140<>\"\"),\"〇\",IF(I140=\"-\",\"\")))","v":"未入力あり"},null,null,null,null,null,null,0,10]
[141,null,null,null,null,null,null,"上記の相談支援に携わる者のうち、社会福祉士である者の人数","-",null,null,null,{"$f":"+IF(ISBLANK(J141),\"未入力あり\",\"〇\")","v":"未入力あり"},null,null,null,null,null,null,0,10]
[142,null,null,null,null,null,null,"上記の相談支援に携わる者のうち、精神保健福祉士である者の人数","-",null,null,null,{"$f":"+IF(ISBLANK(J142),\"未入力あり\",\"〇\")","v":"未入力あり"},null,null,null,null,null,null,0,10]
[143,null,null,null,null,"オ",null,"緩和ケアチームに協力する、公認心理師等の医療心理に携わる専門的な知識及び技能を有する者の人数","C",null,null,null,{"$f":"IF(AND(I143=\"C\",J143=\"\"),\"未入力あり\",IF(AND(I143=\"C\",J143<>\"\"),\"〇\",IF(I143=\"-\",\"\")))","v":"未入力あり"},null,null,null,null,null,null,0,10]
[144,null,null,null,null,null,null,"上記の医療心理に携わる者のうち、公認心理師である者の人数","-",null,null,null,{"$f":"+IF(ISBLANK(J144),\"未入力あり\",\"〇\")","v":"未入力あり"},null,null,null,null,null,null,0,10]
[145,null,null,null,null,"カ",null,"細胞診断に係る業務に携わる専門的な知識及び技能を有する者の人数","A",null,"※一人以上の配置が必要です。",null,{"$f":"+IF(I145=\"A\",IF(ISBLANK(J145),\"未入力あり\",IF(J145>=1,\"○\",\"×\")),\"\")","v":"未入力あり"},null,null,null,null,null,null,0,10]
[146,null,null,null,null,null,null,"上記の診療従事者のうち、細胞診断に関する専門資格を有する者の人数","C",null,null,null,{"$f":"IF(AND(I146=\"C\",J146=\"\"),\"未入力あり\",IF(AND(I146=\"C\",J146<>\"\"),\"〇\",IF(I146=\"-\",\"\")))","v":"未入力あり"},null,null,null,null,null,null,0,10]
[147,null,null,null,null,"キ",null,"がんのリハビリテーションに係る業務に携わる専門的な知識および技能を有する理学療法士、作業療法士、言語聴覚士等の人数","C",null,null,null,"未入力あり",null,null,null,null,null,null,0,30]
[148,null,null,null,null,null,null,"がんのリハビリテーションに係る業務に携わる専門的な知識および技能を有する理学療法士の人数","-",null,null,null,{"$f":"+IF(ISBLANK(J148),\"未入力あり\",\"〇\")","v":"未入力あり"},null,null,null,null,null,null,0,10]
[149,null,null,null,null,null,null,"がんのリハビリテーションに係る業務に携わる専門的な知識および技能を有する作業療法士の人数","-",null,null,null,"未入力あり",null,null,null,null,null,null,0,10]
[150,null,null,null,null,null,null,"がんのリハビリテーションに係る業務に携わる専門的な知識および技能を有する言語聴覚士の人数","-",null,null,null,"未入力あり",null,null,null,null,null,null,0,10]
[151,null,null,"（３）","その他の環境整備等"]
[152,null,null,null,"①",null,null,"患者とその家族が利用可能なインターネット環境を整備している。","C",null,null,null,{"$f":"IF(AND(I152=\"C\",J152=\"\"),\"未入力あり\",IF(AND(I152=\"C\",J152<>\"\"),\"〇\",IF(I152=\"-\",\"\")))","v":"未入力あり"}]
[153,null,null,null,"②",null,null,"集学的治療等の内容や治療前後の生活における注意点等に関して、冊子や視聴覚教材等を用いてがん患者及びその家族が自主的に確認できる環境を整備している。","B",null,null,null,{"$f":"IF(AND(I153=\"B\",J153=\"\"),\"未入力あり\",IF(AND(I153=\"B\",J153<>\"\"),\"〇\",IF(I153=\"-\",\"\")))","v":"未入力あり"}]
[154,null,null,null,null,null,null,"その冊子や視聴覚教材等はオンラインでも確認できる。","C",null,null,null,"未入力あり"]
[155,null,null,null,"③",null,null,"がん治療に伴う外見の変化について、がん患者及びその家族に対する説明やアピアランスケアに関する情報提供・相談に応じられる体制を整備している。","B",null,null,null,{"$f":"IF(AND(I155=\"B\",J155=\"\"),\"未入力あり\",IF(AND(I155=\"B\",J155<>\"\"),\"〇\",IF(I155=\"-\",\"\")))","v":"未入力あり"}]
[156,null,null,null,"④",null,null,"がん患者の自殺リスクに対し、院内で共通したフローを使用し、対応方法や関係機関との連携について明確にしている。","C",null,"別紙6に詳細を記載してください。",null,"未入力あり"]
[157,null,null,null,null,null,null,"対応方法や関係機関との連携について、関係職種に情報共有を行う体制を構築している。","C",null,null,null,"未入力あり"]
[158,null,null,null,null,null,null,"自施設に精神科、心療内科等がある。","-",null,null,null,{"$f":"+IF(ISBLANK(J158),\"未入力あり\",\"〇\")","v":"未入力あり"}]
[159,null,null,null,null,null,null,"自施設でがん患者の自殺リスクに対応できる。","-",null,null,null,{"$f":"+IF(ISBLANK(J159),\"未入力あり\",\"〇\")","v":"未入力あり"}]
[160,null,null,null,null,null,null,"自施設に精神科、心療内科等がない場合は、地域の医療機関と連携体制を確保している。","A",null,"自施設に精神科はあるが、自施設単体で対応できない場合も回答してください。",null,{"$f":"+IF(I160=\"A\",IF(ISBLANK(J160),\"未入力あり\",IF(J160=\"はい\",\"○\",\"×\")),\"\")","v":"未入力あり"}]
[161,null,"２","診療実績"]
[162,null,null,{"$f":"\"以下の項目をそれぞれ概ね満たしている。\"&\"（期間：\"&'事務局使用（発出時は非表示にすること）'!B4&\"）\"","v":"以下の項目をそれぞれ概ね満たしている。（期間：令和４年１月１日～12月31日）"}]
[163,null,null,"（１）",null,null,null,"院内がん登録数\n（基準：年間300件以上）","A",null,"計上方法：入院、外来は問わない自施設初回治療分。症例区分20および30の数をいう。",null,{"$f":"+IF(I163=\"A\",IF(ISBLANK(J163),\"未入力あり\",IF(J163>=300,\"○\",\"×\")),\"\")","v":"未入力あり"},null,null,null,null,null,null,0,4000]
[164,null,null,"（２）",null,null,null,"悪性腫瘍の手術件数\n（基準：年間150件以上）","A",null,"計上方法：医科診療報酬点数表第２章第 10 部に掲げる悪性腫瘍手術をいう。（病理診断により悪性腫瘍であることが確認された場合に限る。）なお、内視鏡的切除も含む。",null,{"$f":"+IF(I164=\"A\",IF(ISBLANK(J164),\"未入力あり\",IF(J164>=150,\"○\",\"×\")),\"\")","v":"未入力あり"},null,null,null,null,null,null,0,3500]
[165,null,null,"（３）",null,null,null,"がんに係る薬物療法のべ患者数\n（参考基準：年間400人以上）","C",null,"計上方法：経口または静注による全身投与を対象とする。ただし内分泌療法単独の場合は含めない。なお、患者数については1レジメンあたりを1人として計上する。",null,{"$f":"IF(AND(I165=\"C\",J165=\"\"),\"未入力あり\",IF(AND(I165=\"C\",J165<>\"\"),\"〇\",IF(I165=\"-\",\"\")))","v":"未入力あり"},null,null,null,null,null,null,0,14000]
[166,null,null,null,null,null,null,"うち、外来化学療法のべ患者数","-",null,null,null,{"$f":"+IF(ISBLANK(J166),\"未入力あり\",\"〇\")","v":"未入力あり"},null,null,null,null,null,null,0,12000]
[167,null,null,"（４）",null,null,null,"放射線治療のべ患者数\n（参考基準：年間50人以上）","-",null,"計上方法：医科診療報酬点数表第2章第12部の放射線治療に含まれるものとする。ただし、血液照射は除く。なお、患者数については複数部位照射する場合でも、一連の治療計画であれば1人として計上する。",null,"未入力あり",null,null,null,null,null,null,0,2400]
[168,null,null,"（５）",null,null,null,"緩和ケアチームの新規介入患者数　　","-",null,"計上方法：患者数については同一入院期間内であれば複数回介入しても1人として計上する。",null,"未入力あり",null,null,null,null,null,null,0,880]
[169,null,"３","人材育成等"]
[170,null,null,"（１）",null,null,null,"自施設において、１に掲げる診療体制その他要件に関連する取組のために必要な人材の確保や育成に積極的に取り組んでいる。","A",null,null,null,{"$f":"+IF(I170=\"A\",IF(ISBLANK(J170),\"未入力あり\",IF(J170=\"はい\",\"○\",\"×\")),\"\")","v":"未入力あり"}]
[171,null,null,null,null,null,null,"特に、診療の質を高めるために必要な、各種学会が認定する資格等の取得についても積極的に支援している。","A",null,null,null,"未入力あり"]
[172,null,null,"（２）",null,null,null,"病院長は、自施設においてがん医療に携わる専門的な知識及び技能を有する医師等の専門性及び活動実績等を定期的に評価し、当該医師等がその専門性を十分に発揮できる体制を整備している。","A",null,null,null,"未入力あり"]
[173,null,null,"（３）",null,null,null,"「がん等の診療に携わる医師等に対する緩和ケア研修会の開催指針」（平成29年12月１日付け健発1201第２号厚生労働省健康局長通知の別添）に準拠し、当該がん医療圏においてがん診療に携わる医師を対象とした緩和ケアに関する研修を、都道府県と協議の上、開催している。","C",null,null,null,{"$f":"IF(AND(I173=\"C\",J173=\"\"),\"未入力あり\",IF(AND(I173=\"C\",J173<>\"\"),\"〇\",IF(I173=\"-\",\"\")))","v":"未入力あり"}]
[174,null,null,null,null,null,null,"自施設の長、および自施設に所属する臨床研修医及び１年以上自施設に所属するがん診療に携わる医師・歯科医師が当該研修を修了する体制を整備している。","C",null,null,null,"未入力あり"]
[175,null,null,null,null,null,null,"受講率を現況報告において以下のとおり。",null,null,null,null,null,null,null,null,null,null,null,0,100]
[176,null,null,null,null,null,null,{"$f":"+'事務局使用（発出時は非表示にすること）'!B3&\"で自施設に所属する初期臨床研修医の人数\"","v":"令和５年９月１日時点で自施設に所属する初期臨床研修医の人数"},"-",null,null,null,{"$f":"+IF(ISBLANK(J176),\"未入力あり\",\"〇\")","v":"未入力あり"},null,null,null,null,null,null,0,100]
[177,null,null,null,null,null,null,"うち当該研修会修了者数","-",null,null,null,"未入力あり",null,null,null,null,null,null,0,70]
[178,null,null,null,null,null,null,"受講率（％）","-",null,null,null,null,null,null,null,null,null,null,0,100]
[179,null,null,null,null,null,null,"１年以上自施設に所属するがん診療に携わる医師・歯科医師の人数（初期臨床研修医を除く）","-",null,null,null,{"$f":"+IF(ISBLANK(J179),\"未入力あり\",\"〇\")","v":"未入力あり"},null,null,null,null,null,null,0,470]
[180,null,null,null,null,null,null,"うち当該研修会修了者数","-",null,null,null,"未入力あり",null,null,null,null,null,null,0,360]
[181,null,null,null,null,null,null,"受講率（％）","-",null,null,null,null,null,null,null,null,null,null,0,100]
[182,null,null,null,null,null,null,"医師・歯科医師と協働し、緩和ケアに従事するその他の診療従事者についても受講を促している。","C",null,null,null,{"$f":"IF(AND(I182=\"C\",J182=\"\"),\"未入力あり\",IF(AND(I182=\"C\",J182<>\"\"),\"〇\",IF(I182=\"-\",\"\")))","v":"未入力あり"}]
[183,null,null,null,null,null,null,"研修修了者について、患者とその家族に対してわかりやすく情報提供している。","C",null,null,null,"未入力あり"]
[184,null,null,"（４）",null,null,null,"連携する地域の医療施設におけるがん診療に携わる医師に対して、緩和ケアに関する研修の受講勧奨を行っている。","C",null,null,null,"未入力あり"]
[185,null,null,"（５）",null,null,null,"（３）のほか、当該がん医療圏において顔の見える関係性を構築し、がん医療の質の向上につながるよう、地域の診療従事者を対象とした研修やカンファレンスを定期的に開催している。","C",null,null,null,"未入力あり"]
[186,null,null,"（６）",null,null,null,"自施設の診療従事者等に、がん対策の目的や意義、がん患者やその家族が利用できる制度や関係機関との連携体制、自施設で提供している診療・患者支援の体制について学ぶ機会を年１回以上確保している。","C",null,null,null,"未入力あり"]
[187,null,null,null,null,null,null,"自施設のがん診療に携わる全ての診療従事者が受講している。","C",null,null,null,"未入力あり"]
[188,null,null,null,null,null,null,{"$f":"+'事務局使用（発出時は非表示にすること）'!B4&\"の開催回数\"","v":"令和４年１月１日～12月31日の開催回数"},"-",null,null,null,{"$f":"+IF(ISBLANK(J188),\"未入力あり\",\"〇\")","v":"未入力あり"},null,null,null,null,null,null,0,100]
[189,null,null,"（７）",null,null,null,"院内の看護師を対象として、がん看護に関する総合的な研修を定期的に実施している。","C",null,null,null,{"$f":"IF(AND(I189=\"C\",J189=\"\"),\"未入力あり\",IF(AND(I189=\"C\",J189<>\"\"),\"〇\",IF(I189=\"-\",\"\")))","v":"未入力あり"}]
[190,null,null,null,null,null,null,{"$f":"+'事務局使用（発出時は非表示にすること）'!B4&\"の開催回数\"","v":"令和４年１月１日～12月31日の開催回数"},"-",null,null,null,{"$f":"+IF(ISBLANK(J190),\"未入力あり\",\"〇\")","v":"未入力あり"},null,null,null,null,null,null,0,100]
[191,null,null,null,null,null,null,"他の診療従事者についても、各々の専門に応じた研修を定期的に実施するまたは、他の施設等で実施されている研修に参加させている。","C",null,null,null,{"$f":"IF(AND(I191=\"C\",J191=\"\"),\"未入力あり\",IF(AND(I191=\"C\",J191<>\"\"),\"〇\",IF(I191=\"-\",\"\")))","v":"未入力あり"}]
[192,null,null,"（８）",null,null,null,"医科歯科連携による口腔健康管理を推進するために、歯科医師等を対象とするがん患者の口腔健康管理等の研修の実施に協力している。","C",null,null,null,"未入力あり"]
[193,null,"４","相談支援及び情報の収集提供"]
[194,null,null,"（１）","がん相談支援センター等"]
[195,null,null,null,null,null,null,"相談支援を行う機能を有する部門（がん相談支援センター等）を設置している。","A",null,null,null,{"$f":"+IF(I195=\"A\",IF(ISBLANK(J195),\"未入力あり\",IF(J195=\"はい\",\"○\",\"×\")),\"\")","v":"未入力あり"}]
[196,null,null,null,null,null,null,"必要に応じてオンラインでの相談を受け付けるなど、情報通信技術等も活用している。","B",null,null,null,{"$f":"IF(AND(I196=\"B\",J196=\"\"),\"未入力あり\",IF(AND(I196=\"B\",J196<>\"\"),\"〇\",IF(I196=\"-\",\"\")))","v":"未入力あり"}]
[197,null,null,null,null,null,null,"コミュニケーションに配慮が必要な者や、日本語を母国語としていない者等への配慮を適切に実施できる体制を確保している。","B",null,null,null,"未入力あり"]
[198,null,null,null,null,null,null,"情報取得や意思疎通に配慮が必要な者に対するマニュアルを作成している","-",null,null,null,{"$f":"+IF(ISBLANK(J198),\"未入力あり\",\"〇\")","v":"未入力あり"}]
[199,null,null,null,"①",null,null,"国立がん研究センターによるがん相談支援センター相談員基礎研修を修了した、相談支援に携わる者を配置している。","A",null,"別紙5に詳細を記載してください。",null,"未入力あり"]
[200,null,null,null,null,null,null,"がん相談支援センター相談員基礎研修（１）～（２）を修了した相談支援に携わる者の人数","-",null,null,null,"未入力あり",null,null,null,null,null,null,0,20]
[201,null,null,null,null,null,null,"当該相談支援に携わる者のうち１名は、社会福祉士である。","C",null,null,null,{"$f":"IF(AND(I201=\"C\",J201=\"\"),\"未入力あり\",IF(AND(I201=\"C\",J201<>\"\"),\"〇\",IF(I201=\"-\",\"\")))","v":"未入力あり"}]
[202,null,null,null,null,null,null,"がん相談支援センター相談員基礎研修（１）～（２）を修了した相談支援に携わる者のうち、社会福祉士の人数","-",null,null,null,"未入力あり",null,null,null,null,null,null,0,20]
[203,null,null,null,"②",null,null,"相談支援に携わる者は、対応の質の向上のために、がん相談支援センター相談員研修等や小児がん拠点病院相談員継続研修等により定期的な知識の更新に努めている。","A",null,null,null,{"$f":"+IF(I203=\"A\",IF(ISBLANK(J203),\"未入力あり\",IF(J203=\"はい\",\"○\",\"×\")),\"\")","v":"未入力あり"}]
[204,null,null,null,"③",null,null,"院内及び地域の診療従事者の協力を得て、院内外のがん患者及びその家族並びに地域の住民及び医療機関等からの相談等に対応する体制を整備している。","C",null,null,null,{"$f":"IF(AND(I204=\"C\",J204=\"\"),\"未入力あり\",IF(AND(I204=\"C\",J204<>\"\"),\"〇\",IF(I204=\"-\",\"\")))","v":"未入力あり"}]
[205,null,null,null,null,null,null,"相談支援に関し十分な経験を有するがん患者団体との連携協力体制の構築に積極的に取り組んでいる。","-",null,"別紙6に詳細を記載してください。",null,{"$f":"+IF(ISBLANK(J205),\"未入力あり\",\"〇\")","v":"未入力あり"}]
[206,null,null,null,"④",null,null,"がん相談支援センター等について周知するため、以下の体制を整備している。"]
[207,null,null,null,null,"ア",null,"外来初診時から治療開始までを目処に、がん患者及びその家族が必ず一度はがん相談支援センター等を訪問（必ずしも具体的な相談を伴わない、場所等の確認も含む）することができる体制を整備している。","B",null,"別紙5に具体的な取り組みを記載してください。",null,{"$f":"IF(AND(I207=\"B\",J207=\"\"),\"未入力あり\",IF(AND(I207=\"B\",J207<>\"\"),\"〇\",IF(I207=\"-\",\"\")))","v":"未入力あり"}]
[208,null,null,null,null,"イ",null,"治療に備えた事前の面談や準備のフローに組み込む等、診療の経過の中で患者が必要とするときに確実に利用できるよう\n繰り返し案内を行っている。","C",null,null,null,{"$f":"IF(AND(I208=\"C\",J208=\"\"),\"未入力あり\",IF(AND(I208=\"C\",J208<>\"\"),\"〇\",IF(I208=\"-\",\"\")))","v":"未入力あり"}]
[209,null,null,null,null,"ウ",null,"院内の見やすい場所にがん相談支援センターについて分かりやすく掲示している。","B",null,null,null,{"$f":"IF(AND(I209=\"B\",J209=\"\"),\"未入力あり\",IF(AND(I209=\"B\",J209<>\"\"),\"〇\",IF(I209=\"-\",\"\")))","v":"未入力あり"}]
[210,null,null,null,null,"エ",null,"地域の住民や医療・在宅・介護福祉等の関係機関に対し、がん相談支援センター等に関する広報を行っている。","B",null,null,null,"未入力あり"]
[211,null,null,null,null,null,null,"自施設に通院していない者からの相談にも対応している。","B",null,null,null,"未入力あり"]
[212,null,null,null,null,"オ",null,"がん相談支援センター等を初めて訪れた者の数を把握し、認知度の継続的な改善に努めている。","B",null,null,null,"未入力あり"]
[213,null,null,null,"⑤",null,null,"がん相談支援センター等の業務内容について、相談者からフィードバックを得る体制を整備している。","B",null,null,null,"未入力あり"]
[214,null,null,null,null,null,null,"フィードバックの内容を自施設の相談支援の質の向上のために活用するとともに、都道府県協議会で報告し、他施設とも情報共有している。","C",null,null,null,{"$f":"IF(AND(I214=\"C\",J214=\"\"),\"未入力あり\",IF(AND(I214=\"C\",J214<>\"\"),\"〇\",IF(I214=\"-\",\"\")))","v":"未入力あり"}]
[215,null,null,null,"⑥",null,null,"患者からの相談に対し、必要に応じて速やかに院内の診療従事者が対応できるよう、病院長もしくはそれに準じる者が統括するなど、がん相談支援センター等と院内の診療従事者が協働する体制を整備している。","B",null,null,null,{"$f":"IF(AND(I215=\"B\",J215=\"\"),\"未入力あり\",IF(AND(I215=\"B\",J215<>\"\"),\"〇\",IF(I215=\"-\",\"\")))","v":"未入力あり"}]
[216,null,null,null,"⑦",null,null,"がん相談支援センター等の相談支援に携わる者は、がん診療連携拠点病院が実施する相談支援に携わる者を対象とした研修を受講している。","C",null,null,null,{"$f":"IF(AND(I216=\"C\",J216=\"\"),\"未入力あり\",IF(AND(I216=\"C\",J216<>\"\"),\"〇\",IF(I216=\"-\",\"\")))","v":"未入力あり"}]
[217,null,null,null,"⑧",null,null,"がん患者及びその家族が心の悩みや体験等を語り合うための患者サロン等の場を設けている。","-",null,null,null,{"$f":"+IF(ISBLANK(J217),\"未入力あり\",\"〇\")","v":"未入力あり"}]
[218,null,null,null,null,null,null,"その際には、一定の研修を受けたピア・サポーターを活用する、もしくは十分な経験を持つ患者団体等と連携して実施するよう努めている。","-",null,null,null,"未入力あり"]
[219,null,null,"（２）","院内がん登録"]
[220,null,null,null,"①",null,null,"がん登録等の推進に関する法律（平成25年法律第111号）第44条第１項の規定に基づき定められた、院内がん登録の実施に係る指針（平成27年厚生労働省告示第470号）に即して院内がん登録を実施している。","A",null,null,null,{"$f":"+IF(I220=\"A\",IF(ISBLANK(J220),\"未入力あり\",IF(J220=\"はい\",\"○\",\"×\")),\"\")","v":"未入力あり"}]
[221,null,null,null,"②",null,null,"国立がん研究センターが実施する研修で認定を受けている、院内がん登録の実務を担う者を１人以上配置している。","C",null,"別紙7に詳細を記載してください。",null,{"$f":"IF(AND(I221=\"C\",J221=\"\"),\"未入力あり\",IF(AND(I221=\"C\",J221<>\"\"),\"〇\",IF(I221=\"-\",\"\")))","v":"未入力あり"}]
[222,null,null,null,null,null,null,"国立がん研究センターが実施する研修で認定を受けている者の人数","-",null,null,null,{"$f":"+IF(ISBLANK(J222),\"未入力あり\",\"〇\")","v":"未入力あり"},null,null,null,null,null,null,0,20]
[223,null,null,"（３）","情報提供・普及啓発"]
[224,null,null,null,"①",null,null,"自施設で対応できるがんについて、提供可能な診療内容を病院ホームページ等でわかりやすく広報している。","A",null,null,null,{"$f":"+IF(I224=\"A\",IF(ISBLANK(J224),\"未入力あり\",IF(J224=\"はい\",\"○\",\"×\")),\"\")","v":"未入力あり"}]
[225,null,null,null,null,null,null,"希少がん、小児がん、ＡＹＡ世代のがん患者への治療及び支援（妊孕性温存療法を含む）やがんゲノム医療についても、自施設で提供できる場合や連携して実施する場合はその旨を広報している。","C",null,null,null,{"$f":"IF(AND(I225=\"C\",J225=\"\"),\"未入力あり\",IF(AND(I225=\"C\",J225<>\"\"),\"〇\",IF(I225=\"-\",\"\")))","v":"未入力あり"}]
[226,null,null,null,null,null,null,"希少がんへの治療及び支援を自施設もしくは連携する施設への紹介等で提供できる。","-",null,null,null,{"$f":"+IF(ISBLANK(J226),\"未入力あり\",\"〇\")","v":"未入力あり"}]
[227,null,null,null,null,null,null,"提供できる治療・支援の内容を広報している。",{"$f":"+IF(ISBLANK(J226),\"C/-\",IF(J226=\"はい\",\"C\",\"-\"))","v":"C/-"},null,null,null,{"$f":"IF(AND(I227=\"C/-\",J227=\"\"),\"未入力あり\",IF(AND(I227=\"C\",J227<>\"\"),\"〇\",IF(I227=\"-\",\"\",\"未入力あり\")))","v":"未入力あり"}]
[228,null,null,null,null,null,null,"小児がんへの治療及び支援を自施設もしくは連携する施設への紹介等で提供できる。","-",null,null,null,"未入力あり"]
[229,null,null,null,null,null,null,"提供できる治療・支援の内容を広報している。",{"$f":"+IF(ISBLANK(J228),\"C/-\",IF(J228=\"はい\",\"C\",\"-\"))","v":"C/-"},null,null,null,{"$f":"IF(AND(I229=\"C/-\",J229=\"\"),\"未入力あり\",IF(AND(I229=\"C\",J229<>\"\"),\"〇\",IF(I229=\"-\",\"\",\"未入力あり\")))","v":"未入力あり"}]
[230,null,null,null,null,null,null,"AYA世代のがんへの治療及び支援を自施設もしくは連携する施設への紹介等で提供できる。","-",null,null,null,"未入力あり"]
[231,null,null,null,null,null,null,"提供できる治療・支援の内容を広報している。",{"$f":"+IF(ISBLANK(J230),\"C/-\",IF(J230=\"はい\",\"C\",\"-\"))","v":"C/-"},null,null,null,{"$f":"IF(AND(I231=\"C/-\",J231=\"\"),\"未入力あり\",IF(AND(I231=\"C\",J231<>\"\"),\"〇\",IF(I231=\"-\",\"\",\"未入力あり\")))","v":"未入力あり"}]
[232,null,null,null,null,null,null,"妊孕性温存療法を自施設もしくは連携する施設への紹介等で提供できる。","-",null,null,null,"未入力あり"]
[233,null,null,null,null,null,null,"提供できる治療・支援の内容を広報している。",{"$f":"+IF(ISBLANK(J232),\"C/-\",IF(J232=\"はい\",\"C\",\"-\"))","v":"C/-"},null,null,null,{"$f":"IF(AND(I233=\"C/-\",J233=\"\"),\"未入力あり\",IF(AND(I233=\"C\",J233<>\"\"),\"〇\",IF(I233=\"-\",\"\",\"未入力あり\")))","v":"未入力あり"}]
[234,null,null,null,null,null,null,"がんゲノム医療への治療及び支援を自施設もしくは連携する施設への紹介等で提供できる。","-",null,null,null,"未入力あり"]
[235,null,null,null,null,null,null,"提供できる治療・支援の内容を広報している。",{"$f":"+IF(ISBLANK(J234),\"C/-\",IF(J234=\"はい\",\"C\",\"-\"))","v":"C/-"},null,null,null,{"$f":"IF(AND(I235=\"C/-\",J235=\"\"),\"未入力あり\",IF(AND(I235=\"C\",J235<>\"\"),\"〇\",IF(I235=\"-\",\"\",\"未入力あり\")))","v":"未入力あり"}]
[236,null,null,null,null,null,null,"大規模災害や感染症の流行などにより自院の診療状況に変化が生じた場合には、速やかに情報公開をするよう努めている。","A",null,null,null,"未入力あり"]
[237,null,null,null,"②",null,null,"当該がん医療圏内のがん診療に関する情報について、病院ホームページ等でわかりやすく広報している。","C",null,null,null,{"$f":"IF(AND(I237=\"C\",J237=\"\"),\"未入力あり\",IF(AND(I237=\"C\",J237<>\"\"),\"〇\",IF(I237=\"-\",\"\")))","v":"未入力あり"}]
[238,null,null,null,null,null,null,"特に、我が国に多いがんの中で、自施設で対応しない診療内容についての連携先や集学的治療等が終了した後のフォローアップについて地域で連携する医療機関等の情報提供を行っている。","C",null,null,null,"未入力あり"]
[239,null,null,null,"③",null,null,"地域を対象として、緩和ケアやがん教育、患者向け・一般向けのガイドラインの活用法等に関する普及啓発に努めている。","C",null,null,null,"未入力あり"]
[240,null,null,null,"④",null,null,"参加中の治験についてその対象であるがんの種類及び薬剤名等を広報している。","C",null,null,null,"未入力あり",null,null,null,null,null,null,0,100]
[241,null,null,null,"⑤",null,null,"患者に対して治験も含めた医薬品等の臨床研究、先進医療、患者申出療養等に関する適切な情報提供を行うとともに、必要に応じて適切な医療機関に紹介している。","C",null,null,null,"未入力あり"]
[242,null,null,null,"⑥",null,null,"がん教育について、当該がん医療圏における学校や職域より依頼があった際には、外部講師として診療従事者を派遣し、がんに関する正しい知識の普及啓発に努めている。","C",null,null,null,"未入力あり"]
[243,null,null,null,null,null,null,"がん教育の実施に当たっては、児童生徒が当事者である場合や、身近にがん患者を持つ場合等があることを踏まえ、対象者へ十分な配慮を行っている。","C",null,null,null,"未入力あり"]
[244,null,"５","臨床研究及び調査研究"]
[245,null,null,"（１）",null,null,null,"政策的公衆衛生的に必要性の高い調査研究に協力している。","C",null,null,null,"未入力あり"]
[246,null,null,null,null,null,null,"これらの研究の協力依頼に対応する窓口の連絡先を国立がん研究センターに登録する。","C",null,null,null,"未入力あり"]
[247,null,null,"（２）",null,null,null,"治験を含む医薬品等の臨床研究を行う場合は、臨床研究コーディネーター（ＣＲＣ）を配置すること。",null,null,"委託も可"]
[248,null,null,null,null,null,null,"治験を含む医薬品等の臨床研究を行っている。","-",null,null,null,{"$f":"IF(ISBLANK(J248),\"未入力あり\",\"〇\")","v":"未入力あり"}]
[249,null,null,null,null,null,null,"臨床研究コーディネーターを配置している。",{"$f":"IF(ISBLANK($J$248),\"A/-\",IF($J$248=\"はい\",\"A\",\"-\"))","v":"A/-"},null,{"$f":"A248&\"が「はい」の場合は要件区分がAになります。\"","v":"248が「はい」の場合は要件区分がAになります。"},null,{"$f":"+IF(I249=\"A\",IF(ISBLANK(J249),\"未入力あり\",IF(J249=\"はい\",\"○\",\"×\")),\"\")","v":""}]
[250,null,null,null,null,null,null,"臨床研究コーディネーターとして勤務している者の人数",{"$f":"IF(ISBLANK($J$248),\"A/-\",IF($J$248=\"はい\",\"A\",\"-\"))","v":"A/-"},null,null,null,{"$f":"+IF(I250=\"A\",IF(ISBLANK(J250),\"未入力あり\",IF(J250>=1,\"○\",\"×\")),\"\")","v":""},null,null,null,null,null,null,0,20]
[251,null,null,null,null,null,null,"治験を除く医薬品等の臨床研究を行う場合は、臨床研究法に則った体制を整備すること。"]
[252,null,null,null,null,null,null,"治験を除く医薬品等の臨床研究を行っている。","-",null,null,null,{"$f":"IF(ISBLANK(J252),\"未入力あり\",\"〇\")","v":"未入力あり"}]
[253,null,null,null,null,null,null,"臨床研究法に則った体制を整備している。",{"$f":"IF(ISBLANK($J$252),\"A/-\",IF($J$252=\"はい\",\"A\",\"-\"))","v":"A/-"},null,{"$f":"A252&\"が「はい」の場合は要件区分がAになります。\"","v":"252が「はい」の場合は要件区分がAになります。"},null,{"$f":"+IF(I253=\"A\",IF(ISBLANK(J253),\"未入力あり\",IF(J253=\"はい\",\"○\",\"×\")),\"\")","v":""}]
[254,null,"６","医療の質の改善の取組及び安全管理"]
[255,null,null,"（１）",null,null,null,"組織上明確に位置づけられた医療に係る安全管理を行う部門（以下「医療安全管理部門」という。）を設置し、病院一体として医療安全対策を講じており、当該部門の長として常勤の医師を配置している。","A",null,null,null,{"$f":"+IF(I255=\"A\",IF(ISBLANK(J255),\"未入力あり\",IF(J255=\"はい\",\"○\",\"×\")),\"\")","v":"未入力あり"}]
[256,null,null,null,null,null,null,"医療に係る安全管理を行う者（医療安全管理者） として上記に規定する医師に加え、専任で常勤の薬剤師及び専従で常勤の看護師を配置している。","A",null,null,null,"未入力あり"]
[257,null,null,"（２）",null,null,null,"医療法等に基づく医療安全にかかる適切な体制を確保している。","A",null,"別紙9に詳細を記載してください。",null,"未入力あり"]
[258,null,null,"（３）",null,null,null,"日本医療機能評価機構の審査等の第三者による評価を受けている。","A",null,"別紙9に詳細を記載してください。\n日本医療機能評価機構に加え、JCI、ISO9001の認定も該当する。",null,"未入力あり"]
[259,null,null,null,null,null,null,"第三者の名称","-",null,"別紙9に詳細を記載してください。",null,{"$f":"+IF(AND($J$258=\"はい\",J259=\"\"),\"未入力あり\",IF(AND($J$258=\"はい\",J259<>\"\"),\"〇\",\"\"))","v":""}]
[260,null,null,null,null,null,null,"直近で評価を受けたタイミング（YYYY/MM、例：202209）","-",null,"別紙9に詳細を記載してください。",null,{"$f":"+IF(AND($J$258=\"はい\",J260=\"\"),\"未入力あり\",IF(AND($J$258=\"はい\",J260<>\"\"),\"〇\",\"\"))","v":""}]
[261,"Ⅱ","小児がん連携病院の指定を受けている場合の指定要件について"]
[262,null,"１","全般事項"]
[263,null,null,"（１）",null,null,null,"小児がんについて年間新規症例数が20例以上である。",{"$f":"+IF(OR($H$3=\"指定有り\"),\"-\",\"-\")","v":"-"},null,null,null,{"$f":"+IF($H$3=\"指定有り\",(IF(ISBLANK(J263),\"未入力あり\",\"〇\")),\"\")","v":""}]
[264,null,null,"（２）",null,null,null,"地域ブロック協議会への積極的な参加を通じて各地域の小児がん医療及び支援が適切に提供されるよう努めている。",{"$f":"+IF(OR($H$3=\"指定有り\"),\"A\",\"-\")","v":"-"},null,null,null,{"$f":"+IF(I264=\"A\",IF(ISBLANK(J264),\"未入力あり\",IF(J264=\"はい\",\"○\",\"×\")),\"\")","v":""}]
[265,null,null,"（３）",null,null,null,"成人診療科との連携を進めるため、がん診療連携拠点病院の都道府県協議会などに積極的に参画している。",{"$f":"+IF(OR($H$3=\"指定有り\"),\"A\",\"-\")","v":"-"},null,null,null,""]
[266,null,null,"（４）",null,null,null,"標準的治療が確立しており均てん化が可能ながん種について、拠点病院と同等程度の適切な医療を提供している。","-",null,null,null,{"$f":"+IF(I266=\"A\",IF(ISBLANK(J266),\"未入力あり\",IF(J266=\"はい\",\"○\",\"×\")),\"\")","v":""}]
[267,null,null,"（５）",null,null,null,"小児がん医療について、第三者認定を受けた医療施設であること。 ","-",null,null,null,""]
[268,null,null,null,null,null,null,"第三者認定を受けている内容","-",null,null,null,{"$f":"+IF(AND(OR($H$3=\"指定有り\"),J268=\"\"),\"未入力あり\",IF(AND(OR($H$3=\"指定有り\",),J268<>\"\"),\"〇\",\"\"))","v":""}]
[269,null,null,"（６）",null,null,null,"小児がん連携病院や地域の医療機関等から紹介された小児がん患者の受け入れを行っている。","-",null,null,null,""]
[270,null,null,"（７）",null,null,null,"小児がん患者の状態に応じ、小児がん連携病院や地域の医療機関等へ小児がん患者の紹介を行っている。","-",null,null,null,{"$f":"+IF(I270=\"A\",IF(ISBLANK(J270),\"未入力あり\",IF(J270=\"はい\",\"○\",\"×\")),\"\")","v":""}]
[271,null,null,"（８）",null,null,null,"小児がんの病理診断又は画像診断に関する依頼や手術療法、放射線療法又は薬物療法に関する相談など、小児がん連携病院や地域の医療機関等の 医師と相互に診断及び治療に関する連携協力体制を整備している。","-",null,null,null,""]
[272,null,null,"（９）",null,null,null,"がんゲノム医療中核拠点病院等と連携して、がん遺伝子パネル検査等に試料を提出するための体制も整備している。","-",null,null,null,""]
[273,null,"２","長期フォローアップ体制"]
[274,null,null,"（１）"]
[275,null,null,null,"①",null,null,"小児がん患者等の長期フォローアップが可能な体制を有するとともに、患者の状態に応じた適切な治療が必要な場合、自施設において適切な治療を提 供することが可能であり、また、自施設での対応が難しい場合には、拠点病院等適切な病院に紹介する体制を整えている。",{"$f":"+IF(OR($H$3=\"指定有り\"),\"A\",\"-\")","v":"-"},null,null,null,{"$f":"+IF(I275=\"A\",IF(ISBLANK(J275),\"未入力あり\",IF(J275=\"はい\",\"○\",\"×\")),\"\")","v":""}]
[276,null,null,null,"②",null,null,"小児がん患者に対して、移行期医療や成人後の晩期合併症対応等も含めた長期フォローアップ体制を構築している。","-",null,null,null,""]
[277,null,null,null,"③",null,null,"長期フォローアップ外来(小児がん経験者の健康管理、晩期合併症の予防、疾病の早期発見・早期治療のための外来)を開設している。","-",null,null,null,{"$f":"+IF(I277=\"A\",IF(ISBLANK(J277),\"未入力あり\",IF(J277=\"はい\",\"○\",\"×\")),\"\")","v":""}]
[278,null,null,null,"④",null,null,"ＡＹＡ世代にあるがん患者について、がん診療連携拠点病院等への紹介も含めた適切な医療を提供できる体制を構築している。","-",null,null,null,""]
[279,null,null,"（２）",null,null,null,"厚生労働省委託事業小児・ＡＹＡ世代のがんの長期フォローアップ体制整備事業による「小児・ＡＹＡ世代のがんの長期フォローアップに関する研修会」を 受講した医師を配置している。",{"$f":"+IF(OR($H$3=\"指定有り\"),\"-\",\"-\")","v":"-"},null,null,null,{"$f":"+IF($H$3=\"指定有り\",(IF(ISBLANK(J279),\"未入力あり\",\"〇\")),\"\")","v":""}]
[280,null,null,"（３）",null,null,null,"長期フォローアップに際して連携する拠点病院等を明示するとともに、必要時には地域ブロック内外の施設との連携も図ること。",{"$f":"+IF(OR($H$3=\"指定有り\"),\"-\",\"-\")","v":"-"},null,null,null,""]
[281,null,"３","小児がん患者の発育及び教育等の環境"]
[282,null,null,"（１）",null,null,null,"保育士を配置している",{"$f":"+IF(OR($H$3=\"指定有り\"),\"C\",\"-\")","v":"-"},null,null,null,{"$f":"IF(AND(I282=\"C\",J282=\"\"),\"未入力あり\",IF(AND(I282=\"C\",J282<>\"\"),\"〇\",IF(I282=\"-\",\"\")))","v":""}]
[283,null,null,"（２）",null,null,null,"病弱等の特別支援学校又は小中学校等の病弱・身体虚弱等の特別支援学級による教育支援（特別支援学校による訪問教育を含む。）が行われている。",{"$f":"+IF(OR($H$3=\"指定有り\"),\"C\",\"-\")","v":"-"},null,null,null,{"$f":"IF(AND(I283=\"C\",J283=\"\"),\"未入力あり\",IF(AND(I283=\"C\",J283<>\"\"),\"〇\",IF(I283=\"-\",\"\")))","v":""}]
[284,null,null,"（３）",null,null,null,"義務教育段階だけではなく、高等学校段階においても必要な教育支援を行っている。","-",null,null,null,""]
[285,null,null,"（４）",null,null,null,"退院時の復園及び復学支援が行われている。","-",null,null,null,""]
[286,null,null,"（５）",null,null,null,"子どもの発達段階に応じた遊戯室等を設置している。","-",null,null,null,""]
[287,null,null,"（６）",null,null,null,"家族等が利用できる長期滞在施設又はこれに準じる施設が整備されている。","-",null,null,null,""]
[288,null,null,"（７）",null,null,null,"家族等の希望により、24時間面会又は患者の付き添いができる体制を構築している。","-",null,null,null,""]
[289,null,null,"（８）",null,null,null,"なお、この体制の質の向上についても積極的に取り組んでいる。","-",null,null,null,""]
[290,null,null,"（９）",null,null,null,"患者のきょうだいに対する保育の体制整備を行っている。","-",null,null,null,""]
[291,null,null,"（１０）",null,null,null,"教育課程によらず、切れ目のない教育支援のためにＩＣＴ(情報通信技術)等を活用した学習活動を含めた学習環境の整備を進めている。","-",null,null,null,""]
[292,null,null,"（１１）",null,null,null,"小児がん患者の精神的なケアに関して、対応方法や関係機関との連携について明確にしているとともに、 関係職種に情報共有を行う体制を構築している。","-",null,null,null,""]
[293,null,null,"（１２）",null,null,null,"自施設に精神科・心療内科等があり、自施設で小児がん患者の精神的なケアの対応ができる。","-",null,null,null,""]

{"sheet":"別紙1未充足要件","index":5,"n_rows":50,"n_cols":10,"rows_kept":50,"cut":false,"hidden":false,"merged":[[11,3,11,5],[12,3,12,5],[13,3,13,5],[14,3,14,5],[15,3,15,5],[29,3,29,5],[16,3,16,5],[17,3,17,5],[18,3,18,5],[19,3,19,5],[20,3,20,5],[21,3,21,5],[22,3,22,5],[23,3,23,5],[24,3,24,5],[25,3,25,5],[26,3,26,5],[27,3,27,5],[28,3,28,5],[1,7,3,7],[1,6,3,6],[9,3,9,5],[8,3,8,5],[7,3,7,5],[6,3,6,5],[10,3,10,5],[0,0,0,5],[1,0,1,4],[3,4,3,5],[5,0,5,5],[30,3,30,5],[31,3,31,5],[32,3,32,5],[33,3,33,5],[34,3,34,5],[35,3,35,5],[36,3,36,5],[37,3,37,5],[38,3,38,5],[39,3,39,5],[40,3,40,5],[41,3,41,5],[42,3,42,5],[43,3,43,5],[44,3,44,5],[45,3,45,5],[46,3,46,5],[47,3,47,5],[48,3,48,5],[49,3,49,5]]}
["様式4（機能別）の該当指定要件のAのうち満たしていない項目について"]
["記載の有無：入力済／未入力／不要",null,null,null,null,{"$f":"IF(COUNTIF(G:G,\"未入力\")>=1,\"未入力\",IF(COUNTIF(G:G,\"入力済\")=0,\"不要\",\"入力済\"))","v":"不要"}]
[]
[null,null,null,"病院名：",{"$f":"表紙!E3","v":0},null,null,null,null,"※印刷範囲外です。メモ書きとして使えますが、提出前には個人情報などの記載がないことをご確認ください。"]
[null,null,null,"時期・期間：",{"$f":"+'事務局使用（発出時は非表示にすること）'!B3","v":"令和５年９月１日時点"}]
["※様式4（機能別）の該当指定要件のAのうち満たしていない項目について、満たしていない内容について具体的に説明を記載してください。\n※通し番号については、様式４（機能別）シートのA列（左端）の番号を記入してください。\n※右上について、最初は「不要」と表示されます。様式４（機能別）を入力後に、上部にある「様式４（機能別」シートの入力後、クリックしてください。」ボタンを押下ください。未充足要件が抽出されます。"]
[null,"通し番号","令和５年９月１日時点で満たせていない要件\n(通し番号を入力すれば、自動入力されます。)","現状の説明"]
["例",120,{"$f":"+IFERROR(VLOOKUP($B8,'[1]様式４(機能別)'!$A:$K,8,0),\"\")","v":"上記のうち、身体症状の緩和に携わる専任の医師の人数"},"令和５年９月１日時点では医師は配置できていない（精神症状と兼任で配置している）。"]
["例",176,{"$f":"+IFERROR(VLOOKUP($B9,'[1]様式４(機能別)'!$A:$K,8,0),\"\")","v":"受講率を現況報告において以下のとおり。"},"外来の化学療法室を設置していない。"]
["例",212,{"$f":"+IFERROR(VLOOKUP($B10,'[1]様式４(機能別)'!$A:$K,8,0),\"\")","v":"自施設に通院していない者からの相談にも対応している。"},"地域の医療機関と連携体制の確保を準備しているところである。"]
[1,null,{"$f":"+IFERROR(VLOOKUP($B11,'[1]様式４(機能別)'!$A:$K,8,0),\"\")","v":""},null,null,null,{"$f":"IF(B11<>\"\",IF(AND(D11<>\"\",E11<>\"\"),\"入力済\",\"未入力\"),\"不要\")","v":"不要"}]
[2,null,{"$f":"+IFERROR(VLOOKUP($B12,'[1]様式４(機能別)'!$A:$K,8,0),\"\")","v":""},null,null,null,{"$f":"IF(B12<>\"\",IF(AND(D12<>\"\",E12<>\"\"),\"入力済\",\"未入力\"),\"不要\")","v":"不要"}]
[3,null,{"$f":"+IFERROR(VLOOKUP($B13,'[1]様式４(機能別)'!$A:$K,8,0),\"\")","v":""},null,null,null,{"$f":"IF(B13<>\"\",IF(AND(D13<>\"\",E13<>\"\"),\"入力済\",\"未入力\"),\"不要\")","v":"不要"}]
[4,null,{"$f":"+IFERROR(VLOOKUP($B14,'[1]様式４(機能別)'!$A:$K,8,0),\"\")","v":""},null,null,null,"不要"]
[5,null,{"$f":"+IFERROR(VLOOKUP($B15,'[1]様式４(機能別)'!$A:$K,8,0),\"\")","v":""},null,null,null,"不要"]
[6,null,{"$f":"+IFERROR(VLOOKUP($B16,'[1]様式４(機能別)'!$A:$K,8,0),\"\")","v":""},null,null,null,"不要"]
[7,null,{"$f":"+IFERROR(VLOOKUP($B17,'[1]様式４(機能別)'!$A:$K,8,0),\"\")","v":""},null,null,null,"不要"]
[8,null,{"$f":"+IFERROR(VLOOKUP($B18,'[1]様式４(機能別)'!$A:$K,8,0),\"\")","v":""},null,null,null,"不要"]
[9,null,{"$f":"+IFERROR(VLOOKUP($B19,'[1]様式４(機能別)'!$A:$K,8,0),\"\")","v":""},null,null,null,"不要"]
[10,null,{"$f":"+IFERROR(VLOOKUP($B20,'[1]様式４(機能別)'!$A:$K,8,0),\"\")","v":""},null,null,null,"不要"]
[11,null,{"$f":"+IFERROR(VLOOKUP($B21,'[1]様式４(機能別)'!$A:$K,8,0),\"\")","v":""},null,null,null,"不要"]
[12,null,{"$f":"+IFERROR(VLOOKUP($B22,'[1]様式４(機能別)'!$A:$K,8,0),\"\")","v":""},null,null,null,"不要"]
[13,null,{"$f":"+IFERROR(VLOOKUP($B23,'[1]様式４(機能別)'!$A:$K,8,0),\"\")","v":""},null,null,null,"不要"]
[14,null,{"$f":"+IFERROR(VLOOKUP($B24,'[1]様式４(機能別)'!$A:$K,8,0),\"\")","v":""},null,null,null,"不要"]
[15,null,{"$f":"+IFERROR(VLOOKUP($B25,'[1]様式４(機能別)'!$A:$K,8,0),\"\")","v":""},null,null,null,"不要"]
[16,null,{"$f":"+IFERROR(VLOOKUP($B26,'[1]様式４(機能別)'!$A:$K,8,0),\"\")","v":""},null,null,null,"不要"]
[17,null,{"$f":"+IFERROR(VLOOKUP($B27,'[1]様式４(機能別)'!$A:$K,8,0),\"\")","v":""},null,null,null,"不要"]
[18,null,{"$f":"+IFERROR(VLOOKUP($B28,'[1]様式４(機能別)'!$A:$K,8,0),\"\")","v":""},null,null,null,"不要"]
[19,null,{"$f":"+IFERROR(VLOOKUP($B29,'[1]様式４(機能別)'!$A:$K,8,0),\"\")","v":""},null,null,null,"不要"]
[20,null,{"$f":"+IFERROR(VLOOKUP($B30,'[1]様式４(機能別)'!$A:$K,8,0),\"\")","v":""},null,null,null,"不要"]
[21,null,{"$f":"+IFERROR(VLOOKUP($B31,'[1]様式４(機能別)'!$A:$K,8,0),\"\")","v":""}]
[22,null,{"$f":"+IFERROR(VLOOKUP($B32,'[1]様式４(機能別)'!$A:$K,8,0),\"\")","v":""}]
[23,null,{"$f":"+IFERROR(VLOOKUP($B33,'[1]様式４(機能別)'!$A:$K,8,0),\"\")","v":""}]
[24,null,{"$f":"+IFERROR(VLOOKUP($B34,'[1]様式４(機能別)'!$A:$K,8,0),\"\")","v":""}]
[25,null,{"$f":"+IFERROR(VLOOKUP($B35,'[1]様式４(機能別)'!$A:$K,8,0),\"\")","v":""}]
[26,null,{"$f":"+IFERROR(VLOOKUP($B36,'[1]様式４(機能別)'!$A:$K,8,0),\"\")","v":""}]
[27,null,{"$f":"+IFERROR(VLOOKUP($B37,'[1]様式４(機能別)'!$A:$K,8,0),\"\")","v":""}]
[28,null,{"$f":"+IFERROR(VLOOKUP($B38,'[1]様式４(機能別)'!$A:$K,8,0),\"\")","v":""}]
[29,null,{"$f":"+IFERROR(VLOOKUP($B39,'[1]様式４(機能別)'!$A:$K,8,0),\"\")","v":""}]
[30,null,{"$f":"+IFERROR(VLOOKUP($B40,'[1]様式４(機能別)'!$A:$K,8,0),\"\")","v":""}]
[31,null,{"$f":"+IFERROR(VLOOKUP($B41,'[1]様式４(機能別)'!$A:$K,8,0),\"\")","v":""}]
[32,null,{"$f":"+IFERROR(VLOOKUP($B42,'[1]様式４(機能別)'!$A:$K,8,0),\"\")","v":""}]
[33,null,{"$f":"+IFERROR(VLOOKUP($B43,'[1]様式４(機能別)'!$A:$K,8,0),\"\")","v":""}]
[34,null,{"$f":"+IFERROR(VLOOKUP($B44,'[1]様式４(機能別)'!$A:$K,8,0),\"\")","v":""}]
[35,null,{"$f":"+IFERROR(VLOOKUP($B45,'[1]様式４(機能別)'!$A:$K,8,0),\"\")","v":""}]
[36,null,{"$f":"+IFERROR(VLOOKUP($B46,'[1]様式４(機能別)'!$A:$K,8,0),\"\")","v":""}]
[37,null,{"$f":"+IFERROR(VLOOKUP($B47,'[1]様式４(機能別)'!$A:$K,8,0),\"\")","v":""}]
[38,null,{"$f":"+IFERROR(VLOOKUP($B48,'[1]様式４(機能別)'!$A:$K,8,0),\"\")","v":""}]
[39,null,{"$f":"+IFERROR(VLOOKUP($B49,'[1]様式４(機能別)'!$A:$K,8,0),\"\")","v":""}]
[40,null,{"$f":"+IFERROR(VLOOKUP($B50,'[1]様式４(機能別)'!$A:$K,8,0),\"\")","v":""}]

{"sheet":"別紙2専門とするがんの診療状況","index":6,"n_rows":79,"n_cols":13,"rows_kept":79,"cut":false,"hidden":false,"merged":[[71,6,73,6],[71,1,71,5],[11,0,12,0],[11,1,12,1],[11,2,11,4],[11,5,12,5],[72,0,73,0],[72,1,73,1],[72,2,72,4],[72,5,73,5],[0,0,0,7],[1,1,1,6],[3,6,3,7],[5,0,5,7],[10,1,10,5],[10,6,12,6]]}
["専門とするがんの診療状況"]
[null,"記載の有無：入力済／未入力",null,null,null,null,null,{"$f":"IF(COUNTIF(K14:K79,\"×\")=0,\"入力済\",\"未入力あり\")","v":"未入力あり"}]
[]
[null,null,null,null,null,"病院名：",{"$f":"+表紙!E3","v":0}]
[null,null,null,null,null,"時期・期間：",{"$f":"+'事務局使用（発出時は非表示にすること）'!B4","v":"令和４年１月１日～12月31日"}]
["我が国に多いがんと、希少がんを含むそれ以外のがんの各がん種において、\n■診断および初発例に対する各治療、再発例への治療について自施設の専門レベルを専門：◎、対応可：〇、他施設へ紹介：△で記入してください。\n・専門（◎）：当該がんを特に専門とする医師がおり、周囲の施設から患者を積極的に集めている\n・対応可（〇）：積極的に患者を集めるわけではないが、自施設で標準的な対応（診断・治療）が可能\n・他施設へ紹介（△）：他の施設に紹介することで対応している\n\n■ 特に明記されていないところでは、各臓器でリンパ腫を除く各部位のがんについてお答えください。\n■通常初回治療として行われない治療については、記入不要です（グレー背景）。それ以外は全てご回答ください。",null,null,null,null,null,null,null,null,null,null,null,"※印刷範囲外です。メモ書きとして使えますが、提出前には個人情報などの記載がないことをご確認ください。"]
[null,"注１","専門（◎）＝当該がんを特に専門とする医師がおり、当該がんの患者を積極的に集めている"]
[null,null,"対応可（○）＝当該がんの標準的な診断/治療が可能"]
[null,null,"他施設へ紹介（△）：他の施設に紹介することで対応している"]
[]
[null,"専門◎／対応可〇／他施設へ紹介△（注１）",null,null,null,null,"担当診療科\n（複数記載可）","備考"]
["成人（15歳以上）","診断\n(生検等)","初発例への治療",null,null,"再発例\nへの治療"]
[null,null,"手術","放射線","薬物療法",null,null,"公開の窓口・特記事項など"]
["脳腫瘍（リンパ腫以外）",null,null,null,null,null,null,null,null,null,{"$f":"IF(COUNTBLANK(B14:F14)=0,\"○\",\"×\")","v":"×"}]
["脳腫瘍（リンパ腫）",null,null,null,null,null,null,null,null,null,{"$f":"IF(OR(B15=\"\",D15=\"\",E15=\"\",F15=\"\"),\"×\",\"○\")","v":"×"}]
["脊髄腫瘍",null,null,null,null,null,null,null,null,null,{"$f":"IF(COUNTBLANK(B16:F16)=0,\"○\",\"×\")","v":"×"}]
["眼腫瘍（眼瞼以外）",null,null,null,null,null,null,null,null,null,{"$f":"IF(COUNTBLANK(B17:F17)=0,\"○\",\"×\")","v":"×"}]
["鼻腔・副鼻腔がん",null,null,null,null,null,null,null,null,null,"×"]
["口腔がん",null,null,null,null,null,null,null,null,null,"×"]
["咽頭がん（上・中・下）",null,null,null,null,null,null,null,null,null,"×"]
["喉頭がん",null,null,null,null,null,null,null,null,null,"×"]
["唾液腺がん",null,null,null,null,null,null,null,null,null,"×"]
["外耳道がん",null,null,null,null,null,null,null,null,null,"×"]
["頭頚部肉腫",null,null,null,null,null,null,null,null,null,"×"]
["甲状腺がん",null,null,null,null,null,null,null,null,null,"×"]
["乳がん",null,null,null,null,null,null,null,null,null,"×"]
["気管がん",null,null,null,null,null,null,null,null,null,"×"]
["非小細胞肺がん",null,null,null,null,null,null,null,null,null,"×"]
["小細胞肺がん",null,null,null,null,null,null,null,null,null,"×"]
["胸腺がん",null,null,null,null,null,null,null,null,null,"×"]
["胸腺腫",null,null,null,null,null,null,null,null,null,"×"]
["縦隔胚細胞腫瘍",null,null,null,null,null,null,null,null,null,{"$f":"IF(OR(B32=\"\",C32=\"\",E32=\"\",F32=\"\"),\"×\",\"○\")","v":"×"}]
["縦隔腫瘍（上記以外の腫瘍）",null,null,null,null,null,null,null,null,null,{"$f":"IF(COUNTBLANK(B33:F33)=0,\"○\",\"×\")","v":"×"}]
["中皮腫（胸膜）",null,null,null,null,null,null,null,null,null,"×"]
["中皮腫（腹膜）",null,null,null,null,null,null,null,null,null,"×"]
["食道がん",null,null,null,null,null,null,null,null,null,"×"]
["胃がん",null,null,null,null,null,null,null,null,null,"×"]
["小腸がん",null,null,null,null,null,null,null,null,null,"×"]
["大腸がん(結腸・直腸）",null,null,null,null,null,null,null,null,null,"×"]
["肛門・肛門管がん",null,null,null,null,null,null,null,null,null,"×"]
["消化管間質性腫瘍（GIST）",null,null,null,null,null,null,null,null,null,{"$f":"IF(OR(B41=\"\",C41=\"\",E41=\"\",F41=\"\"),\"×\",\"○\")","v":"×"}]
["消化管の神経内分泌腫瘍（NET／NEC)",null,null,null,null,null,null,null,null,null,{"$f":"IF(COUNTBLANK(B42:F42)=0,\"○\",\"×\")","v":"×"}]
["肝臓がん",null,null,null,null,null,null,null,null,null,"×"]
["胆のう・胆管がん",null,null,null,null,null,null,null,null,null,"×"]
["膵臓がん（NET/NEC以外）",null,null,null,null,null,null,null,null,null,"×"]
["膵臓の神経内分泌腫瘍（NET／NEC)",null,null,null,null,null,null,null,null,null,"×"]
["腹膜偽粘液腫（他のがんの腹膜播種を除く）",null,null,null,null,null,null,null,null,null,{"$f":"IF(OR(B47=\"\",C47=\"\",E47=\"\",F47=\"\"),\"×\",\"○\")","v":"×"}]
["デスモイド腫瘍",null,null,null,null,null,null,null,null,null,{"$f":"IF(COUNTBLANK(B48:F48)=0,\"○\",\"×\")","v":"×"}]
["後腹膜肉腫",null,null,null,null,null,null,null,null,null,"×"]
["腎がん",null,null,null,null,null,null,null,null,null,{"$f":"IF(OR(B50=\"\",C50=\"\",E50=\"\",F50=\"\"),\"×\",\"○\")","v":"×"}]
["褐色細胞腫・傍神経節腫瘍（頭頸部以外）",null,null,null,null,null,null,null,null,null,{"$f":"IF(COUNTBLANK(B51:F51)=0,\"○\",\"×\")","v":"×"}]
["副腎皮質がん",null,null,null,null,null,null,null,null,null,"×"]
["腎盂尿管がん・膀胱がん",null,null,null,null,null,null,null,null,null,"×"]
["精巣腫瘍",null,null,null,null,null,null,null,null,null,"×"]
["前立腺がん",null,null,null,null,null,null,null,null,null,"×"]
["子宮頸がん（上皮性）",null,null,null,null,null,null,null,null,null,"×"]
["子宮体がん（上皮性）（子宮がん肉腫を含む）",null,null,null,null,null,null,null,null,null,"×"]
["子宮肉腫",null,null,null,null,null,null,null,null,null,"×"]
["卵巣がん、卵管がん、腹膜がん（上皮性）",null,null,null,null,null,null,null,null,null,{"$f":"IF(OR(B59=\"\",C59=\"\",E59=\"\",F59=\"\"),\"×\",\"○\")","v":"×"}]
["卵巣悪性胚細胞腫瘍",null,null,null,null,null,null,null,null,null,{"$f":"IF(OR(B60=\"\",C60=\"\",E60=\"\",F60=\"\"),\"×\",\"○\")","v":"×"}]
["外陰がん",null,null,null,null,null,null,null,null,null,{"$f":"IF(COUNTBLANK(B61:F61)=0,\"○\",\"×\")","v":"×"}]
["四肢・表在体幹の悪性軟部腫瘍",null,null,null,null,null,null,null,null,null,"×"]
["四肢の悪性骨腫瘍",null,null,null,null,null,null,null,null,null,"×"]
["脊椎・骨盤の悪性骨腫瘍",null,null,null,null,null,null,null,null,null,"×"]
["皮膚の悪性黒色腫",null,null,null,null,null,null,null,null,null,"×"]
["皮膚がん（悪性黒色腫以外）",null,null,null,null,null,null,null,null,null,"×"]
["悪性リンパ腫",null,null,null,null,null,null,null,null,null,{"$f":"IF(OR(B67=\"\",D67=\"\",E67=\"\",F67=\"\"),\"×\",\"○\")","v":"×"}]
["急性白血病（骨髄性、リンパ性）",null,null,null,null,null,null,null,null,null,{"$f":"IF(OR(B68=\"\",D68=\"\",E68=\"\",F68=\"\"),\"×\",\"○\")","v":"×"}]
["慢性白血病（骨髄性、リンパ性）",null,null,null,null,null,null,null,null,null,{"$f":"IF(OR(B69=\"\",D69=\"\",E69=\"\",F69=\"\"),\"×\",\"○\")","v":"×"}]
["多発性骨髄腫",null,null,null,null,null,null,null,null,null,{"$f":"IF(OR(B70=\"\",D70=\"\",E70=\"\",F70=\"\"),\"×\",\"○\")","v":"×"}]
["原発不明がん",null,null,null,null,null,null,null,null,null,{"$f":"IF(COUNTBLANK(B71:F71)=0,\"○\",\"×\")","v":"×"}]
[null,"専門◎／対応可〇／他施設へ紹介△",null,null,null,null,"担当診療科\n（複数記載可）","備考"]
["小児（15歳未満）","診断\n(生検等)","初発例への治療",null,null,"再発例\nへの治療"]
[null,null,"手術","放射線","薬物療法",null,null,"公開の窓口・特記事項など"]
["小児脳腫瘍",null,null,null,null,null,null,null,null,null,{"$f":"IF(COUNTBLANK(B75:F75)=0,\"○\",\"×\")","v":"×"}]
["小児眼腫瘍",null,null,null,null,null,null,null,null,null,{"$f":"IF(COUNTBLANK(B76:F76)=0,\"○\",\"×\")","v":"×"}]
["小児悪性骨軟部腫瘍",null,null,null,null,null,null,null,null,null,{"$f":"IF(COUNTBLANK(B77:F77)=0,\"○\",\"×\")","v":"×"}]
["小児造血器腫瘍",null,null,null,null,null,null,null,null,null,{"$f":"IF(OR(B78=\"\",D78=\"\",E78=\"\",F78=\"\"),\"×\",\"○\")","v":"×"}]
["小児固形腫瘍(脳・目・骨軟部以外）",null,null,null,null,null,null,null,null,null,{"$f":"IF(COUNTBLANK(B79:F79)=0,\"○\",\"×\")","v":"×"}]

{"sheet":"別紙3自施設で対応しないもの","index":7,"n_rows":19,"n_cols":17,"rows_kept":19,"cut":false,"hidden":false,"merged":[[0,0,0,10],[1,1,1,9],[1,11,5,11],[3,6,3,10],[8,0,9,0],[14,4,14,11],[17,4,17,11],[18,4,18,11],[15,4,15,11],[16,4,16,11],[11,4,11,11],[8,1,8,3],[8,4,9,11],[12,4,12,11],[13,4,13,11],[10,4,10,11]]}
["我が国に多いがんに対して、自施設で対応しない診療内容"]
[null,"記載の有無：入力済／未入力",null,null,null,null,null,null,null,null,{"$f":"IF(COUNTIF(N12:O19,\"×\")=0,\"入力済\",\"未入力あり\")","v":"未入力あり"}]
[]
[null,null,null,null,null,"病院名：",{"$f":"+表紙!E3","v":0}]
[null,null,null,null,null,"時期・期間：",{"$f":"+'事務局使用（発出時は非表示にすること）'!B3","v":"令和５年９月１日時点"},null,null,null,null,null,null,null,null,null,"※印刷範囲外です。メモ書きとして使えますが、提出前には個人情報などの記載がないことをご確認ください。"]
[]
["我が国に多いがんに対して、自施設で対応しない診療内容があれば、下の表に状況を記載してください。"]
[]
["我が国に多いがん","自施設で対応している診療内容について”○”を、\n自施設で対応しない診療内容について”×”を入力してください。",null,null,"自施設で対応していない診療内容についての連携先\n（施設名・診療内容）"]
[null,"手術療法","薬物療法","放射線療法"]
["（例）膵臓がん","×","○","×","手術を要する膵臓がん患者は、連携する××病院に紹介している。\n手術後の薬物療法については、自施設で対応している。"]
["大腸がん",null,null,null,null,null,null,null,null,null,null,null,null,{"$f":"IF(COUNTBLANK(B12:D12)=0,\"○\",\"×\")","v":"×"},{"$f":"IF(AND(COUNTIF(B12:D12,\"×\")>=1,E12=\"\"),\"×\",\"○\")","v":"○"}]
["　肺がん",null,null,null,null,null,null,null,null,null,null,null,null,{"$f":"IF(COUNTBLANK(B13:D13)=0,\"○\",\"×\")","v":"×"},{"$f":"IF(AND(COUNTIF(B13:D13,\"×\")>=1,E13=\"\"),\"×\",\"○\")","v":"○"}]
["胃がん",null,null,null,null,null,null,null,null,null,null,null,null,"×","○"]
["乳がん",null,null,null,null,null,null,null,null,null,null,null,null,"×","○"]
["前立腺がん",null,null,null,null,null,null,null,null,null,null,null,null,"×","○"]
["肝がん",null,null,null,null,null,null,null,null,null,null,null,null,"×","○"]
["胆のう・胆管がん",null,null,null,null,null,null,null,null,null,null,null,null,"×","○"]
["膵臓がん",null,null,null,null,null,null,null,null,null,null,null,null,"×","○"]

{"sheet":"別紙4緩和メンバー","index":8,"n_rows":28,"n_cols":10,"rows_kept":28,"cut":false,"hidden":false,"merged":[[0,0,0,5],[3,0,3,5],[21,3,21,5],[24,3,24,5],[23,3,23,5],[22,3,22,5],[9,0,9,5],[2,0,2,4],[2,6,5,6],[26,3,26,5],[12,3,12,5],[13,3,13,5],[14,3,14,5],[15,3,15,5],[16,3,16,5],[17,3,17,5],[18,3,18,5],[19,3,19,5],[20,3,20,5],[25,3,25,5],[10,3,10,5],[11,3,11,5],[7,1,7,5]]}
["緩和ケアチームのメンバー"]
[]
["記載の有無：入力済／未入力",null,null,null,null,{"$f":"IF(H13=\"×\",\"未入力あり\",\"入力済\")","v":"未入力あり"}]
[]
[null,null,null,null,"病院名：",{"$f":"表紙!E3","v":0},null,null,null,"※印刷範囲外です。メモ書きとして使えますが、提出前には個人情報などの記載がないことをご確認ください。"]
[null,null,null,null,"期間：",{"$f":"+'事務局使用（発出時は非表示にすること）'!B3","v":"令和５年９月１日時点"}]
["緩和ケアチームのメンバーについて記載してください。"]
[null,"注3）常勤とは、原則として病院で定めた勤務時間の全てを勤務する者をいう。病院で定めた医師の１週間の勤務時間が、32時間未満の場合は、32時間以上勤務している者を常勤とし、その他は非常勤とする。"]
[]
["医師以外の診療従事者について（複数の資格を有する者は、主たる業務に係る職種についてのみ記載）"]
[null,"職種","常勤\n/非常勤","専門資格（取得している場合）"]
["例","管理栄養士","常勤\n","がん病態栄養専門管理栄養士"]
[1,null,null,null,null,null,null,{"$f":"IF(AND(B13<>\"\",C13<>\"\"),\"○\",\"×\")","v":"×"}]
[2]
[3]
[4]
[5]
[6]
[7]
[8]
[9]
[10]
[11]
[12]
[13]
[14]
[15]
[null,null,null,null,null,null,"印刷範囲外"]

{"sheet":"別紙5相談支援センター体制","index":9,"n_rows":51,"n_cols":15,"rows_kept":51,"cut":false,"hidden":false,"merged":[[26,2,26,3],[26,5,26,6],[27,2,27,3],[27,5,27,6],[28,2,28,3],[28,5,28,6],[23,2,23,3],[23,5,23,6],[24,2,24,3],[24,5,24,6],[25,2,25,3],[25,5,25,6],[20,2,20,3],[20,5,20,6],[21,2,21,3],[21,5,21,6],[22,2,22,3],[22,5,22,6],[19,2,19,3],[17,5,17,6],[18,5,18,6],[19,5,19,6],[13,0,13,5],[11,0,11,6],[16,0,16,7],[18,2,18,3],[17,2,17,3],[8,0,8,5],[0,0,0,8],[5,0,5,8],[9,1,9,5],[1,4,1,6],[49,0,49,7],[30,2,30,3],[29,2,29,3],[39,2,39,3],[32,2,32,3],[36,2,36,3],[35,2,35,3],[34,2,34,3],[33,2,33,3],[32,5,32,6],[33,5,33,6],[34,5,34,6],[50,0,52,7],[1,8,3,8],[3,4,3,7],[12,0,12,5],[15,2,15,6],[44,0,46,7],[47,0,47,8],[40,0,40,8],[43,0,43,7],[37,2,37,3],[7,0,7,5],[31,2,31,3],[29,5,29,6],[30,5,30,6],[31,5,31,6],[38,2,38,3],[35,5,35,6],[36,5,36,6],[37,5,37,6],[38,5,38,6],[39,5,39,6]]}
["がん相談支援センター等の体制"]
[null,null,null,null,"記載の有無：入力済／未入力",null,null,{"$f":"IF(COUNTIF(K:K,\"×\")>=1,\"未入力あり\",\"入力済\")","v":"未入力あり"}]
[]
[null,null,null,"病院名：",{"$f":"表紙!E3","v":0}]
[null,null,null,"時期・期間：",{"$f":"+'事務局使用（発出時は非表示にすること）'!B3","v":"令和５年９月１日時点"},null,null,null,null,null,null,null,"※印刷範囲外です。メモ書きとして使えますが、提出前には個人情報などの記載がないことをご確認ください。"]
["注1）様式4の回答と齟齬がないようにすること。\n注2）常勤とは、原則として病院で定めた勤務時間の全てを勤務する者をいう。病院で定めた医師の１週間の勤務時間が、32時間未満の場合は、32時間以上勤務している者を常勤とし、その他は非常勤とする。\n注3）「専従」および「専任」とは、当該医療機関における当該診療従事者が、「専従」については「8割以上」、「専任」については「5割以上」、当該業務に従事している者をいう。"]
["■国立がん研究センターによる「相談支援センター相談員研修・基礎研修」について（がん相談支援センター等内の人数）"]
["対象者",null,null,null,null,null,"人数"]
["国立がん研究センターによる「相談支援センター相談員研修・基礎研修」（１）～（２）の修了者数",null,null,null,null,null,null,null,null,null,{"$f":"IF(G9=\"\",\"×\",\"○\")","v":"×"},null,null,0,20]
[null,"うち相談支援に携わる者の専任の人数（専任かつ専従でない者）",null,null,null,null,null,null,null,null,{"$f":"IF(G10=\"\",\"×\",\"○\")","v":"×"},null,null,0,20]
[null,"うち相談支援に携わる者の専従の人数",null,null,null,null,null,null,null,null,"×",null,null,0,20]
["■定期的な知識の更新のための研修等（がん相談支援センター等内の人数）"]
["対象者",null,null,null,null,null,"人数"]
["①がん相談支援センターに配置されている相談支援に携わる者のうち、国立がん研究センターによる\n　がん相談支援センター相談員継続研修や小児がん拠点病院相談員継続研修等を受講した人数",null,null,null,null,null,null,null,null,null,{"$f":"IF(G14=\"\",\"×\",\"○\")","v":"×"},null,null,0,20]
["②相談支援に携わる者のうち、上記以外の研修を受講した人数",null,null,null,null,null,null,null,null,null,{"$f":"IF(G15=\"\",\"×\",\"○\")","v":"×"},null,null,0,20]
["②の具体例",null,null,null,null,null,null,null,null,null,{"$f":"IF(AND(G15>0,C16=\"\"),\"×\",\"〇\")","v":"〇"}]
["■がん相談支援センター等の体制について\n　※以下の１～６に該当する人数は必ず記載すること。その他の体制についてはそれぞれ記載すること。\n　※専従・専任・その他については、当該の相談支援に携わる者が８割以上当該業務に従事している場合には専従、　\n　　 ５割以上８割未満の場合には専任、５割未満の場合にはその他としてください。"]
[null,"職種等","専従/専任/その他",null,"人数","うち常勤の\n人数",null,"両立支援コーディネーター研修を受講した人数"]
["例","社会福祉士","専従",null,3,2,null,3]
["例","看護師","専任",null,2,1,null,2]
[1,"社会福祉士","専従",null,null,null,null,null,null,null,{"$f":"IF(AND(E21<>\"\",F21<>\"\",H21<>\"\"),\"○\",\"×\")","v":"×"}]
[2,"社会福祉士","専任",null,null,null,null,null,null,null,{"$f":"IF(AND(E22<>\"\",F22<>\"\",H22<>\"\"),\"○\",\"×\")","v":"×"}]
[3,"社会福祉士","その他",null,null,null,null,null,null,null,"×"]
[4,"精神保健福祉士","専従",null,null,null,null,null,null,null,"×"]
[5,"精神保健福祉士","専任",null,null,null,null,null,null,null,"×"]
[6,"精神保健福祉士","その他",null,null,null,null,null,null,null,"×"]
[7,"看護師","専従",null,null,null,null,null,null,null,"×"]
[8,"看護師","専任",null,null,null,null,null,null,null,"×"]
[9,"看護師","その他",null,null,null,null,null,null,null,"×"]
[10,null,null,null,null,null,null,null,null,null,{"$f":"IF(AND(E30<>\"\",F30<>\"\",H30<>\"\"),\"○\",\"×\")","v":"×"}]
[11,null,null,null,null,null,null,null,null,null,{"$f":"IF(AND(E31<>\"\",F31<>\"\",H31<>\"\"),\"○\",\"×\")","v":"×"}]
[12,null,null,null,null,null,null,null,null,null,"×"]
[13,null,null,null,null,null,null,null,null,null,"×"]
[14,null,null,null,null,null,null,null,null,null,"×"]
[15,null,null,null,null,null,null,null,null,null,"×"]
[16,null,null,null,null,null,null,null,null,null,"×"]
[17,null,null,null,null,null,null,null,null,null,"×"]
[18,null,null,null,null,null,null,null,null,null,"×"]
[19]
[20]
["■がん患者及びその家族が必ず一度はがん相談支援センター等を訪問することができる体制",null,null,null,null,null,null,null,null,null,null,"印刷範囲外"]
["整備していない場合は、「整備していない」と記入すること。"]
["　※必ずしも具体的な相談を伴わない、場所等の確認も含む"]
["がん患者及びその家族ががん相談支援センターを訪問できる体制に関する、具体的な取り組み状況を記入してください。"]
[null,null,null,null,null,null,null,null,null,null,{"$f":"IF(A45=\"\",\"×\",\"○\")","v":"×"}]
[]
[]
["■がん相談支援センターの業務内容について、相談者からフィードバックを得る体制",null,null,null,null,null,null,null,null,null,null,"印刷範囲外"]
["整備していない場合は、「整備していない」と記入すること。"]
["がん相談支援センター等の業務内容について、相談者からフィードバックを得る体制に関する、具体的な取り組み状況を記入してください。"]
[null,null,null,null,null,null,null,null,null,null,{"$f":"IF(A51=\"\",\"×\",\"○\")","v":"×"}]

{"sheet":"別紙6連携協力体制","index":10,"n_rows":53,"n_cols":15,"rows_kept":53,"cut":false,"hidden":false,"merged":[[18,4,18,5],[27,4,27,5],[25,4,25,5],[23,4,23,5],[19,4,19,5],[21,4,21,5],[24,4,24,5],[11,6,11,7],[0,0,0,7],[11,4,11,5],[22,4,22,5],[13,4,13,5],[15,4,15,5],[1,0,1,6],[5,0,5,7],[6,4,6,5],[7,4,7,5],[9,0,9,3],[9,4,9,5],[16,4,16,5],[20,4,20,5],[14,4,14,5],[17,4,17,5],[1,8,5,8],[50,3,50,6],[51,3,51,6],[40,0,41,0],[40,1,40,2],[40,3,41,6],[40,7,41,7],[42,3,42,6],[38,0,38,6],[3,4,3,7],[43,3,43,6],[44,3,44,6],[45,3,45,6],[46,3,46,6],[10,4,10,5],[6,6,6,7],[29,4,29,5],[30,4,30,5],[31,4,31,5],[32,4,32,5],[52,3,52,6],[47,3,47,6],[48,3,48,6],[49,3,49,6],[34,4,34,5],[36,0,36,6],[37,0,37,6],[33,0,33,7],[39,0,39,6]]}
["院内外のがん患者等からの相談に対応するための連携協力体制の状況"]
["記載の有無：入力済／未入力",null,null,null,null,null,null,{"$f":"IF(COUNTIF(J7:J46,\"×\")>=1,\"未入力あり\",\"入力済\")","v":"未入力あり"}]
[]
[null,null,null,"病院名：",{"$f":"表紙!$E$3","v":0}]
[null,null,null,"時期・期間：",{"$f":"+'事務局使用（発出時は非表示にすること）'!B3","v":"令和５年９月１日時点"},null,null,null,null,null,null,null,"※印刷範囲外です。メモ書きとして使えますが、提出前には個人情報などの記載がないことをご確認ください。"]
["●就労に関する連携協力体制"]
["①専門家による相談会の開催回数",null,null,null,null,null,{"$f":"G12","v":"（期間：令和４年１月１日～12月31日）"},null,null,{"$f":"IF(E7=\"\",\"×\",\"○\")","v":"×"},null,null,null,0,100]
["②専門家の職種（例：社労士、キャリアコンサルタント等を全て記載）　※無い場合は「なし」を記入してください。",null,null,null,null,null,"(複数回答可)",null,null,{"$f":"IF(E8=\"\",\"×\",\"○\")","v":"×"}]
["●アピアランスケアに関する連携協力体制"]
["　アピアランスに関する相談を院内で対応している",null,null,null,null,null,"(はい/いいえ)",null,null,{"$f":"IF(E10=\"\",\"×\",\"○\")","v":"×"}]
["　院内でアピアランスケアに関する相談・支援を行っている部署",null,null,null,null,null,"（複数回答可）",null,null,{"$f":"IF(AND(E10=\"はい\",E11=\"\"),\"×\",\"○\")","v":"○"}]
["　相談・支援の件数（がん相談支援センターでの件数は除く）",null,null,null,null,null,{"$f":"G18","v":"（期間：令和４年１月１日～12月31日）"},null,null,{"$f":"IF(AND(E10=\"はい\",E12=\"\"),\"×\",\"○\")","v":"○"},null,null,null,0,1000]
["●がん患者の妊孕性温存に関する連携協力体制"]
["　①相談に対応している部署（例：がん相談支援センター、化学療法室等）",null,null,null,null,null,"（複数回答可）"]
["　　　①-1意思決定支援に関わる医療従事者による相談を院内で実施している",null,null,null,null,null,"(はい/いいえ)",null,null,{"$f":"IF(E15=\"\",\"×\",\"○\")","v":"×"}]
["　　　①-2意思決定支援に関わる医療従事者による相談を院外に依頼している",null,null,null,null,null,"(はい/いいえ)",null,null,"×"]
["　②がん患者の妊孕性温存のための生殖医療"]
["　　　②-1がん患者の妊孕性温存のための生殖医療を専門とする自施設内の部門へ紹介した患者の人数",null,null,null,null,null,{"$f":"+\"（期間：\"&'事務局使用（発出時は非表示にすること）'!B4&\"）\"","v":"（期間：令和４年１月１日～12月31日）"},null,null,{"$f":"IF(E18=\"\",\"×\",\"○\")","v":"×"},null,null,null,0,100]
["　　　②-2がん患者の妊孕性温存のための生殖医療を専門とする他施設へ紹介した患者の人数",null,null,null,null,null,{"$f":"G18","v":"（期間：令和４年１月１日～12月31日）"},null,null,{"$f":"IF(E19=\"\",\"×\",\"○\")","v":"×"},null,null,null,0,100]
["　③自治体のがん・生殖医療ネットワークを通じて、生殖医療を専門とする施設に紹介している",null,null,null,null,null,"(はい/いいえ)",null,null,{"$f":"IF(E20=\"\",\"×\",\"○\")","v":"×"}]
["　　　③-1紹介先施設名（複数回答可）",null,null,null,null,null,"（複数回答可）",null,null,{"$f":"IF(AND(E20=\"はい\",E21=\"\"),\"×\",\"○\")","v":"○"}]
["　④他の自治体のがん・生殖医療ネットワークを通じて、生殖医療を専門とする施設に紹介している",null,null,null,null,null,"(はい/いいえ)",null,null,{"$f":"IF(E22=\"\",\"×\",\"○\")","v":"×"}]
["　　　④-1紹介先施設名（複数回答可）",null,null,null,null,null,"（複数回答可）",null,null,{"$f":"IF(AND(E22=\"はい\",E23=\"\"),\"×\",\"○\")","v":"○"}]
["　⑤意思決定支援に関わる人材育成を実施している（「いいえ」の場合は⑤-1、⑤-2は「いいえ」を記入ください。）",null,null,null,null,null,"(はい/いいえ)",null,null,{"$f":"IF(E24=\"\",\"×\",\"○\")","v":"×"}]
["　　　⑤-1研修会を院内で実施している",null,null,null,null,null,"(はい/いいえ)",null,null,"×"]
["　　　⑤-2学会等の研修会への参加を励行している",null,null,null,null,null,"(はい/いいえ)",null,null,"×"]
["●がん患者の自殺リスクに対する体制"]
[null,"院内で自殺リスクに対する研修を開いている。",null,null,null,null,"(はい/いいえ)",null,null,"×"]
["●患者サロン等の開催状況"]
["　①患者サロンの開催件数",null,null,null,null,null,{"$f":"G18","v":"（期間：令和４年１月１日～12月31日）"},null,null,{"$f":"IF(E30=\"\",\"×\",\"○\")","v":"×"},null,null,null,0,100]
["　②患者会の開催件数",null,null,null,null,null,{"$f":"G30","v":"（期間：令和４年１月１日～12月31日）"},null,null,{"$f":"IF(E31=\"\",\"×\",\"○\")","v":"×"},null,null,null,0,100]
[null,"②-1患者会のうち、オンラインで開催した件数",null,null,null,null,{"$f":"G31","v":"（期間：令和４年１月１日～12月31日）"},null,null,{"$f":"IF(E32=\"\",\"×\",\"○\")","v":"×"},null,null,null,0,100]
["　③サポートグループが主催した研修の開催件数",null,null,null,null,null,{"$f":"G32","v":"（期間：令和４年１月１日～12月31日）"},null,null,{"$f":"IF(E33=\"\",\"×\",\"○\")","v":"×"},null,null,null,0,100]
["●がん患者団体との連携協力体制"]
["　①連携協力しているがん患者団体数",null,null,null,null,null,null,null,null,{"$f":"IF(E35=\"\",\"×\",\"○\")","v":"×"},null,null,null,0,100]
[]
["　②連携協力しているがん患者団体"]
["　　※代表的ながん患者団体のみ記載してください。"]
["　　※患者団体の参加対象者が特定の疾患に限られていない場合には、「すべてのがん」と記載してください。"]
["　　※「紹介の可否」には、患者さんや家族から、その団体について問い合わせがあった際、具体的な紹介ができるかどうかについて記載してください。"]
[null,"連携協力しているがん患者団体",null,"具体的な連携協力の内容",null,null,null,"紹介の可否"]
[null,"団体名","参加対象者\nの疾患名"]
["例","○○○○○会","造血器腫瘍","患者会と共同で、月1回、患者サロンを開催している。",null,null,null,"可"]
["例","○○○○○会","乳がん","相談支援センターで、週1回、2名ずつ、ピアサポーターとして活動してもらっている。",null,null,null,"可"]
["例","○○○○○会","すべてのがん","年4回開催している市民講演会の開催への協力、また、演者として参加してもらっている。",null,null,null,"不可"]
[1,null,null,null,null,null,null,null,null,{"$f":"IF(AND(E35>0,OR(B46=\"\",C46=\"\",D46=\"\",H46=\"\")),\"×\",\"〇\")","v":"〇"}]
[2]
[3]
[4]
[5]
[6]
[7]
[8]

{"sheet":"別紙7院内がん登録","index":11,"n_rows":23,"n_cols":11,"rows_kept":23,"cut":false,"hidden":false,"merged":[[1,7,3,7],[7,5,8,5],[0,0,0,6],[7,0,8,0],[7,1,8,1],[7,2,8,2],[7,3,8,3],[7,4,8,4],[5,0,5,6],[6,0,6,6],[1,0,1,5]]}
["院内がん登録部門の体制"]
["記載の有無：入力済／未入力",null,null,null,null,null,{"$f":"IF(COUNTIF(I12,\"×\")>=1,\"未入力あり\",\"入力済\")","v":"未入力あり"}]
[]
[null,null," ",null,null,"病院名：",{"$f":"表紙!E3","v":0}]
[null,null,null,null,null,"時期・期間：",{"$f":"+'事務局使用（発出時は非表示にすること）'!B3","v":"令和５年９月１日時点"},null,null,null,"※印刷範囲外です。メモ書きとして使えますが、提出前には個人情報などの記載がないことをご確認ください。"]
["※院内がん登録業務に携わっているスタッフを記載してください。"]
["注1）様式4の回答と齟齬がないようにすること。\n注2）常勤とは原則として病院で定めた勤務時間の全てを勤務する者をいう。病院で定めた医師の１週間の勤務時間が、32時間未満の場合は、32時間以上勤務している者を常勤とし、その他は非常勤とする。\n注3）「専従」および「専任」とは、当該医療機関における当該診療従事者が、「専従」については「8割以上」、「専任」については「5割以上」、当該業務に従事している者をいう。"]
[null,"資　　格","診療情報\n管理業務の\n経験年数\n（年）","院内がん\n登録業務の\n経験年数\n（年）","常勤\n/非常勤","院内がん登録業務\nについての\n専従/専任/その他","がん対策情報センターによる院内がん登録\n実務 初級者研修会・中級者研修会の修了状況"]
[null,null,null,null,null,null,"研修会名・受講状況"]
["例","診療情報管理士",4,2,"常勤","専従(8割以上)","初級認定者（みなし含む）"]
["例","なし",1,1,"非常勤","専任(5割以上8割未満)","初級認定試験・受験なし"]
[1,null,null,null,null,null,null,null,{"$f":"IF(AND(B12<>\"\",C12<>\"\",D12<>\"\",E12<>\"\",F12<>\"\",G12<>\"\"),\"○\",\"×\")","v":"×"}]
[2]
[3]
[4]
[5]
[6]
[7]
[8]
[9]
[10]
[11]
[null,null,null,null,null,null,null,"印刷範囲外"]

{"sheet":"別紙8チーム医療の提供体制","index":12,"n_rows":14,"n_cols":19,"rows_kept":14,"cut":false,"hidden":false,"merged":[[13,1,13,7],[13,8,13,12],[1,15,4,15],[11,1,11,7],[11,8,11,12],[12,1,12,7],[12,8,12,12],[9,1,9,7],[9,8,9,12],[10,1,10,7],[10,8,10,12],[7,1,7,7],[7,8,7,12],[8,1,8,7],[8,8,8,12],[0,0,0,14],[1,0,1,13],[1,16,4,16],[3,6,3,14],[6,1,6,7],[6,8,6,12]]}
["院内のチーム医療の提供体制"]
["記載の有無：入力済／未入力",null,null,null,null,null,null,null,null,null,null,null,null,null,{"$f":"IF(COUNTIF(Q7:Q14,\"×\")>=1,\"未入力あり\",\"入力済\")","v":"未入力あり"}]
[]
[null,null,null,null,null,"病院名：",{"$f":"表紙!E3","v":0}]
[null,null,null,null,null,null,null,null,null,null,null,null,null,null,{"$f":"+'事務局使用（発出時は非表示にすること）'!B3","v":"令和５年９月１日時点"},null,null,null,"※印刷範囲外です。メモ書きとして使えますが、提出前には個人情報などの記載がないことをご確認ください。"]
[]
[1,"院内に緩和ケアチームが設置されている。\n（がん患者の身体的苦痛や精神心理的苦痛、社会的な問題等の把握及びそれらに対する適切な対応を、診断時から一貫して行っており、緩和ケアに関する診療報酬の項目が算定できる体制であること。）",null,null,null,null,null,null,null,null,null,null,null,null,null,null,{"$f":"IF(I7=\"\",\"×\",\"○\")","v":"×"}]
[2,"院内に口腔ケアチームが設置されている。\n（周術期等口腔機能管理に関する項目が算定できる体制であること。）",null,null,null,null,null,null,null,null,null,null,null,null,null,null,{"$f":"IF(I8=\"\",\"×\",\"○\")","v":"×"}]
[3,"院内に栄養サポートチームが設置されている。\n（診療報酬の栄養サポートチーム加算が算定できる体制であること。）",null,null,null,null,null,null,null,null,null,null,null,null,null,null,"×"]
[4,"院内に感染防止対策チーム（感染制御チーム）が設置されている。\n（感染対策に関する診療報酬の項目が算定できる体制であること。）",null,null,null,null,null,null,null,null,null,null,null,null,null,null,"×"]
[5,"院内に摂食嚥下支援チームが設置されている。\n（診療報酬の摂食嚥下機能回復体制加算等が算定できる体制であること。）",null,null,null,null,null,null,null,null,null,null,null,null,null,null,"×"]
[6,"院内にリハビリテーションチームが設置されている。\n（診療報酬のがん患者リハビリテーション料が算定できる体制であること。）",null,null,null,null,null,null,null,null,null,null,null,null,null,null,"×"]
[7,"院内に排尿ケアチームが設置されている。\n（診療報酬の外来排尿自立指導料が算定できる体制であること。）",null,null,null,null,null,null,null,null,null,null,null,null,null,null,"×"]
[8,"院内に精神科リエゾンチームが設置されている。\n（診療報酬の精神科リエゾンチーム加算が算定できる体制であること。）",null,null,null,null,null,null,null,null,null,null,null,null,null,null,"×"]

{"sheet":"別紙9医療安全・第三者評価","index":13,"n_rows":37,"n_cols":13,"rows_kept":37,"cut":false,"hidden":false,"merged":[[10,2,10,8],[0,0,0,8],[1,0,1,7],[3,6,3,8],[7,2,7,8],[8,2,8,8],[1,9,3,9],[29,1,29,4],[11,0,12,1],[27,0,28,0],[14,1,22,1],[16,5,16,6],[17,5,17,6],[9,2,9,8],[27,8,28,8],[13,5,13,6],[12,5,12,6],[14,5,14,6],[11,2,12,2],[11,3,12,3],[11,4,12,4],[11,5,11,8],[36,1,36,4],[36,5,36,7],[27,5,28,7],[32,1,32,4],[32,5,32,7],[30,1,30,4],[30,5,30,7],[27,1,28,4],[33,1,33,4],[33,5,33,7],[29,5,29,7],[31,1,31,4],[34,1,34,4],[34,5,34,7],[35,1,35,4],[35,5,35,7],[31,5,31,7],[22,5,22,6],[15,5,15,6],[18,5,18,6],[19,5,19,6],[20,5,20,6],[21,5,21,6],[25,0,25,7]]}
["医療安全管理等の体制について"]
["記載の有無：入力済／未入力",null,null,null,null,null,null,null,{"$f":"IF(COUNTIF(K6:K33,\"×\")>=1,\"未入力あり\",\"入力済\")","v":"未入力あり"}]
[]
[null,null,null,null,null,"病院名：",{"$f":"表紙!E3","v":0},null,null,null,null,null,"※印刷範囲外です。メモ書きとして使えますが、提出前には個人情報などの記載がないことをご確認ください。"]
[null,null,null,null,null,"時期・期間：",{"$f":"+'事務局使用（発出時は非表示にすること）'!B3","v":"令和５年９月１日時点"}]
["①－１　医療安全管理部門が配置されている。",null,null,null,null,null,null,null,"（はい/いいえ）",null,{"$f":"IF(H6=\"\",\"×\",\"○\")","v":"×"}]
["①－２　医療安全管理部門がある場合に、そのメンバーについて記載してください。（①－１が”はい”の場合のみ、①－２に回答してください。）"]
[null,null,"注1）研修医は除いてください。"]
[null,null,"注2）常勤とは、原則として病院で定めた勤務時間の全てを勤務する者をいう。病院で定めた医師の１週間の勤務時間が、32時間未満の場合は、32時間以上勤務している者を常勤とし、その他は非常勤とする。"]
[null,null,"注3）「専従」および「専任」とは、当該医療機関における当該診療従事者が「専従」については「8割以上」、「専任」については「5割以上」、当該業務に従事している者をいいます。"]
[null,null,"注4)「医療安全管理者の業務指針および養成のための研修プログラム作成指針」（平成19年３月30日付け医政発0330019号厚生労働省医政局長通知及び薬食発第0330009号厚生労働省医薬食品局長通知）に基づく研修を想定しています。"]
[null,null,"職種","常勤\n/非常勤","専従/専任/その他","医療安全に関する研修の受講状況（注４）"]
[null,null,null,null,null,"受講した研修名",null,"研修主催者名","修了日"]
[1,"部門長",null,null,null,null,null,null,null,null,{"$f":"IF(AND(H6=\"はい\",OR(C14=\"\",D14=\"\",E14=\"\",F14=\"\",H14=\"\",I14=\"\")),\"×\",\"○\")","v":"○"}]
[2]
[3]
[4]
[5]
[6]
[7]
[8]
[9]
[10]
[null,null,null,null,null,null,null,null,null,"印刷範囲外"]
[]
["②第三者による評価に関する状況について記載してください。\n 　要件充足としては、JCI、ISO9001、日本医療機能評価機構 病院機能評価のみ該当と整理している。"]
[]
[null,"活用した第三者評価",null,null,null,"最終評価日",null,null,"有効期間\n（定められている場合のみ記載）"]
[]
["例","JCI",null,null,null,"平成31年○月○○日",null,null,"令和６年○月○○日"]
["例","ISO9001",null,null,null,"令和２年○月○○日",null,null,"令和７年○月○○日"]
["例","日本医療機能評価機構\n病院機能評価",null,null,null,"平成30年○月○○日",null,null,"令和７年○月○○日"]
[1,null,null,null,null,null,null,null,null,null,{"$f":"IF(AND(B33<>\"\",F33<>\"\",I33<>\"\"),\"○\",\"×\")","v":"×"}]
[2]
[3]
[4]
[5]

{"sheet":"別紙10歯科との連携","index":14,"n_rows":37,"n_cols":15,"rows_kept":37,"cut":false,"hidden":false,"merged":[[37,1,39,8],[28,1,28,6],[28,7,28,8],[29,1,29,6],[30,1,30,8],[31,1,35,8],[36,1,36,8],[25,1,25,6],[25,7,25,8],[26,1,26,6],[26,7,26,8],[27,1,27,6],[27,7,27,8],[24,1,24,6],[24,7,24,8],[15,4,15,8],[16,4,16,8],[17,4,17,8],[18,4,18,8],[19,4,19,8],[20,4,20,8],[21,4,21,8],[14,4,14,8],[0,0,0,9],[1,1,1,7],[2,1,2,7],[3,7,3,8],[7,0,7,9],[9,1,9,9],[11,4,11,8],[12,4,12,8],[13,4,13,8]]}
["地域連携の推進体制（歯科との連携）について"]
[null,"記載の有無：入力済／未入力",null,null,null,null,null,null,{"$f":"IF(COUNTIF(K25:K29,\"×\")=0,\"入力済\",\"未入力あり\")","v":"未入力あり"},null,null,null,"※印刷範囲外です。メモ書きとして使えますが、提出前には個人情報などの記載がないことをご確認ください。"]
[]
[null,null,null,null,null,null,"病院名：",{"$f":"表紙!E3","v":0}]
[null,null,null,null,null,null,"時期：",{"$f":"+'事務局使用（発出時は非表示にすること）'!$B$3","v":"令和５年９月１日時点"}]
[]
[]
["１．院内の口腔ケアチームのメンバーの職種及び人数について"]
[null,"院内に口腔ケアチームを設置している場合、記入すること。"]
[null,"地域の歯科医師等と連携している際は、そのことがわかるように備考欄に記入をお願いします。"]
[]
[null,null,"職種","人数","備考欄：院外との連携の際は連携先を記載ください（例：郡市歯科医師会と連携／近隣の歯科医師と個別に連携　等）\nなお、特段記載事項がない場合は空欄としてください。"]
[null,"例","歯科医師",2,"近隣の歯科医師と個別に連携"]
[null,1,null,null,null,null,null,null,null,null,null,null,null,0,20]
[null,2,null,null,null,null,null,null,null,null,null,null,null,0,20]
[null,3,null,null,null,null,null,null,null,null,null,null,null,0,20]
[null,4,null,null,null,null,null,null,null,null,null,null,null,0,20]
[null,5,null,null,null,null,null,null,null,null,null,null,null,0,20]
[null,6,null,null,null,null,null,null,null,null,null,null,null,0,20]
[null,7,null,null,null,null,null,null,null,null,null,null,null,0,20]
[null,8,null,null,null,null,null,null,null,null,null,null,null,0,20]
[null,9,null,null,null,null,null,null,null,null,null,null,null,0,20]
[]
["２．歯科との連携体制の有無について"]
[null,"（１）　院内に歯科の診療科がある。\n　　　　（はい／いいえ）",null,null,null,null,null,null,null,null,{"$f":"IF(H25=\"\",\"×\",\"○\")","v":"×"}]
[null,"（２）　口腔機能が低下したがん患者に対して口腔機能の評価や改善のために歯科との連携体制を構築している。 \n　　　　（院内の歯科医師と連携体制を構築／地域の歯科医師と連携体制を構築／院内及び地域の歯科医師と連携体制を構築／連携体制を構築していない）",null,null,null,null,null,null,null,null,{"$f":"IF(H26=\"\",\"×\",\"○\")","v":"×"}]
[null,"（３）　周術期におけるがん患者の口腔健康管理について歯科との連携体制を構築している。 \n　　　　（院内の歯科医師と連携体制を構築／地域の歯科医師と連携体制を構築／院内及び地域の歯科医師と連携体制を構築／連携体制を構築していない）",null,null,null,null,null,null,null,null,"×"]
[null,"（４）　栄養サポートチームに歯科が参加する連携体制を構築している。\n　　　　　（院内の歯科医師と連携体制を構築／地域の歯科医師と連携体制を構築／院内及び地域の歯科医師と連携体制を構築／連携体制を構築していない）",null,null,null,null,null,null,null,null,"×"]
[null,"（５）　緩和ケアチームに歯科が参加する連携体制を構築している。\n　　　　　（院内の歯科医師と連携体制を構築／地域の歯科医師と連携体制を構築／院内及び地域の歯科医師と連携体制を構築／連携体制を構築していない）",null,null,null,null,null,null,null,null,"×"]
[null,"（６）　上記（２）～（５）において地域の歯科医師と連携体制を構築している場合、連携している地域（院外）の歯科医療機関数",null,null,null,null,null,null,"施設",null,null,null,null,0,20]
[null,"（７）　上記（２）～（５）において歯科と連携体制を構築している場合、どのような連携体制を構築しているかそれぞれ記載してください。"]
[]
[]
[]
[]
[]
[null,"（８）　上記（２）～（５）以外において歯科と連携体制を構築している場合、どのような連携体制を構築しているか記載してください。"]

{"sheet":"事務局使用（発出時は非表示にすること）","index":15,"n_rows":53,"n_cols":140,"rows_kept":53,"cut":false,"hidden":true,"merged":[[4,22,4,28]]}
["令和５年度現況報告書"]
[]
["時点","令和５年９月１日時点"]
["期間","令和４年１月１日～12月31日"]
[null,null,null,null,null,null,null,null,null,null,null,null,null,null,null,"ロジモデ指標のままを入れている",null,null,null,null,null,null,"拠点病院等における我が国に多いがんの鏡視下手術の割合",null,null,null,null,null,null,null,null,null,null,null,null,null,null,null,null,null,null,null,null,null,null,null,null,null,null,null,null,null,null,null,null,null,null,null,null,null,null,null,null,null,null,null,null,null,null,null,null,null,null,null,null,null,null,null,"満たしていない必須要件①",null,null,null,"満たしていない必須要件②",null,null,null,"満たしていない必須要件③",null,null,null,"満たしていない必須要件④",null,null,null,"満たしていない必須要件⑤",null,null,null,"満たしていない必須要件⑥",null,null,null,"満たしていない必須要件⑦",null,null,null,"満たしていない必須要件⑧",null,null,null,"満たしていない必須要件⑨",null,null,null,"満たしていない必須要件⑩",null,null,null,"満たしていない必須要件⑪",null,null,null,"満たしていない必須要件⑫",null,null,null,"満たしていない必須要件⑬",null,null,null,"満たしていない必須要件⑭"]
["＃","都道府県","２次医療圏","がん医療圏","処方箋発行医療機関コード（10桁）","病院名","現行類型","推薦類型","指定辞退","院内がん登録","悪性腫瘍の手術件数","がんに係る薬物療法のべ患者数","放射線治療のべ患者数","緩和ケア新規介入患者数","診療実績の割合","拠点病院等で実施した、地域を対象とした、がんに関するセミナー等の開催回数（総数）","役割分担に関する議論が行われている都道府県の数","BCPに関する議論が行われている都道府県の数","（参考）BCPを整備している拠点病院等の割合","都道府県協議会に小児がん拠点病院等が参加している都道府県の数","病理診断に携わる専門的な知識及び技能を有する医師が１人以上配置されている拠点病院等の割合（がん診療連携拠点病院：専従の病理診断に携わる専門的な知識及び技能を有する常勤の医師が１人以上配置されている割合、地域がん診療病院：専任の病理診断に携わる専門的な知識及び技能を有する医師が１人以上配置されている割合をそれぞれ評価）","細胞診断に関する専門資格を有する者が１人以上配置されている拠点病院等の割合（がん診療連携拠点病院：専任の細胞診断に関する専門資格を有する者が１人以上配置されている割合、地域がん診療病院：細胞診断に関する専門資格を有する者が１人以上配置されている割合をそれぞれ評価）","大腸がん","肺がん","胃がん","前立腺がん","肝臓がん","胆のうがん","膵臓がん","厚生労働省院内感染対策サーベイランス事業(JANIS)へ登録している拠点病院等の割合","IMRTを提供しているがん診療連携拠点病院の割合","専従の放射線治療に携わる専門的な知識及び技能を有する常勤の医師が１人以上配置されているがん診療連携拠点病院の割合","常勤の診療放射線技師が２人以上配置されているがん診療連携拠点病院の割合","専従の放射線治療に関する専門資格を有する常勤の看護師が放射線治療部門に１人以上配置されているがん診療連携拠点病院の割合","専任のがん薬物療法に関する専門資格を有する常勤の薬剤師が１人以上配置されているがん診療連携拠点病院の割合","薬物療法に携わる専門的な知識及び技能を有する常勤の医師が１人以上配置されている拠点病院等の割合（がん診療連携拠点病院：専従の薬物療法に携わる専門的な知識及び技能を有する常勤の医師が１人以上配置されている割合、地域がん診療病院：専任の薬物療法に携わる専門的な知識及び技能を有する常勤の医師が１人以上配置されている割合をそれぞれ評価）","がん看護又はがん薬物療法に関する専門資格を有する常勤の看護師が外来化学療法室に１人以上配置されている拠点病院等の割合（がん診療連携拠点病院：専従のがん看護又はがん薬物療法に関する専門資格を有する常勤の看護師が外来化学療法室に１人以上配置されている割合、地域がん診療病院：専任のがん看護又はがん薬物療法に関する専門資格を有する常勤の看護師が外来化学療法室に１人以上配置されている割合をそれぞれ評価）","免疫関連有害事象を含む有害事象に対して、他診療科や他病院と連携等して対応している拠点病院等の割合","自施設で対応できるがんについて提供可能な診療内容を病院HP等でわかりやすく広報している拠点病院等の割合","地域における相談支援や緩和ケアの提供体制・連携体制について協議し、体制整備を行った都道府県の数","がん患者の口腔健康管理のため院内又は地域の歯科医師と連携して対応している拠点病院等の割合","「栄養サポートチーム加算」を算定している拠点病院等の割合","リハビリテーションに携わる専門的な知識及び技能を有する医師が配置されているがん診療連携拠点病院の割合","がんのリハビリテーションに係る業務に携わる専門的な知識及び技能を有する療法士等を配置しているがん診療連携拠点病院の割合","がん相談支援センターでのアピアランスケアの相談件数","リンパ浮腫外来が設置されている拠点病院等の割合","ストーマ外来が設置されている拠点病院等の割合","拠点病院等の緩和ケアチーム新規診療症例数","緩和ケア外来の新規診療患者数","拠点病院等１施設あたりの地域連携推進のための多施設合同会議の開催数","緩和ケア外来への地域の医療機関からの年間新規紹介患者数","がん・生殖医療の意思決定支援に関する人材育成を実施している拠点病院等の割合","がん相談支援センターにおける「妊孕性・生殖機能」に関する相談件数","希少がん診療を積極的に受け入れている拠点病院等の数と他施設へ紹介する拠点病院等の数","希少がんに対する臨床試験を実施している拠点病院等の数","希少がん診療を積極的に受け入れている拠点病院等における治療開始数","難治性がん*8に関するHP等の整備を行っている拠点病院等の数","難治性がん*8診療を積極的に受け入れている拠点病院等の数と他施設へ紹介する拠点病院の数","難治性がん*8に対して臨床試験を行っている拠点病院等の数","難治性がん*8診療を積極的に受け入れている拠点病院等における治療開始数","都道府県協議会でフォローアップの連携体制について議論している都道府県数","多職種からなるAYA支援チームを設置している拠点病院等の割合","当該がん医療圏において、地域の医療機関や在宅療養支援診療所等の医療・介護従事者とがんに関する医療提供体制や社会的支援、緩和ケアについて情報を共有し、役割分担や支援等について検討を行っている拠点病院等の割合","意思決定能力を含む機能評価を行い、各種ガイドラインに沿って、個別の状況を踏まえた対応をしている拠点病院等の割合","臨床試験に参加していない地域の患者さんやご家族向けの問い合わせ窓口を設置している拠点病院等の割合","がん相談支援センターでの自施設・他施設からの新規相談件数（全国の拠点病院等での総数）","相談員研修を受講したがん相談支援センターの相談員の数","上記の内、フォローアップ研修を受講したがん相談支援センターの相談員の数","拠点病院等１施設あたりの連携している患者団体の数","拠点病院等１施設あたりの体験を語り合う場の開催数","拠点病院等のがん相談支援センターにおける就労に関する相談件数","拠点病院等における就労の専門家による相談会の回数","拠点病院等におけるアピアランスに関する相談件数","自殺リスクに関する研修を実施した拠点病院等の割合","情報取得や意思疎通に配慮が必要な者に対するマニュアルを作成している拠点病院等の割合","患者とその家族が利用可能なインターネット環境を整備ししている拠点病院等の割合","セカンドオピニオンを提示する場合は、必要に応じてオンラインでの相談を受け付けることができる体制を確保している拠点病院等の割合","集学的治療等の内容や治療前後の生活における注意点等に関する、冊子や視聴覚教材等がオンラインでも確認できる拠点病院等の割合","通し番号","令和５年９月１日時点で満たせていない要件\n(通し番号を入力すれば、自動入力されます。)","現状の説明","充足見込み時期","通し番号","令和５年９月１日時点で満たせていない要件\n(通し番号を入力すれば、自動入力されます。)","現状の説明","充足見込み時期","通し番号","令和５年９月１日時点で満たせていない要件\n(通し番号を入力すれば、自動入力されます。)","現状の説明","充足見込み時期","通し番号","令和５年９月１日時点で満たせていない要件\n(通し番号を入力すれば、自動入力されます。)","現状の説明","充足見込み時期","通し番号","令和５年９月１日時点で満たせていない要件\n(通し番号を入力すれば、自動入力されます。)","現状の説明","充足見込み時期","通し番号","令和５年９月１日時点で満たせていない要件\n(通し番号を入力すれば、自動入力されます。)","現状の説明","充足見込み時期","通し番号","令和５年９月１日時点で満たせていない要件\n(通し番号を入力すれば、自動入力されます。)","現状の説明","充足見込み時期","通し番号","令和５年９月１日時点で満たせていない要件\n(通し番号を入力すれば、自動入力されます。)","現状の説明","充足見込み時期","通し番号","令和５年９月１日時点で満たせていない要件\n(通し番号を入力すれば、自動入力されます。)","現状の説明","充足見込み時期","通し番号","令和５年９月１日時点で満たせていない要件\n(通し番号を入力すれば、自動入力されます。)","現状の説明","充足見込み時期","通し番号","令和５年９月１日時点で満たせていない要件\n(通し番号を入力すれば、自動入力されます。)","現状の説明","充足見込み時期","通し番号","令和５年９月１日時点で満たせていない要件\n(通し番号を入力すれば、自動入力されます。)","現状の説明","充足見込み時期","通し番号","令和５年９月１日時点で満たせていない要件\n(通し番号を入力すれば、自動入力されます。)","現状の説明","充足見込み時期","通し番号","令和５年９月１日時点で満たせていない要件\n(通し番号を入力すれば、自動入力されます。)","現状の説明","充足見込み時期"]
[{"$f":"IFERROR(VLOOKUP($B7,$EI$7:$EJ$53,2,0),0)","v":37},{"$f":"+'様式3（全般事項）'!H17","v":"香川県"},{"$f":"+'様式3（全般事項）'!H24","v":0},{"$f":"+'様式3（全般事項）'!H23","v":0},{"$f":"+'様式2（連絡先）'!B4","v":"37"},{"$f":"+表紙!E3","v":0},{"$f":"+'様式3（全般事項）'!#REF!","v":{"$error":"#REF!"}},{"$f":"+'様式3（全般事項）'!G5","v":"新規指定"},{"$f":"'様式3（全般事項）'!K5","v":0},{"$f":"+IF(H7=\"地域がん診療病院\",'様式４(機能別)'!#REF!,'様式４(機能別)'!J163)","v":0},{"$f":"+IF(H7=\"地域がん診療病院\",'様式４(機能別)'!#REF!,'様式４(機能別)'!J164)","v":0},{"$f":"+IF(H7=\"地域がん診療病院\",'様式４(機能別)'!#REF!,'様式４(機能別)'!J165)","v":0},{"$f":"+IF(H7=\"地域がん診療病院\",'様式４(機能別)'!#REF!,'様式４(機能別)'!J167)","v":0},{"$f":"+IF(H7=\"地域がん診療病院\",'様式４(機能別)'!#REF!,'様式４(機能別)'!J168)","v":0},{"$f":"+IF(H7=\"地域がん診療病院\",'様式４(機能別)'!#REF!,'様式４(機能別)'!#REF!)","v":{"$error":"#REF!"}},{"$f":"+IF($H$7=\"地域がん診療病院\",'様式４(機能別)'!#REF!,'様式４(機能別)'!#REF!)","v":{"$error":"#REF!"}},{"$f":"#REF!","v":{"$error":"#REF!"}},{"$f":"#REF!","v":{"$error":"#REF!"}},{"$f":"+IF($H$7=\"地域がん診療病院\",'様式４(機能別)'!#REF!,'様式４(機能別)'!J109)","v":0},{"$f":"#REF!","v":{"$error":"#REF!"}},{"$f":"+IF($H$7=\"地域がん診療病院\",'様式４(機能別)'!#REF!,'様式４(機能別)'!J122)","v":0},{"$f":"+IF($H$7=\"地域がん診療病院\",'様式４(機能別)'!#REF!,'様式４(機能別)'!J146)","v":0},{"$f":"'様式3（全般事項）'!R93/('様式3（全般事項）'!R92+'様式3（全般事項）'!R94)","v":{"$error":"#DIV/0!"}},{"$f":"'様式3（全般事項）'!R98/('様式3（全般事項）'!R97+'様式3（全般事項）'!R98)","v":{"$error":"#DIV/0!"}},{"$f":"'様式3（全般事項）'!R102/('様式3（全般事項）'!R101+'様式3（全般事項）'!R102)","v":{"$error":"#DIV/0!"}},{"$f":"'様式3（全般事項）'!#REF!/('様式3（全般事項）'!#REF!+'様式3（全般事項）'!#REF!)","v":{"$error":"#REF!"}},{"$f":"'様式3（全般事項）'!R114/('様式3（全般事項）'!R113+'様式3（全般事項）'!R114)","v":{"$error":"#DIV/0!"}},{"$f":"'様式3（全般事項）'!#REF!/('様式3（全般事項）'!#REF!+'様式3（全般事項）'!#REF!)","v":{"$error":"#REF!"}},{"$f":"'様式3（全般事項）'!#REF!/('様式3（全般事項）'!#REF!+'様式3（全般事項）'!#REF!)","v":{"$error":"#REF!"}},{"$f":"+IF($H$7=\"地域がん診療病院\",'様式４(機能別)'!#REF!,'様式４(機能別)'!J34)","v":0},{"$f":"'様式４(機能別)'!J35","v":0},{"$f":"'様式４(機能別)'!J115","v":0},{"$f":"'様式４(機能別)'!J126","v":0},{"$f":"'様式４(機能別)'!J131","v":0},{"$f":"'様式４(機能別)'!J133","v":0},{"$f":"+IF($H$7=\"地域がん診療病院\",'様式４(機能別)'!#REF!,'様式４(機能別)'!J117)","v":0},{"$f":"+IF($H$7=\"地域がん診療病院\",'様式４(機能別)'!#REF!,'様式４(機能別)'!J135)","v":0},{"$f":"+IF($H$7=\"地域がん診療病院\",'様式４(機能別)'!#REF!,'様式４(機能別)'!J47)","v":0},{"$f":"+IF($H$7=\"地域がん診療病院\",'様式４(機能別)'!#REF!,'様式４(機能別)'!J224)","v":0},{"$f":"#REF!","v":{"$error":"#REF!"}},{"$f":"+IF($H$7=\"地域がん診療病院\",'様式４(機能別)'!#REF!,'様式４(機能別)'!J87)","v":0},{"$f":"別紙8チーム医療の提供体制!I9","v":0},{"$f":"'様式４(機能別)'!J124","v":0},{"$f":"'様式４(機能別)'!J147","v":0},{"$f":"#REF!","v":{"$error":"#REF!"}},{"$f":"#REF!","v":{"$error":"#REF!"}},{"$f":"#REF!","v":{"$error":"#REF!"}},{"$f":"'様式3（全般事項）'!R136+'様式3（全般事項）'!R137+'様式3（全般事項）'!R138","v":0},{"$f":"#REF!","v":{"$error":"#REF!"}},{"$f":"#REF!","v":{"$error":"#REF!"}},{"$f":"#REF!","v":{"$error":"#REF!"}},{"$f":"#REF!","v":{"$error":"#REF!"}},{"$f":"#REF!","v":{"$error":"#REF!"}},null,null,null,null,null,null,null,{"$f":"#REF!","v":{"$error":"#REF!"}},{"$f":"+IF($H$7=\"地域がん診療病院\",'様式４(機能別)'!#REF!,'様式４(機能別)'!J105)","v":0},{"$f":"+IF($H$7=\"地域がん診療病院\",'様式４(機能別)'!#REF!,'様式４(機能別)'!J90)","v":0},{"$f":"+IF($H$7=\"地域がん診療病院\",'様式４(機能別)'!#REF!,'様式４(機能別)'!J107)","v":0},{"$f":"#REF!","v":{"$error":"#REF!"}},{"$f":"#REF!+#REF!","v":{"$error":"#REF!"}},{"$f":"別紙5相談支援センター体制!G9+別紙5相談支援センター体制!#REF!","v":{"$error":"#REF!"}},{"$f":"別紙5相談支援センター体制!G14","v":0},{"$f":"別紙6連携協力体制!E35","v":0},{"$f":"別紙6連携協力体制!E30+別紙6連携協力体制!E31","v":0},{"$f":"#REF!","v":{"$error":"#REF!"}},{"$f":"別紙6連携協力体制!E7","v":0},{"$f":"#REF!","v":{"$error":"#REF!"}},{"$f":"別紙6連携協力体制!E28","v":0},{"$f":"+IF($H$7=\"地域がん診療病院\",'様式４(機能別)'!#REF!,'様式４(機能別)'!J198)","v":0},{"$f":"#REF!","v":{"$error":"#REF!"}},{"$f":"+IF($H$7=\"地域がん診療病院\",'様式４(機能別)'!#REF!,'様式４(機能別)'!J97)","v":0},{"$f":"+IF($H$7=\"地域がん診療病院\",'様式４(機能別)'!#REF!,'様式４(機能別)'!J154)","v":0},{"$f":"+別紙1未充足要件!B11","v":0},{"$f":"+別紙1未充足要件!C11","v":""},{"$f":"+別紙1未充足要件!D11","v":0},{"$f":"+別紙1未充足要件!E11","v":0},{"$f":"+別紙1未充足要件!B12","v":0},{"$f":"+別紙1未充足要件!C12","v":""},{"$f":"+別紙1未充足要件!D12","v":0},{"$f":"+別紙1未充足要件!E12","v":0},{"$f":"+別紙1未充足要件!B13","v":0},{"$f":"+別紙1未充足要件!C13","v":""},{"$f":"+別紙1未充足要件!D13","v":0},{"$f":"+別紙1未充足要件!E13","v":0},{"$f":"+別紙1未充足要件!B14","v":0},{"$f":"+別紙1未充足要件!C14","v":""},{"$f":"+別紙1未充足要件!D14","v":0},{"$f":"+別紙1未充足要件!E14","v":0},{"$f":"+別紙1未充足要件!B15","v":0},{"$f":"+別紙1未充足要件!C15","v":""},{"$f":"+別紙1未充足要件!D15","v":0},{"$f":"+別紙1未充足要件!E15","v":0},{"$f":"+別紙1未充足要件!B16","v":0},{"$f":"+別紙1未充足要件!C16","v":""},{"$f":"+別紙1未充足要件!D16","v":0},{"$f":"+別紙1未充足要件!E16","v":0},{"$f":"+別紙1未充足要件!B17","v":0},{"$f":"+別紙1未充足要件!C17","v":""},{"$f":"+別紙1未充足要件!D17","v":0},{"$f":"+別紙1未充足要件!E17","v":0},{"$f":"+別紙1未充足要件!B18","v":0},{"$f":"+別紙1未充足要件!C18","v":""},{"$f":"+別紙1未充足要件!D18","v":0},{"$f":"+別紙1未充足要件!E18","v":0},{"$f":"+別紙1未充足要件!B19","v":0},{"$f":"+別紙1未充足要件!C19","v":""},{"$f":"+別紙1未充足要件!D19","v":0},{"$f":"+別紙1未充足要件!E19","v":0},{"$f":"+別紙1未充足要件!B20","v":0},{"$f":"+別紙1未充足要件!C20","v":""},{"$f":"+別紙1未充足要件!D20","v":0},{"$f":"+別紙1未充足要件!E20","v":0},{"$f":"+別紙1未充足要件!B21","v":0},{"$f":"+別紙1未充足要件!C21","v":""},{"$f":"+別紙1未充足要件!D21","v":0},{"$f":"+別紙1未充足要件!E21","v":0},{"$f":"+別紙1未充足要件!B22","v":0},{"$f":"+別紙1未充足要件!C22","v":""},{"$f":"+別紙1未充足要件!D22","v":0},{"$f":"+別紙1未充足要件!E22","v":0},{"$f":"+別紙1未充足要件!B23","v":0},{"$f":"+別紙1未充足要件!C23","v":""},{"$f":"+別紙1未充足要件!D23","v":0},{"$f":"+別紙1未充足要件!E23","v":0},{"$f":"+別紙1未充足要件!B24","v":0},{"$f":"+別紙1未充足要件!C24","v":""},{"$f":"+別紙1未充足要件!D24","v":0},{"$f":"+別紙1未充足要件!E24","v":0},null,null,null,null,"北海道",1]
[null,null,null,null,null,null,null,null,null,null,null,null,null,null,null,null,null,null,null,null,null,null,null,null,null,null,null,null,null,null,null,null,null,null,null,null,null,null,null,null,null,null,null,null,null,null,null,null,null,null,null,null,null,null,null,null,null,null,null,null,null,null,null,null,null,null,null,null,null,null,null,null,null,null,null,null,null,null,null,null,null,null,null,null,null,null,null,null,null,null,null,null,null,null,null,null,null,null,null,null,null,null,null,null,null,null,null,null,null,null,null,null,null,null,null,null,null,null,null,null,null,null,null,null,null,null,null,null,null,null,null,null,null,null,null,null,null,null,"青森県",2]
[null,null,null,null,null,null,null,null,null,null,null,null,null,null,null,null,null,null,null,null,null,null,null,null,null,null,null,null,null,null,null,null,null,null,null,null,null,null,null,null,null,null,null,null,null,null,null,null,null,null,null,null,null,null,null,null,null,null,null,null,null,null,null,null,null,null,null,null,null,null,null,null,null,null,null,null,null,null,null,null,null,null,null,null,null,null,null,null,null,null,null,null,null,null,null,null,null,null,null,null,null,null,null,null,null,null,null,null,null,null,null,null,null,null,null,null,null,null,null,null,null,null,null,null,null,null,null,null,null,null,null,null,null,null,null,null,null,null,"岩手県",3]
[null,null,null,null,null,null,null,null,null,null,null,null,null,null,null,null,null,null,null,null,null,null,null,null,null,null,null,null,null,null,null,null,null,null,null,null,null,null,null,null,null,null,null,null,null,null,null,null,null,null,null,null,null,null,null,null,null,null,null,null,null,null,null,null,null,null,null,null,null,null,null,null,null,null,null,null,null,null,null,null,null,null,null,null,null,null,null,null,null,null,null,null,null,null,null,null,null,null,null,null,null,null,null,null,null,null,null,null,null,null,null,null,null,null,null,null,null,null,null,null,null,null,null,null,null,null,null,null,null,null,null,null,null,null,null,null,null,null,"宮城県",4]
[null,null,null,null,null,null,null,null,null,null,null,null,null,null,null,null,null,null,null,null,null,null,null,null,null,null,null,null,null,null,null,null,null,null,null,null,null,null,null,null,null,null,null,null,null,null,null,null,null,null,null,null,null,null,null,null,null,null,null,null,null,null,null,null,null,null,null,null,null,null,null,null,null,null,null,null,null,null,null,null,null,null,null,null,null,null,null,null,null,null,null,null,null,null,null,null,null,null,null,null,null,null,null,null,null,null,null,null,null,null,null,null,null,null,null,null,null,null,null,null,null,null,null,null,null,null,null,null,null,null,null,null,null,null,null,null,null,null,"秋田県",5]
[null,null,null,null,null,null,null,null,null,null,null,null,null,null,null,null,null,null,null,null,null,null,null,null,null,null,null,null,null,null,null,null,null,null,null,null,null,null,null,null,null,null,null,null,null,null,null,null,null,null,null,null,null,null,null,null,null,null,null,null,null,null,null,null,null,null,null,null,null,null,null,null,null,null,null,null,null,null,null,null,null,null,null,null,null,null,null,null,null,null,null,null,null,null,null,null,null,null,null,null,null,null,null,null,null,null,null,null,null,null,null,null,null,null,null,null,null,null,null,null,null,null,null,null,null,null,null,null,null,null,null,null,null,null,null,null,null,null,"山形県",6]
[null,null,null,null,null,null,null,null,null,null,null,null,null,null,null,null,null,null,null,null,null,null,null,null,null,null,null,null,null,null,null,null,null,null,null,null,null,null,null,null,null,null,null,null,null,null,null,null,null,null,null,null,null,null,null,null,null,null,null,null,null,null,null,null,null,null,null,null,null,null,null,null,null,null,null,null,null,null,null,null,null,null,null,null,null,null,null,null,null,null,null,null,null,null,null,null,null,null,null,null,null,null,null,null,null,null,null,null,null,null,null,null,null,null,null,null,null,null,null,null,null,null,null,null,null,null,null,null,null,null,null,null,null,null,null,null,null,null,"福島県",7]
[null,null,null,null,null,null,null,null,null,null,null,null,null,null,null,null,null,null,null,null,null,null,null,null,null,null,null,null,null,null,null,null,null,null,null,null,null,null,null,null,null,null,null,null,null,null,null,null,null,null,null,null,null,null,null,null,null,null,null,null,null,null,null,null,null,null,null,null,null,null,null,null,null,null,null,null,null,null,null,null,null,null,null,null,null,null,null,null,null,null,null,null,null,null,null,null,null,null,null,null,null,null,null,null,null,null,null,null,null,null,null,null,null,null,null,null,null,null,null,null,null,null,null,null,null,null,null,null,null,null,null,null,null,null,null,null,null,null,"茨城県",8]
[null,null,null,null,null,null,null,null,null,null,null,null,null,null,null,null,null,null,null,null,null,null,null,null,null,null,null,null,null,null,null,null,null,null,null,null,null,null,null,null,null,null,null,null,null,null,null,null,null,null,null,null,null,null,null,null,null,null,null,null,null,null,null,null,null,null,null,null,null,null,null,null,null,null,null,null,null,null,null,null,null,null,null,null,null,null,null,null,null,null,null,null,null,null,null,null,null,null,null,null,null,null,null,null,null,null,null,null,null,null,null,null,null,null,null,null,null,null,null,null,null,null,null,null,null,null,null,null,null,null,null,null,null,null,null,null,null,null,"栃木県",9]
[null,null,null,null,null,null,null,null,null,null,null,null,null,null,null,null,null,null,null,null,null,null,null,null,null,null,null,null,null,null,null,null,null,null,null,null,null,null,null,null,null,null,null,null,null,null,null,null,null,null,null,null,null,null,null,null,null,null,null,null,null,null,null,null,null,null,null,null,null,null,null,null,null,null,null,null,null,null,null,null,null,null,null,null,null,null,null,null,null,null,null,null,null,null,null,null,null,null,null,null,null,null,null,null,null,null,null,null,null,null,null,null,null,null,null,null,null,null,null,null,null,null,null,null,null,null,null,null,null,null,null,null,null,null,null,null,null,null,"群馬県",10]
[null,null,null,null,null,null,null,null,null,null,null,null,null,null,null,null,null,null,null,null,null,null,null,null,null,null,null,null,null,null,null,null,null,null,null,null,null,null,null,null,null,null,null,null,null,null,null,null,null,null,null,null,null,null,null,null,null,null,null,null,null,null,null,null,null,null,null,null,null,null,null,null,null,null,null,null,null,null,null,null,null,null,null,null,null,null,null,null,null,null,null,null,null,null,null,null,null,null,null,null,null,null,null,null,null,null,null,null,null,null,null,null,null,null,null,null,null,null,null,null,null,null,null,null,null,null,null,null,null,null,null,null,null,null,null,null,null,null,"埼玉県",11]
[null,null,null,null,null,null,null,null,null,null,null,null,null,null,null,null,null,null,null,null,null,null,null,null,null,null,null,null,null,null,null,null,null,null,null,null,null,null,null,null,null,null,null,null,null,null,null,null,null,null,null,null,null,null,null,null,null,null,null,null,null,null,null,null,null,null,null,null,null,null,null,null,null,null,null,null,null,null,null,null,null,null,null,null,null,null,null,null,null,null,null,null,null,null,null,null,null,null,null,null,null,null,null,null,null,null,null,null,null,null,null,null,null,null,null,null,null,null,null,null,null,null,null,null,null,null,null,null,null,null,null,null,null,null,null,null,null,null,"千葉県",12]
[null,null,null,null,null,null,null,null,null,null,null,null,null,null,null,null,null,null,null,null,null,null,null,null,null,null,null,null,null,null,null,null,null,null,null,null,null,null,null,null,null,null,null,null,null,null,null,null,null,null,null,null,null,null,null,null,null,null,null,null,null,null,null,null,null,null,null,null,null,null,null,null,null,null,null,null,null,null,null,null,null,null,null,null,null,null,null,null,null,null,null,null,null,null,null,null,null,null,null,null,null,null,null,null,null,null,null,null,null,null,null,null,null,null,null,null,null,null,null,null,null,null,null,null,null,null,null,null,null,null,null,null,null,null,null,null,null,null,"東京都",13]
[null,null,null,null,null,null,null,null,null,null,null,null,null,null,null,null,null,null,null,null,null,null,null,null,null,null,null,null,null,null,null,null,null,null,null,null,null,null,null,null,null,null,null,null,null,null,null,null,null,null,null,null,null,null,null,null,null,null,null,null,null,null,null,null,null,null,null,null,null,null,null,null,null,null,null,null,null,null,null,null,null,null,null,null,null,null,null,null,null,null,null,null,null,null,null,null,null,null,null,null,null,null,null,null,null,null,null,null,null,null,null,null,null,null,null,null,null,null,null,null,null,null,null,null,null,null,null,null,null,null,null,null,null,null,null,null,null,null,"神奈川県",14]
[null,null,null,null,null,null,null,null,null,null,null,null,null,null,null,null,null,null,null,null,null,null,null,null,null,null,null,null,null,null,null,null,null,null,null,null,null,null,null,null,null,null,null,null,null,null,null,null,null,null,null,null,null,null,null,null,null,null,null,null,null,null,null,null,null,null,null,null,null,null,null,null,null,null,null,null,null,null,null,null,null,null,null,null,null,null,null,null,null,null,null,null,null,null,null,null,null,null,null,null,null,null,null,null,null,null,null,null,null,null,null,null,null,null,null,null,null,null,null,null,null,null,null,null,null,null,null,null,null,null,null,null,null,null,null,null,null,null,"新潟県",15]
[null,null,null,null,null,null,null,null,null,null,null,null,null,null,null,null,null,null,null,null,null,null,null,null,null,null,null,null,null,null,null,null,null,null,null,null,null,null,null,null,null,null,null,null,null,null,null,null,null,null,null,null,null,null,null,null,null,null,null,null,null,null,null,null,null,null,null,null,null,null,null,null,null,null,null,null,null,null,null,null,null,null,null,null,null,null,null,null,null,null,null,null,null,null,null,null,null,null,null,null,null,null,null,null,null,null,null,null,null,null,null,null,null,null,null,null,null,null,null,null,null,null,null,null,null,null,null,null,null,null,null,null,null,null,null,null,null,null,"富山県",16]
[null,null,null,null,null,null,null,null,null,null,null,null,null,null,null,null,null,null,null,null,null,null,null,null,null,null,null,null,null,null,null,null,null,null,null,null,null,null,null,null,null,null,null,null,null,null,null,null,null,null,null,null,null,null,null,null,null,null,null,null,null,null,null,null,null,null,null,null,null,null,null,null,null,null,null,null,null,null,null,null,null,null,null,null,null,null,null,null,null,null,null,null,null,null,null,null,null,null,null,null,null,null,null,null,null,null,null,null,null,null,null,null,null,null,null,null,null,null,null,null,null,null,null,null,null,null,null,null,null,null,null,null,null,null,null,null,null,null,"石川県",17]
[null,null,null,null,null,null,null,null,null,null,null,null,null,null,null,null,null,null,null,null,null,null,null,null,null,null,null,null,null,null,null,null,null,null,null,null,null,null,null,null,null,null,null,null,null,null,null,null,null,null,null,null,null,null,null,null,null,null,null,null,null,null,null,null,null,null,null,null,null,null,null,null,null,null,null,null,null,null,null,null,null,null,null,null,null,null,null,null,null,null,null,null,null,null,null,null,null,null,null,null,null,null,null,null,null,null,null,null,null,null,null,null,null,null,null,null,null,null,null,null,null,null,null,null,null,null,null,null,null,null,null,null,null,null,null,null,null,null,"福井県",18]
[null,null,null,null,null,null,null,null,null,null,null,null,null,null,null,null,null,null,null,null,null,null,null,null,null,null,null,null,null,null,null,null,null,null,null,null,null,null,null,null,null,null,null,null,null,null,null,null,null,null,null,null,null,null,null,null,null,null,null,null,null,null,null,null,null,null,null,null,null,null,null,null,null,null,null,null,null,null,null,null,null,null,null,null,null,null,null,null,null,null,null,null,null,null,null,null,null,null,null,null,null,null,null,null,null,null,null,null,null,null,null,null,null,null,null,null,null,null,null,null,null,null,null,null,null,null,null,null,null,null,null,null,null,null,null,null,null,null,"山梨県",19]
[null,null,null,null,null,null,null,null,null,null,null,null,null,null,null,null,null,null,null,null,null,null,null,null,null,null,null,null,null,null,null,null,null,null,null,null,null,null,null,null,null,null,null,null,null,null,null,null,null,null,null,null,null,null,null,null,null,null,null,null,null,null,null,null,null,null,null,null,null,null,null,null,null,null,null,null,null,null,null,null,null,null,null,null,null,null,null,null,null,null,null,null,null,null,null,null,null,null,null,null,null,null,null,null,null,null,null,null,null,null,null,null,null,null,null,null,null,null,null,null,null,null,null,null,null,null,null,null,null,null,null,null,null,null,null,null,null,null,"長野県",20]
[null,null,null,null,null,null,null,null,null,null,null,null,null,null,null,null,null,null,null,null,null,null,null,null,null,null,null,null,null,null,null,null,null,null,null,null,null,null,null,null,null,null,null,null,null,null,null,null,null,null,null,null,null,null,null,null,null,null,null,null,null,null,null,null,null,null,null,null,null,null,null,null,null,null,null,null,null,null,null,null,null,null,null,null,null,null,null,null,null,null,null,null,null,null,null,null,null,null,null,null,null,null,null,null,null,null,null,null,null,null,null,null,null,null,null,null,null,null,null,null,null,null,null,null,null,null,null,null,null,null,null,null,null,null,null,null,null,null,"岐阜県",21]
[null,null,null,null,null,null,null,null,null,null,null,null,null,null,null,null,null,null,null,null,null,null,null,null,null,null,null,null,null,null,null,null,null,null,null,null,null,null,null,null,null,null,null,null,null,null,null,null,null,null,null,null,null,null,null,null,null,null,null,null,null,null,null,null,null,null,null,null,null,null,null,null,null,null,null,null,null,null,null,null,null,null,null,null,null,null,null,null,null,null,null,null,null,null,null,null,null,null,null,null,null,null,null,null,null,null,null,null,null,null,null,null,null,null,null,null,null,null,null,null,null,null,null,null,null,null,null,null,null,null,null,null,null,null,null,null,null,null,"静岡県",22]
[null,null,null,null,null,null,null,null,null,null,null,null,null,null,null,null,null,null,null,null,null,null,null,null,null,null,null,null,null,null,null,null,null,null,null,null,null,null,null,null,null,null,null,null,null,null,null,null,null,null,null,null,null,null,null,null,null,null,null,null,null,null,null,null,null,null,null,null,null,null,null,null,null,null,null,null,null,null,null,null,null,null,null,null,null,null,null,null,null,null,null,null,null,null,null,null,null,null,null,null,null,null,null,null,null,null,null,null,null,null,null,null,null,null,null,null,null,null,null,null,null,null,null,null,null,null,null,null,null,null,null,null,null,null,null,null,null,null,"愛知県",23]
[null,null,null,null,null,null,null,null,null,null,null,null,null,null,null,null,null,null,null,null,null,null,null,null,null,null,null,null,null,null,null,null,null,null,null,null,null,null,null,null,null,null,null,null,null,null,null,null,null,null,null,null,null,null,null,null,null,null,null,null,null,null,null,null,null,null,null,null,null,null,null,null,null,null,null,null,null,null,null,null,null,null,null,null,null,null,null,null,null,null,null,null,null,null,null,null,null,null,null,null,null,null,null,null,null,null,null,null,null,null,null,null,null,null,null,null,null,null,null,null,null,null,null,null,null,null,null,null,null,null,null,null,null,null,null,null,null,null,"三重県",24]
[null,null,null,null,null,null,null,null,null,null,null,null,null,null,null,null,null,null,null,null,null,null,null,null,null,null,null,null,null,null,null,null,null,null,null,null,null,null,null,null,null,null,null,null,null,null,null,null,null,null,null,null,null,null,null,null,null,null,null,null,null,null,null,null,null,null,null,null,null,null,null,null,null,null,null,null,null,null,null,null,null,null,null,null,null,null,null,null,null,null,null,null,null,null,null,null,null,null,null,null,null,null,null,null,null,null,null,null,null,null,null,null,null,null,null,null,null,null,null,null,null,null,null,null,null,null,null,null,null,null,null,null,null,null,null,null,null,null,"滋賀県",25]
[null,null,null,null,null,null,null,null,null,null,null,null,null,null,null,null,null,null,null,null,null,null,null,null,null,null,null,null,null,null,null,null,null,null,null,null,null,null,null,null,null,null,null,null,null,null,null,null,null,null,null,null,null,null,null,null,null,null,null,null,null,null,null,null,null,null,null,null,null,null,null,null,null,null,null,null,null,null,null,null,null,null,null,null,null,null,null,null,null,null,null,null,null,null,null,null,null,null,null,null,null,null,null,null,null,null,null,null,null,null,null,null,null,null,null,null,null,null,null,null,null,null,null,null,null,null,null,null,null,null,null,null,null,null,null,null,null,null,"京都府",26]
[null,null,null,null,null,null,null,null,null,null,null,null,null,null,null,null,null,null,null,null,null,null,null,null,null,null,null,null,null,null,null,null,null,null,null,null,null,null,null,null,null,null,null,null,null,null,null,null,null,null,null,null,null,null,null,null,null,null,null,null,null,null,null,null,null,null,null,null,null,null,null,null,null,null,null,null,null,null,null,null,null,null,null,null,null,null,null,null,null,null,null,null,null,null,null,null,null,null,null,null,null,null,null,null,null,null,null,null,null,null,null,null,null,null,null,null,null,null,null,null,null,null,null,null,null,null,null,null,null,null,null,null,null,null,null,null,null,null,"大阪府",27]
[null,null,null,null,null,null,null,null,null,null,null,null,null,null,null,null,null,null,null,null,null,null,null,null,null,null,null,null,null,null,null,null,null,null,null,null,null,null,null,null,null,null,null,null,null,null,null,null,null,null,null,null,null,null,null,null,null,null,null,null,null,null,null,null,null,null,null,null,null,null,null,null,null,null,null,null,null,null,null,null,null,null,null,null,null,null,null,null,null,null,null,null,null,null,null,null,null,null,null,null,null,null,null,null,null,null,null,null,null,null,null,null,null,null,null,null,null,null,null,null,null,null,null,null,null,null,null,null,null,null,null,null,null,null,null,null,null,null,"兵庫県",28]
[null,null,null,null,null,null,null,null,null,null,null,null,null,null,null,null,null,null,null,null,null,null,null,null,null,null,null,null,null,null,null,null,null,null,null,null,null,null,null,null,null,null,null,null,null,null,null,null,null,null,null,null,null,null,null,null,null,null,null,null,null,null,null,null,null,null,null,null,null,null,null,null,null,null,null,null,null,null,null,null,null,null,null,null,null,null,null,null,null,null,null,null,null,null,null,null,null,null,null,null,null,null,null,null,null,null,null,null,null,null,null,null,null,null,null,null,null,null,null,null,null,null,null,null,null,null,null,null,null,null,null,null,null,null,null,null,null,null,"奈良県",29]
[null,null,null,null,null,null,null,null,null,null,null,null,null,null,null,null,null,null,null,null,null,null,null,null,null,null,null,null,null,null,null,null,null,null,null,null,null,null,null,null,null,null,null,null,null,null,null,null,null,null,null,null,null,null,null,null,null,null,null,null,null,null,null,null,null,null,null,null,null,null,null,null,null,null,null,null,null,null,null,null,null,null,null,null,null,null,null,null,null,null,null,null,null,null,null,null,null,null,null,null,null,null,null,null,null,null,null,null,null,null,null,null,null,null,null,null,null,null,null,null,null,null,null,null,null,null,null,null,null,null,null,null,null,null,null,null,null,null,"和歌山県",30]
[null,null,null,null,null,null,null,null,null,null,null,null,null,null,null,null,null,null,null,null,null,null,null,null,null,null,null,null,null,null,null,null,null,null,null,null,null,null,null,null,null,null,null,null,null,null,null,null,null,null,null,null,null,null,null,null,null,null,null,null,null,null,null,null,null,null,null,null,null,null,null,null,null,null,null,null,null,null,null,null,null,null,null,null,null,null,null,null,null,null,null,null,null,null,null,null,null,null,null,null,null,null,null,null,null,null,null,null,null,null,null,null,null,null,null,null,null,null,null,null,null,null,null,null,null,null,null,null,null,null,null,null,null,null,null,null,null,null,"鳥取県",31]
[null,null,null,null,null,null,null,null,null,null,null,null,null,null,null,null,null,null,null,null,null,null,null,null,null,null,null,null,null,null,null,null,null,null,null,null,null,null,null,null,null,null,null,null,null,null,null,null,null,null,null,null,null,null,null,null,null,null,null,null,null,null,null,null,null,null,null,null,null,null,null,null,null,null,null,null,null,null,null,null,null,null,null,null,null,null,null,null,null,null,null,null,null,null,null,null,null,null,null,null,null,null,null,null,null,null,null,null,null,null,null,null,null,null,null,null,null,null,null,null,null,null,null,null,null,null,null,null,null,null,null,null,null,null,null,null,null,null,"島根県",32]
[null,null,null,null,null,null,null,null,null,null,null,null,null,null,null,null,null,null,null,null,null,null,null,null,null,null,null,null,null,null,null,null,null,null,null,null,null,null,null,null,null,null,null,null,null,null,null,null,null,null,null,null,null,null,null,null,null,null,null,null,null,null,null,null,null,null,null,null,null,null,null,null,null,null,null,null,null,null,null,null,null,null,null,null,null,null,null,null,null,null,null,null,null,null,null,null,null,null,null,null,null,null,null,null,null,null,null,null,null,null,null,null,null,null,null,null,null,null,null,null,null,null,null,null,null,null,null,null,null,null,null,null,null,null,null,null,null,null,"岡山県",33]
[null,null,null,null,null,null,null,null,null,null,null,null,null,null,null,null,null,null,null,null,null,null,null,null,null,null,null,null,null,null,null,null,null,null,null,null,null,null,null,null,null,null,null,null,null,null,null,null,null,null,null,null,null,null,null,null,null,null,null,null,null,null,null,null,null,null,null,null,null,null,null,null,null,null,null,null,null,null,null,null,null,null,null,null,null,null,null,null,null,null,null,null,null,null,null,null,null,null,null,null,null,null,null,null,null,null,null,null,null,null,null,null,null,null,null,null,null,null,null,null,null,null,null,null,null,null,null,null,null,null,null,null,null,null,null,null,null,null,"広島県",34]
[null,null,null,null,null,null,null,null,null,null,null,null,null,null,null,null,null,null,null,null,null,null,null,null,null,null,null,null,null,null,null,null,null,null,null,null,null,null,null,null,null,null,null,null,null,null,null,null,null,null,null,null,null,null,null,null,null,null,null,null,null,null,null,null,null,null,null,null,null,null,null,null,null,null,null,null,null,null,null,null,null,null,null,null,null,null,null,null,null,null,null,null,null,null,null,null,null,null,null,null,null,null,null,null,null,null,null,null,null,null,null,null,null,null,null,null,null,null,null,null,null,null,null,null,null,null,null,null,null,null,null,null,null,null,null,null,null,null,"山口県",35]
[null,null,null,null,null,null,null,null,null,null,null,null,null,null,null,null,null,null,null,null,null,null,null,null,null,null,null,null,null,null,null,null,null,null,null,null,null,null,null,null,null,null,null,null,null,null,null,null,null,null,null,null,null,null,null,null,null,null,null,null,null,null,null,null,null,null,null,null,null,null,null,null,null,null,null,null,null,null,null,null,null,null,null,null,null,null,null,null,null,null,null,null,null,null,null,null,null,null,null,null,null,null,null,null,null,null,null,null,null,null,null,null,null,null,null,null,null,null,null,null,null,null,null,null,null,null,null,null,null,null,null,null,null,null,null,null,null,null,"徳島県",36]
[null,null,null,null,null,null,null,null,null,null,null,null,null,null,null,null,null,null,null,null,null,null,null,null,null,null,null,null,null,null,null,null,null,null,null,null,null,null,null,null,null,null,null,null,null,null,null,null,null,null,null,null,null,null,null,null,null,null,null,null,null,null,null,null,null,null,null,null,null,null,null,null,null,null,null,null,null,null,null,null,null,null,null,null,null,null,null,null,null,null,null,null,null,null,null,null,null,null,null,null,null,null,null,null,null,null,null,null,null,null,null,null,null,null,null,null,null,null,null,null,null,null,null,null,null,null,null,null,null,null,null,null,null,null,null,null,null,null,"香川県",37]
[null,null,null,null,null,null,null,null,null,null,null,null,null,null,null,null,null,null,null,null,null,null,null,null,null,null,null,null,null,null,null,null,null,null,null,null,null,null,null,null,null,null,null,null,null,null,null,null,null,null,null,null,null,null,null,null,null,null,null,null,null,null,null,null,null,null,null,null,null,null,null,null,null,null,null,null,null,null,null,null,null,null,null,null,null,null,null,null,null,null,null,null,null,null,null,null,null,null,null,null,null,null,null,null,null,null,null,null,null,null,null,null,null,null,null,null,null,null,null,null,null,null,null,null,null,null,null,null,null,null,null,null,null,null,null,null,null,null,"愛媛県",38]
[null,null,null,null,null,null,null,null,null,null,null,null,null,null,null,null,null,null,null,null,null,null,null,null,null,null,null,null,null,null,null,null,null,null,null,null,null,null,null,null,null,null,null,null,null,null,null,null,null,null,null,null,null,null,null,null,null,null,null,null,null,null,null,null,null,null,null,null,null,null,null,null,null,null,null,null,null,null,null,null,null,null,null,null,null,null,null,null,null,null,null,null,null,null,null,null,null,null,null,null,null,null,null,null,null,null,null,null,null,null,null,null,null,null,null,null,null,null,null,null,null,null,null,null,null,null,null,null,null,null,null,null,null,null,null,null,null,null,"高知県",39]
[null,null,null,null,null,null,null,null,null,null,null,null,null,null,null,null,null,null,null,null,null,null,null,null,null,null,null,null,null,null,null,null,null,null,null,null,null,null,null,null,null,null,null,null,null,null,null,null,null,null,null,null,null,null,null,null,null,null,null,null,null,null,null,null,null,null,null,null,null,null,null,null,null,null,null,null,null,null,null,null,null,null,null,null,null,null,null,null,null,null,null,null,null,null,null,null,null,null,null,null,null,null,null,null,null,null,null,null,null,null,null,null,null,null,null,null,null,null,null,null,null,null,null,null,null,null,null,null,null,null,null,null,null,null,null,null,null,null,"福岡県",40]
[null,null,null,null,null,null,null,null,null,null,null,null,null,null,null,null,null,null,null,null,null,null,null,null,null,null,null,null,null,null,null,null,null,null,null,null,null,null,null,null,null,null,null,null,null,null,null,null,null,null,null,null,null,null,null,null,null,null,null,null,null,null,null,null,null,null,null,null,null,null,null,null,null,null,null,null,null,null,null,null,null,null,null,null,null,null,null,null,null,null,null,null,null,null,null,null,null,null,null,null,null,null,null,null,null,null,null,null,null,null,null,null,null,null,null,null,null,null,null,null,null,null,null,null,null,null,null,null,null,null,null,null,null,null,null,null,null,null,"佐賀県",41]
[null,null,null,null,null,null,null,null,null,null,null,null,null,null,null,null,null,null,null,null,null,null,null,null,null,null,null,null,null,null,null,null,null,null,null,null,null,null,null,null,null,null,null,null,null,null,null,null,null,null,null,null,null,null,null,null,null,null,null,null,null,null,null,null,null,null,null,null,null,null,null,null,null,null,null,null,null,null,null,null,null,null,null,null,null,null,null,null,null,null,null,null,null,null,null,null,null,null,null,null,null,null,null,null,null,null,null,null,null,null,null,null,null,null,null,null,null,null,null,null,null,null,null,null,null,null,null,null,null,null,null,null,null,null,null,null,null,null,"長崎県",42]
[null,null,null,null,null,null,null,null,null,null,null,null,null,null,null,null,null,null,null,null,null,null,null,null,null,null,null,null,null,null,null,null,null,null,null,null,null,null,null,null,null,null,null,null,null,null,null,null,null,null,null,null,null,null,null,null,null,null,null,null,null,null,null,null,null,null,null,null,null,null,null,null,null,null,null,null,null,null,null,null,null,null,null,null,null,null,null,null,null,null,null,null,null,null,null,null,null,null,null,null,null,null,null,null,null,null,null,null,null,null,null,null,null,null,null,null,null,null,null,null,null,null,null,null,null,null,null,null,null,null,null,null,null,null,null,null,null,null,"熊本県",43]
[null,null,null,null,null,null,null,null,null,null,null,null,null,null,null,null,null,null,null,null,null,null,null,null,null,null,null,null,null,null,null,null,null,null,null,null,null,null,null,null,null,null,null,null,null,null,null,null,null,null,null,null,null,null,null,null,null,null,null,null,null,null,null,null,null,null,null,null,null,null,null,null,null,null,null,null,null,null,null,null,null,null,null,null,null,null,null,null,null,null,null,null,null,null,null,null,null,null,null,null,null,null,null,null,null,null,null,null,null,null,null,null,null,null,null,null,null,null,null,null,null,null,null,null,null,null,null,null,null,null,null,null,null,null,null,null,null,null,"大分県",44]
[null,null,null,null,null,null,null,null,null,null,null,null,null,null,null,null,null,null,null,null,null,null,null,null,null,null,null,null,null,null,null,null,null,null,null,null,null,null,null,null,null,null,null,null,null,null,null,null,null,null,null,null,null,null,null,null,null,null,null,null,null,null,null,null,null,null,null,null,null,null,null,null,null,null,null,null,null,null,null,null,null,null,null,null,null,null,null,null,null,null,null,null,null,null,null,null,null,null,null,null,null,null,null,null,null,null,null,null,null,null,null,null,null,null,null,null,null,null,null,null,null,null,null,null,null,null,null,null,null,null,null,null,null,null,null,null,null,null,"宮崎県",45]
[null,null,null,null,null,null,null,null,null,null,null,null,null,null,null,null,null,null,null,null,null,null,null,null,null,null,null,null,null,null,null,null,null,null,null,null,null,null,null,null,null,null,null,null,null,null,null,null,null,null,null,null,null,null,null,null,null,null,null,null,null,null,null,null,null,null,null,null,null,null,null,null,null,null,null,null,null,null,null,null,null,null,null,null,null,null,null,null,null,null,null,null,null,null,null,null,null,null,null,null,null,null,null,null,null,null,null,null,null,null,null,null,null,null,null,null,null,null,null,null,null,null,null,null,null,null,null,null,null,null,null,null,null,null,null,null,null,null,"鹿児島県",46]
[null,null,null,null,null,null,null,null,null,null,null,null,null,null,null,null,null,null,null,null,null,null,null,null,null,null,null,null,null,null,null,null,null,null,null,null,null,null,null,null,null,null,null,null,null,null,null,null,null,null,null,null,null,null,null,null,null,null,null,null,null,null,null,null,null,null,null,null,null,null,null,null,null,null,null,null,null,null,null,null,null,null,null,null,null,null,null,null,null,null,null,null,null,null,null,null,null,null,null,null,null,null,null,null,null,null,null,null,null,null,null,null,null,null,null,null,null,null,null,null,null,null,null,null,null,null,null,null,null,null,null,null,null,null,null,null,null,null,"沖縄県",47]